Workbook

Sheet Český pohár
A1: 7P | B1: 2018 | C1: Pouze členi | D1: A | I1: Věk min: | M1: Rok: | W1: created by: Zdeněk Vykydal
A2: 7 | B2: koeficient pro logaritmické body | I2: Věk max:
A4: RAC - Český pohár 2018 | E4: 181603 | F4: 182115 | G4: 181803 | H4: 181616 | I4: 182156 | O4: Cena YCN | P4: Věstonická Venuše | Q4: Pohár Rozkoše | R4: Nechranická buchta | S4: Czech Supercup
D5: Poč. záv./CTL | E5: 14 | F5: 16 | G5: 9 | H5: 20 | I5: 16 | O5: 181603 | P5: 182115 | Q5: 181803 | R5: 181616 | S5: 182156 | X5: =IF(N4,N4,"") -> 
A6: Poř. celk. | B6: Kat. | C6: Reg. číslo | D6: Jméno | E6: Poř. | F6: Poř. | G6: Poř. | H6: Poř. | I6: Poř. | J6: Poř. | K6: Poř. | L6: Poř. | M6: Poř. | N6: Poř. | O6: Body | P6: Body | Q6: Body | R6: Body | S6: Body | T6: Body | U6: Body | V6: Body | W6: Body | X6: Body | Y6: Celkem
A7: 1 | B7: 1.- | C7: 2110-0050 | D7: Kučera Petr | E7: 1 | F7: 1 | H7: 1 | I7: 3 | O7: =IF((E7>0),ROUND((101+1000*(LOG10($E$5)-LOG10(E7)))*$A$2,0),0) -> 8730 | P7: =IF((F7>0),ROUND((101+1000*(LOG10($F$5)-LOG10(F7)))*$A$2,0),0) -> 9136 | Q7: =IF((G7>0),ROUND((101+1000*(LOG10($G$5)-LOG10(G7)))*$A$2,0),0) -> 0 | R7: =IF((H7>0),ROUND((101+1000*(LOG10($H$5)-LOG10(H7)))*$A$2,0),0) -> 9814 | S7: =IF((I7>0),ROUND((101+1000*(LOG10($I$5)-LOG10(I7)))*$A$2,0),0) -> 5796 | T7: =IF((J7>0),ROUND((101+1000*(LOG10($J$5)-LOG10(J7)))*$A$2,0),0) -> 0 | U7: =IF((K7>0),ROUND((101+1000*(LOG10($K$5)-LOG10(K7)))*$A$2,0),0) -> 0 | V7: =IF((L7>0),ROUND((101+1000*(LOG10($L$5)-LOG10(L7)))*$A$2,0),0) -> 0 | W7: =IF((M7>0),ROUND((101+1000*(LOG10($M$5)-LOG10(M7)))*$A$2,0),0) -> 0 | X7: =IF((N7>0),ROUND((101+1000*(LOG10($N$5)-LOG10(N7)))*$A$2,0),0) -> 0 | Y7: =SUM(LARGE(O7:X7,1),LARGE(O7:X7,2),LARGE(O7:X7,3),LARGE(O7:X7,4)) -> 33476
A8: 2 | B8: 1.M | C8: 2001-0096 | D8: Kamenský Radim | E8: 2 | F8: 2 | H8: 2 | I8: 1 | O8: =IF((E8>0),ROUND((101+1000*(LOG10($E$5)-LOG10(E8)))*$A$2,0),0) -> 6623 | P8: =IF((F8>0),ROUND((101+1000*(LOG10($F$5)-LOG10(F8)))*$A$2,0),0) -> 7029 | Q8: =IF((G8>0),ROUND((101+1000*(LOG10($G$5)-LOG10(G8)))*$A$2,0),0) -> 0 | R8: =IF((H8>0),ROUND((101+1000*(LOG10($H$5)-LOG10(H8)))*$A$2,0),0) -> 7707 | S8: =IF((I8>0),ROUND((101+1000*(LOG10($I$5)-LOG10(I8)))*$A$2,0),0) -> 9136 | T8: =IF((J8>0),ROUND((101+1000*(LOG10($J$5)-LOG10(J8)))*$A$2,0),0) -> 0 | U8: =IF((K8>0),ROUND((101+1000*(LOG10($K$5)-LOG10(K8)))*$A$2,0),0) -> 0 | V8: =IF((L8>0),ROUND((101+1000*(LOG10($L$5)-LOG10(L8)))*$A$2,0),0) -> 0 | W8: =IF((M8>0),ROUND((101+1000*(LOG10($M$5)-LOG10(M8)))*$A$2,0),0) -> 0 | X8: =IF((N8>0),ROUND((101+1000*(LOG10($N$5)-LOG10(N8)))*$A$2,0),0) -> 0 | Y8: =SUM(LARGE(O8:X8,1),LARGE(O8:X8,2),LARGE(O8:X8,3),LARGE(O8:X8,4)) -> 30495
A9: 3 | B9: 2.M | C9: 2413-0001 | D9: Král Jiří | F9: 3 | G9: 1 | H9: 4 | I9: 6 | O9: =IF((E9>0),ROUND((101+1000*(LOG10($E$5)-LOG10(E9)))*$A$2,0),0) -> 0 | P9: =IF((F9>0),ROUND((101+1000*(LOG10($F$5)-LOG10(F9)))*$A$2,0),0) -> 5796 | Q9: =IF((G9>0),ROUND((101+1000*(LOG10($G$5)-LOG10(G9)))*$A$2,0),0) -> 7387 | R9: =IF((H9>0),ROUND((101+1000*(LOG10($H$5)-LOG10(H9)))*$A$2,0),0) -> 5600 | S9: =IF((I9>0),ROUND((101+1000*(LOG10($I$5)-LOG10(I9)))*$A$2,0),0) -> 3689 | T9: =IF((J9>0),ROUND((101+1000*(LOG10($J$5)-LOG10(J9)))*$A$2,0),0) -> 0 | U9: =IF((K9>0),ROUND((101+1000*(LOG10($K$5)-LOG10(K9)))*$A$2,0),0) -> 0 | V9: =IF((L9>0),ROUND((101+1000*(LOG10($L$5)-LOG10(L9)))*$A$2,0),0) -> 0 | W9: =IF((M9>0),ROUND((101+1000*(LOG10($M$5)-LOG10(M9)))*$A$2,0),0) -> 0 | X9: =IF((N9>0),ROUND((101+1000*(LOG10($N$5)-LOG10(N9)))*$A$2,0),0) -> 0 | Y9: =SUM(LARGE(O9:X9,1),LARGE(O9:X9,2),LARGE(O9:X9,3),LARGE(O9:X9,4)) -> 22472
A10: 4 | B10: 3.M | C10: 2110-0111 | D10: Skřepek Jan | E10: 3 | F10: 4 | H10: 3 | I10: 4 | O10: =IF((E10>0),ROUND((101+1000*(LOG10($E$5)-LOG10(E10)))*$A$2,0),0) -> 5390 | P10: =IF((F10>0),ROUND((101+1000*(LOG10($F$5)-LOG10(F10)))*$A$2,0),0) -> 4921 | Q10: =IF((G10>0),ROUND((101+1000*(LOG10($G$5)-LOG10(G10)))*$A$2,0),0) -> 0 | R10: =IF((H10>0),ROUND((101+1000*(LOG10($H$5)-LOG10(H10)))*$A$2,0),0) -> 6474 | S10: =IF((I10>0),ROUND((101+1000*(LOG10($I$5)-LOG10(I10)))*$A$2,0),0) -> 4921 | T10: =IF((J10>0),ROUND((101+1000*(LOG10($J$5)-LOG10(J10)))*$A$2,0),0) -> 0 | U10: =IF((K10>0),ROUND((101+1000*(LOG10($K$5)-LOG10(K10)))*$A$2,0),0) -> 0 | V10: =IF((L10>0),ROUND((101+1000*(LOG10($L$5)-LOG10(L10)))*$A$2,0),0) -> 0 | W10: =IF((M10>0),ROUND((101+1000*(LOG10($M$5)-LOG10(M10)))*$A$2,0),0) -> 0 | X10: =IF((N10>0),ROUND((101+1000*(LOG10($N$5)-LOG10(N10)))*$A$2,0),0) -> 0 | Y10: =SUM(LARGE(O10:X10,1),LARGE(O10:X10,2),LARGE(O10:X10,3),LARGE(O10:X10,4)) -> 21706
A11: 5 | B11: 2.- | C11: 1607-0161 | D11: Slívová Jana | E11: 5 | F11: 5 | G11: 3 | I11: 2 | O11: =IF((E11>0),ROUND((101+1000*(LOG10($E$5)-LOG10(E11)))*$A$2,0),0) -> 3837 | P11: =IF((F11>0),ROUND((101+1000*(LOG10($F$5)-LOG10(F11)))*$A$2,0),0) -> 4243 | Q11: =IF((G11>0),ROUND((101+1000*(LOG10($G$5)-LOG10(G11)))*$A$2,0),0) -> 4047 | R11: =IF((H11>0),ROUND((101+1000*(LOG10($H$5)-LOG10(H11)))*$A$2,0),0) -> 0 | S11: =IF((I11>0),ROUND((101+1000*(LOG10($I$5)-LOG10(I11)))*$A$2,0),0) -> 7029 | T11: =IF((J11>0),ROUND((101+1000*(LOG10($J$5)-LOG10(J11)))*$A$2,0),0) -> 0 | U11: =IF((K11>0),ROUND((101+1000*(LOG10($K$5)-LOG10(K11)))*$A$2,0),0) -> 0 | V11: =IF((L11>0),ROUND((101+1000*(LOG10($L$5)-LOG10(L11)))*$A$2,0),0) -> 0 | W11: =IF((M11>0),ROUND((101+1000*(LOG10($M$5)-LOG10(M11)))*$A$2,0),0) -> 0 | X11: =IF((N11>0),ROUND((101+1000*(LOG10($N$5)-LOG10(N11)))*$A$2,0),0) -> 0 | Y11: =SUM(LARGE(O11:X11,1),LARGE(O11:X11,2),LARGE(O11:X11,3),LARGE(O11:X11,4)) -> 19156
A12: 6 | B12: 1.GM | C12: 2101-0375 | D12: Pospíšil Martin | E12: 4 | G12: 4 | H12: 6 | I12: 5 | O12: =IF((E12>0),ROUND((101+1000*(LOG10($E$5)-LOG10(E12)))*$A$2,0),0) -> 4515 | P12: =IF((F12>0),ROUND((101+1000*(LOG10($F$5)-LOG10(F12)))*$A$2,0),0) -> 0 | Q12: =IF((G12>0),ROUND((101+1000*(LOG10($G$5)-LOG10(G12)))*$A$2,0),0) -> 3172 | R12: =IF((H12>0),ROUND((101+1000*(LOG10($H$5)-LOG10(H12)))*$A$2,0),0) -> 4367 | S12: =IF((I12>0),ROUND((101+1000*(LOG10($I$5)-LOG10(I12)))*$A$2,0),0) -> 4243 | T12: =IF((J12>0),ROUND((101+1000*(LOG10($J$5)-LOG10(J12)))*$A$2,0),0) -> 0 | U12: =IF((K12>0),ROUND((101+1000*(LOG10($K$5)-LOG10(K12)))*$A$2,0),0) -> 0 | V12: =IF((L12>0),ROUND((101+1000*(LOG10($L$5)-LOG10(L12)))*$A$2,0),0) -> 0 | W12: =IF((M12>0),ROUND((101+1000*(LOG10($M$5)-LOG10(M12)))*$A$2,0),0) -> 0 | X12: =IF((N12>0),ROUND((101+1000*(LOG10($N$5)-LOG10(N12)))*$A$2,0),0) -> 0 | Y12: =SUM(LARGE(O12:X12,1),LARGE(O12:X12,2),LARGE(O12:X12,3),LARGE(O12:X12,4)) -> 16297
A13: 7 | B13: 2.GM | C13: 7019-0144 | D13: Hrubý Pavel | E13: 8 | F13: 7 | G13: 2 | H13: 9 | I13: 13 | O13: =IF((E13>0),ROUND((101+1000*(LOG10($E$5)-LOG10(E13)))*$A$2,0),0) -> 2408 | P13: =IF((F13>0),ROUND((101+1000*(LOG10($F$5)-LOG10(F13)))*$A$2,0),0) -> 3220 | Q13: =IF((G13>0),ROUND((101+1000*(LOG10($G$5)-LOG10(G13)))*$A$2,0),0) -> 5279 | R13: =IF((H13>0),ROUND((101+1000*(LOG10($H$5)-LOG10(H13)))*$A$2,0),0) -> 3135 | S13: =IF((I13>0),ROUND((101+1000*(LOG10($I$5)-LOG10(I13)))*$A$2,0),0) -> 1338 | T13: =IF((J13>0),ROUND((101+1000*(LOG10($J$5)-LOG10(J13)))*$A$2,0),0) -> 0 | U13: =IF((K13>0),ROUND((101+1000*(LOG10($K$5)-LOG10(K13)))*$A$2,0),0) -> 0 | V13: =IF((L13>0),ROUND((101+1000*(LOG10($L$5)-LOG10(L13)))*$A$2,0),0) -> 0 | W13: =IF((M13>0),ROUND((101+1000*(LOG10($M$5)-LOG10(M13)))*$A$2,0),0) -> 0 | X13: =IF((N13>0),ROUND((101+1000*(LOG10($N$5)-LOG10(N13)))*$A$2,0),0) -> 0 | Y13: =SUM(LARGE(O13:X13,1),LARGE(O13:X13,2),LARGE(O13:X13,3),LARGE(O13:X13,4)) -> 14042
A14: 8 | B14: 4.M | C14: 2001-0086 | D14: Kamenský Pavel | E14: 10 | F14: 12 | G14: 6 | H14: 5 | I14: 7 | O14: =IF((E14>0),ROUND((101+1000*(LOG10($E$5)-LOG10(E14)))*$A$2,0),0) -> 1730 | P14: =IF((F14>0),ROUND((101+1000*(LOG10($F$5)-LOG10(F14)))*$A$2,0),0) -> 1582 | Q14: =IF((G14>0),ROUND((101+1000*(LOG10($G$5)-LOG10(G14)))*$A$2,0),0) -> 1940 | R14: =IF((H14>0),ROUND((101+1000*(LOG10($H$5)-LOG10(H14)))*$A$2,0),0) -> 4921 | S14: =IF((I14>0),ROUND((101+1000*(LOG10($I$5)-LOG10(I14)))*$A$2,0),0) -> 3220 | T14: =IF((J14>0),ROUND((101+1000*(LOG10($J$5)-LOG10(J14)))*$A$2,0),0) -> 0 | U14: =IF((K14>0),ROUND((101+1000*(LOG10($K$5)-LOG10(K14)))*$A$2,0),0) -> 0 | V14: =IF((L14>0),ROUND((101+1000*(LOG10($L$5)-LOG10(L14)))*$A$2,0),0) -> 0 | W14: =IF((M14>0),ROUND((101+1000*(LOG10($M$5)-LOG10(M14)))*$A$2,0),0) -> 0 | X14: =IF((N14>0),ROUND((101+1000*(LOG10($N$5)-LOG10(N14)))*$A$2,0),0) -> 0 | Y14: =SUM(LARGE(O14:X14,1),LARGE(O14:X14,2),LARGE(O14:X14,3),LARGE(O14:X14,4)) -> 11811
A15: 9 | B15: 3.GM | C15: 1607-0121 | D15: Hnitka Martin | F15: 6 | H15: 8 | I15: 8 | O15: =IF((E15>0),ROUND((101+1000*(LOG10($E$5)-LOG10(E15)))*$A$2,0),0) -> 0 | P15: =IF((F15>0),ROUND((101+1000*(LOG10($F$5)-LOG10(F15)))*$A$2,0),0) -> 3689 | Q15: =IF((G15>0),ROUND((101+1000*(LOG10($G$5)-LOG10(G15)))*$A$2,0),0) -> 0 | R15: =IF((H15>0),ROUND((101+1000*(LOG10($H$5)-LOG10(H15)))*$A$2,0),0) -> 3493 | S15: =IF((I15>0),ROUND((101+1000*(LOG10($I$5)-LOG10(I15)))*$A$2,0),0) -> 2814 | T15: =IF((J15>0),ROUND((101+1000*(LOG10($J$5)-LOG10(J15)))*$A$2,0),0) -> 0 | U15: =IF((K15>0),ROUND((101+1000*(LOG10($K$5)-LOG10(K15)))*$A$2,0),0) -> 0 | V15: =IF((L15>0),ROUND((101+1000*(LOG10($L$5)-LOG10(L15)))*$A$2,0),0) -> 0 | W15: =IF((M15>0),ROUND((101+1000*(LOG10($M$5)-LOG10(M15)))*$A$2,0),0) -> 0 | X15: =IF((N15>0),ROUND((101+1000*(LOG10($N$5)-LOG10(N15)))*$A$2,0),0) -> 0 | Y15: =SUM(LARGE(O15:X15,1),LARGE(O15:X15,2),LARGE(O15:X15,3),LARGE(O15:X15,4)) -> 9996
A16: 10 | B16: 1.V | C16: 1705-0001 | D16: Haubold Petr | E16: 7 | F16: 8 | G16: 5 | H16: 16 | I16: 11 | O16: =IF((E16>0),ROUND((101+1000*(LOG10($E$5)-LOG10(E16)))*$A$2,0),0) -> 2814 | P16: =IF((F16>0),ROUND((101+1000*(LOG10($F$5)-LOG10(F16)))*$A$2,0),0) -> 2814 | Q16: =IF((G16>0),ROUND((101+1000*(LOG10($G$5)-LOG10(G16)))*$A$2,0),0) -> 2494 | R16: =IF((H16>0),ROUND((101+1000*(LOG10($H$5)-LOG10(H16)))*$A$2,0),0) -> 1385 | S16: =IF((I16>0),ROUND((101+1000*(LOG10($I$5)-LOG10(I16)))*$A$2,0),0) -> 1846 | T16: =IF((J16>0),ROUND((101+1000*(LOG10($J$5)-LOG10(J16)))*$A$2,0),0) -> 0 | U16: =IF((K16>0),ROUND((101+1000*(LOG10($K$5)-LOG10(K16)))*$A$2,0),0) -> 0 | V16: =IF((L16>0),ROUND((101+1000*(LOG10($L$5)-LOG10(L16)))*$A$2,0),0) -> 0 | W16: =IF((M16>0),ROUND((101+1000*(LOG10($M$5)-LOG10(M16)))*$A$2,0),0) -> 0 | X16: =IF((N16>0),ROUND((101+1000*(LOG10($N$5)-LOG10(N16)))*$A$2,0),0) -> 0 | Y16: =SUM(LARGE(O16:X16,1),LARGE(O16:X16,2),LARGE(O16:X16,3),LARGE(O16:X16,4)) -> 9968
A17: 11 | B17: 4.GM | C17: 1607-0119 | D17: Himmel Jiří | E17: 6 | F17: 10 | H17: 7 | O17: =IF((E17>0),ROUND((101+1000*(LOG10($E$5)-LOG10(E17)))*$A$2,0),0) -> 3283 | P17: =IF((F17>0),ROUND((101+1000*(LOG10($F$5)-LOG10(F17)))*$A$2,0),0) -> 2136 | Q17: =IF((G17>0),ROUND((101+1000*(LOG10($G$5)-LOG10(G17)))*$A$2,0),0) -> 0 | R17: =IF((H17>0),ROUND((101+1000*(LOG10($H$5)-LOG10(H17)))*$A$2,0),0) -> 3899 | S17: =IF((I17>0),ROUND((101+1000*(LOG10($I$5)-LOG10(I17)))*$A$2,0),0) -> 0 | T17: =IF((J17>0),ROUND((101+1000*(LOG10($J$5)-LOG10(J17)))*$A$2,0),0) -> 0 | U17: =IF((K17>0),ROUND((101+1000*(LOG10($K$5)-LOG10(K17)))*$A$2,0),0) -> 0 | V17: =IF((L17>0),ROUND((101+1000*(LOG10($L$5)-LOG10(L17)))*$A$2,0),0) -> 0 | W17: =IF((M17>0),ROUND((101+1000*(LOG10($M$5)-LOG10(M17)))*$A$2,0),0) -> 0 | X17: =IF((N17>0),ROUND((101+1000*(LOG10($N$5)-LOG10(N17)))*$A$2,0),0) -> 0 | Y17: =SUM(LARGE(O17:X17,1),LARGE(O17:X17,2),LARGE(O17:X17,3),LARGE(O17:X17,4)) -> 9318
A18: 12 | B18: 2.V | C18: 2110-0124 | D18: Vrána Petr | F18: 9 | G18: 7 | H18: 13 | I18: 9 | O18: =IF((E18>0),ROUND((101+1000*(LOG10($E$5)-LOG10(E18)))*$A$2,0),0) -> 0 | P18: =IF((F18>0),ROUND((101+1000*(LOG10($F$5)-LOG10(F18)))*$A$2,0),0) -> 2456 | Q18: =IF((G18>0),ROUND((101+1000*(LOG10($G$5)-LOG10(G18)))*$A$2,0),0) -> 1471 | R18: =IF((H18>0),ROUND((101+1000*(LOG10($H$5)-LOG10(H18)))*$A$2,0),0) -> 2017 | S18: =IF((I18>0),ROUND((101+1000*(LOG10($I$5)-LOG10(I18)))*$A$2,0),0) -> 2456 | T18: =IF((J18>0),ROUND((101+1000*(LOG10($J$5)-LOG10(J18)))*$A$2,0),0) -> 0 | U18: =IF((K18>0),ROUND((101+1000*(LOG10($K$5)-LOG10(K18)))*$A$2,0),0) -> 0 | V18: =IF((L18>0),ROUND((101+1000*(LOG10($L$5)-LOG10(L18)))*$A$2,0),0) -> 0 | W18: =IF((M18>0),ROUND((101+1000*(LOG10($M$5)-LOG10(M18)))*$A$2,0),0) -> 0 | X18: =IF((N18>0),ROUND((101+1000*(LOG10($N$5)-LOG10(N18)))*$A$2,0),0) -> 0 | Y18: =SUM(LARGE(O18:X18,1),LARGE(O18:X18,2),LARGE(O18:X18,3),LARGE(O18:X18,4)) -> 8400
A19: 13 | B19: 3.- | C19: 2001-0223 | D19: Dlouhá Martina | E19: 9 | F19: 15 | H19: 10 | I19: 10 | O19: =IF((E19>0),ROUND((101+1000*(LOG10($E$5)-LOG10(E19)))*$A$2,0),0) -> 2050 | P19: =IF((F19>0),ROUND((101+1000*(LOG10($F$5)-LOG10(F19)))*$A$2,0),0) -> 903 | Q19: =IF((G19>0),ROUND((101+1000*(LOG10($G$5)-LOG10(G19)))*$A$2,0),0) -> 0 | R19: =IF((H19>0),ROUND((101+1000*(LOG10($H$5)-LOG10(H19)))*$A$2,0),0) -> 2814 | S19: =IF((I19>0),ROUND((101+1000*(LOG10($I$5)-LOG10(I19)))*$A$2,0),0) -> 2136 | T19: =IF((J19>0),ROUND((101+1000*(LOG10($J$5)-LOG10(J19)))*$A$2,0),0) -> 0 | U19: =IF((K19>0),ROUND((101+1000*(LOG10($K$5)-LOG10(K19)))*$A$2,0),0) -> 0 | V19: =IF((L19>0),ROUND((101+1000*(LOG10($L$5)-LOG10(L19)))*$A$2,0),0) -> 0 | W19: =IF((M19>0),ROUND((101+1000*(LOG10($M$5)-LOG10(M19)))*$A$2,0),0) -> 0 | X19: =IF((N19>0),ROUND((101+1000*(LOG10($N$5)-LOG10(N19)))*$A$2,0),0) -> 0 | Y19: =SUM(LARGE(O19:X19,1),LARGE(O19:X19,2),LARGE(O19:X19,3),LARGE(O19:X19,4)) -> 7903
A20: 14 | B20: 5.GM | C20: 1503-0181 | D20: Hrubá Dagmar | E20: 11 | F20: 11 | H20: 15 | I20: 14 | O20: =IF((E20>0),ROUND((101+1000*(LOG10($E$5)-LOG10(E20)))*$A$2,0),0) -> 1440 | P20: =IF((F20>0),ROUND((101+1000*(LOG10($F$5)-LOG10(F20)))*$A$2,0),0) -> 1846 | Q20: =IF((G20>0),ROUND((101+1000*(LOG10($G$5)-LOG10(G20)))*$A$2,0),0) -> 0 | R20: =IF((H20>0),ROUND((101+1000*(LOG10($H$5)-LOG10(H20)))*$A$2,0),0) -> 1582 | S20: =IF((I20>0),ROUND((101+1000*(LOG10($I$5)-LOG10(I20)))*$A$2,0),0) -> 1113 | T20: =IF((J20>0),ROUND((101+1000*(LOG10($J$5)-LOG10(J20)))*$A$2,0),0) -> 0 | U20: =IF((K20>0),ROUND((101+1000*(LOG10($K$5)-LOG10(K20)))*$A$2,0),0) -> 0 | V20: =IF((L20>0),ROUND((101+1000*(LOG10($L$5)-LOG10(L20)))*$A$2,0),0) -> 0 | W20: =IF((M20>0),ROUND((101+1000*(LOG10($M$5)-LOG10(M20)))*$A$2,0),0) -> 0 | X20: =IF((N20>0),ROUND((101+1000*(LOG10($N$5)-LOG10(N20)))*$A$2,0),0) -> 0 | Y20: =SUM(LARGE(O20:X20,1),LARGE(O20:X20,2),LARGE(O20:X20,3),LARGE(O20:X20,4)) -> 5981
A21: 15 | B21: 3.V | C21: 1503-0180 | D21: Hrubý Roman | E21: 12 | F21: 16 | H21: 11 | I21: 15 | O21: =IF((E21>0),ROUND((101+1000*(LOG10($E$5)-LOG10(E21)))*$A$2,0),0) -> 1176 | P21: =IF((F21>0),ROUND((101+1000*(LOG10($F$5)-LOG10(F21)))*$A$2,0),0) -> 707 | Q21: =IF((G21>0),ROUND((101+1000*(LOG10($G$5)-LOG10(G21)))*$A$2,0),0) -> 0 | R21: =IF((H21>0),ROUND((101+1000*(LOG10($H$5)-LOG10(H21)))*$A$2,0),0) -> 2524 | S21: =IF((I21>0),ROUND((101+1000*(LOG10($I$5)-LOG10(I21)))*$A$2,0),0) -> 903 | T21: =IF((J21>0),ROUND((101+1000*(LOG10($J$5)-LOG10(J21)))*$A$2,0),0) -> 0 | U21: =IF((K21>0),ROUND((101+1000*(LOG10($K$5)-LOG10(K21)))*$A$2,0),0) -> 0 | V21: =IF((L21>0),ROUND((101+1000*(LOG10($L$5)-LOG10(L21)))*$A$2,0),0) -> 0 | W21: =IF((M21>0),ROUND((101+1000*(LOG10($M$5)-LOG10(M21)))*$A$2,0),0) -> 0 | X21: =IF((N21>0),ROUND((101+1000*(LOG10($N$5)-LOG10(N21)))*$A$2,0),0) -> 0 | Y21: =SUM(LARGE(O21:X21,1),LARGE(O21:X21,2),LARGE(O21:X21,3),LARGE(O21:X21,4)) -> 5310
A22: 16 | B22: 4.V | C22: 2405-0133 | D22: Mielec Lubomír | F22: 14 | G22: 9 | H22: 14 | I22: 12 | O22: =IF((E22>0),ROUND((101+1000*(LOG10($E$5)-LOG10(E22)))*$A$2,0),0) -> 0 | P22: =IF((F22>0),ROUND((101+1000*(LOG10($F$5)-LOG10(F22)))*$A$2,0),0) -> 1113 | Q22: =IF((G22>0),ROUND((101+1000*(LOG10($G$5)-LOG10(G22)))*$A$2,0),0) -> 707 | R22: =IF((H22>0),ROUND((101+1000*(LOG10($H$5)-LOG10(H22)))*$A$2,0),0) -> 1791 | S22: =IF((I22>0),ROUND((101+1000*(LOG10($I$5)-LOG10(I22)))*$A$2,0),0) -> 1582 | T22: =IF((J22>0),ROUND((101+1000*(LOG10($J$5)-LOG10(J22)))*$A$2,0),0) -> 0 | U22: =IF((K22>0),ROUND((101+1000*(LOG10($K$5)-LOG10(K22)))*$A$2,0),0) -> 0 | V22: =IF((L22>0),ROUND((101+1000*(LOG10($L$5)-LOG10(L22)))*$A$2,0),0) -> 0 | W22: =IF((M22>0),ROUND((101+1000*(LOG10($M$5)-LOG10(M22)))*$A$2,0),0) -> 0 | X22: =IF((N22>0),ROUND((101+1000*(LOG10($N$5)-LOG10(N22)))*$A$2,0),0) -> 0 | Y22: =SUM(LARGE(O22:X22,1),LARGE(O22:X22,2),LARGE(O22:X22,3),LARGE(O22:X22,4)) -> 5193
A23: 17 | B23: 5.V | C23: 2110-0006 | D23: Kučera Petr | E23: 14 | F23: 13 | G23: 8 | H23: 17 | I23: 16 | O23: =IF((E23>0),ROUND((101+1000*(LOG10($E$5)-LOG10(E23)))*$A$2,0),0) -> 707 | P23: =IF((F23>0),ROUND((101+1000*(LOG10($F$5)-LOG10(F23)))*$A$2,0),0) -> 1338 | Q23: =IF((G23>0),ROUND((101+1000*(LOG10($G$5)-LOG10(G23)))*$A$2,0),0) -> 1065 | R23: =IF((H23>0),ROUND((101+1000*(LOG10($H$5)-LOG10(H23)))*$A$2,0),0) -> 1201 | S23: =IF((I23>0),ROUND((101+1000*(LOG10($I$5)-LOG10(I23)))*$A$2,0),0) -> 707 | T23: =IF((J23>0),ROUND((101+1000*(LOG10($J$5)-LOG10(J23)))*$A$2,0),0) -> 0 | U23: =IF((K23>0),ROUND((101+1000*(LOG10($K$5)-LOG10(K23)))*$A$2,0),0) -> 0 | V23: =IF((L23>0),ROUND((101+1000*(LOG10($L$5)-LOG10(L23)))*$A$2,0),0) -> 0 | W23: =IF((M23>0),ROUND((101+1000*(LOG10($M$5)-LOG10(M23)))*$A$2,0),0) -> 0 | X23: =IF((N23>0),ROUND((101+1000*(LOG10($N$5)-LOG10(N23)))*$A$2,0),0) -> 0 | Y23: =SUM(LARGE(O23:X23,1),LARGE(O23:X23,2),LARGE(O23:X23,3),LARGE(O23:X23,4)) -> 4311
A24: 18 | B24: 6.V | C24: 7019-0359 | D24: Dolejš Rudolf | E24: 13 | H24: 12 | O24: =IF((E24>0),ROUND((101+1000*(LOG10($E$5)-LOG10(E24)))*$A$2,0),0) -> 932 | P24: =IF((F24>0),ROUND((101+1000*(LOG10($F$5)-LOG10(F24)))*$A$2,0),0) -> 0 | Q24: =IF((G24>0),ROUND((101+1000*(LOG10($G$5)-LOG10(G24)))*$A$2,0),0) -> 0 | R24: =IF((H24>0),ROUND((101+1000*(LOG10($H$5)-LOG10(H24)))*$A$2,0),0) -> 2260 | S24: =IF((I24>0),ROUND((101+1000*(LOG10($I$5)-LOG10(I24)))*$A$2,0),0) -> 0 | T24: =IF((J24>0),ROUND((101+1000*(LOG10($J$5)-LOG10(J24)))*$A$2,0),0) -> 0 | U24: =IF((K24>0),ROUND((101+1000*(LOG10($K$5)-LOG10(K24)))*$A$2,0),0) -> 0 | V24: =IF((L24>0),ROUND((101+1000*(LOG10($L$5)-LOG10(L24)))*$A$2,0),0) -> 0 | W24: =IF((M24>0),ROUND((101+1000*(LOG10($M$5)-LOG10(M24)))*$A$2,0),0) -> 0 | X24: =IF((N24>0),ROUND((101+1000*(LOG10($N$5)-LOG10(N24)))*$A$2,0),0) -> 0 | Y24: =SUM(LARGE(O24:X24,1),LARGE(O24:X24,2),LARGE(O24:X24,3),LARGE(O24:X24,4)) -> 3192
A25: 19 | B25: 7.V | C25: 1402-0397 | D25: Rott Petr | H25: 18 | O25: =IF((E25>0),ROUND((101+1000*(LOG10($E$5)-LOG10(E25)))*$A$2,0),0) -> 0 | P25: =IF((F25>0),ROUND((101+1000*(LOG10($F$5)-LOG10(F25)))*$A$2,0),0) -> 0 | Q25: =IF((G25>0),ROUND((101+1000*(LOG10($G$5)-LOG10(G25)))*$A$2,0),0) -> 0 | R25: =IF((H25>0),ROUND((101+1000*(LOG10($H$5)-LOG10(H25)))*$A$2,0),0) -> 1027 | S25: =IF((I25>0),ROUND((101+1000*(LOG10($I$5)-LOG10(I25)))*$A$2,0),0) -> 0 | T25: =IF((J25>0),ROUND((101+1000*(LOG10($J$5)-LOG10(J25)))*$A$2,0),0) -> 0 | U25: =IF((K25>0),ROUND((101+1000*(LOG10($K$5)-LOG10(K25)))*$A$2,0),0) -> 0 | V25: =IF((L25>0),ROUND((101+1000*(LOG10($L$5)-LOG10(L25)))*$A$2,0),0) -> 0 | W25: =IF((M25>0),ROUND((101+1000*(LOG10($M$5)-LOG10(M25)))*$A$2,0),0) -> 0 | X25: =IF((N25>0),ROUND((101+1000*(LOG10($N$5)-LOG10(N25)))*$A$2,0),0) -> 0 | Y25: =SUM(LARGE(O25:X25,1),LARGE(O25:X25,2),LARGE(O25:X25,3),LARGE(O25:X25,4)) -> 1027
A26: 20 | B26: 8.V | C26: 1503-0186 | D26: Hromádka Josef | H26: 19 | O26: =IF((E26>0),ROUND((101+1000*(LOG10($E$5)-LOG10(E26)))*$A$2,0),0) -> 0 | P26: =IF((F26>0),ROUND((101+1000*(LOG10($F$5)-LOG10(F26)))*$A$2,0),0) -> 0 | Q26: =IF((G26>0),ROUND((101+1000*(LOG10($G$5)-LOG10(G26)))*$A$2,0),0) -> 0 | R26: =IF((H26>0),ROUND((101+1000*(LOG10($H$5)-LOG10(H26)))*$A$2,0),0) -> 863 | S26: =IF((I26>0),ROUND((101+1000*(LOG10($I$5)-LOG10(I26)))*$A$2,0),0) -> 0 | T26: =IF((J26>0),ROUND((101+1000*(LOG10($J$5)-LOG10(J26)))*$A$2,0),0) -> 0 | U26: =IF((K26>0),ROUND((101+1000*(LOG10($K$5)-LOG10(K26)))*$A$2,0),0) -> 0 | V26: =IF((L26>0),ROUND((101+1000*(LOG10($L$5)-LOG10(L26)))*$A$2,0),0) -> 0 | W26: =IF((M26>0),ROUND((101+1000*(LOG10($M$5)-LOG10(M26)))*$A$2,0),0) -> 0 | X26: =IF((N26>0),ROUND((101+1000*(LOG10($N$5)-LOG10(N26)))*$A$2,0),0) -> 0 | Y26: =SUM(LARGE(O26:X26,1),LARGE(O26:X26,2),LARGE(O26:X26,3),LARGE(O26:X26,4)) -> 863
A27: 21 | B27: 9.V | C27: 1402-0334 | D27: Hrubý Jiří | H27: 20 | O27: =IF((E27>0),ROUND((101+1000*(LOG10($E$5)-LOG10(E27)))*$A$2,0),0) -> 0 | P27: =IF((F27>0),ROUND((101+1000*(LOG10($F$5)-LOG10(F27)))*$A$2,0),0) -> 0 | Q27: =IF((G27>0),ROUND((101+1000*(LOG10($G$5)-LOG10(G27)))*$A$2,0),0) -> 0 | R27: =IF((H27>0),ROUND((101+1000*(LOG10($H$5)-LOG10(H27)))*$A$2,0),0) -> 707 | S27: =IF((I27>0),ROUND((101+1000*(LOG10($I$5)-LOG10(I27)))*$A$2,0),0) -> 0 | T27: =IF((J27>0),ROUND((101+1000*(LOG10($J$5)-LOG10(J27)))*$A$2,0),0) -> 0 | U27: =IF((K27>0),ROUND((101+1000*(LOG10($K$5)-LOG10(K27)))*$A$2,0),0) -> 0 | V27: =IF((L27>0),ROUND((101+1000*(LOG10($L$5)-LOG10(L27)))*$A$2,0),0) -> 0 | W27: =IF((M27>0),ROUND((101+1000*(LOG10($M$5)-LOG10(M27)))*$A$2,0),0) -> 0 | X27: =IF((N27>0),ROUND((101+1000*(LOG10($N$5)-LOG10(N27)))*$A$2,0),0) -> 0 | Y27: =SUM(LARGE(O27:X27,1),LARGE(O27:X27,2),LARGE(O27:X27,3),LARGE(O27:X27,4)) -> 707
A28: 22 | O28: =IF((E28>0),ROUND((101+1000*(LOG10($E$5)-LOG10(E28)))*$A$2,0),0) -> 0 | P28: =IF((F28>0),ROUND((101+1000*(LOG10($F$5)-LOG10(F28)))*$A$2,0),0) -> 0 | Q28: =IF((G28>0),ROUND((101+1000*(LOG10($G$5)-LOG10(G28)))*$A$2,0),0) -> 0 | R28: =IF((H28>0),ROUND((101+1000*(LOG10($H$5)-LOG10(H28)))*$A$2,0),0) -> 0 | S28: =IF((I28>0),ROUND((101+1000*(LOG10($I$5)-LOG10(I28)))*$A$2,0),0) -> 0 | T28: =IF((J28>0),ROUND((101+1000*(LOG10($J$5)-LOG10(J28)))*$A$2,0),0) -> 0 | U28: =IF((K28>0),ROUND((101+1000*(LOG10($K$5)-LOG10(K28)))*$A$2,0),0) -> 0 | V28: =IF((L28>0),ROUND((101+1000*(LOG10($L$5)-LOG10(L28)))*$A$2,0),0) -> 0 | W28: =IF((M28>0),ROUND((101+1000*(LOG10($M$5)-LOG10(M28)))*$A$2,0),0) -> 0 | X28: =IF((N28>0),ROUND((101+1000*(LOG10($N$5)-LOG10(N28)))*$A$2,0),0) -> 0 | Y28: =SUM(LARGE(O28:X28,1),LARGE(O28:X28,2),LARGE(O28:X28,3),LARGE(O28:X28,4)) -> 0
A29: 23 | O29: =IF((E29>0),ROUND((101+1000*(LOG10($E$5)-LOG10(E29)))*$A$2,0),0) -> 0 | P29: =IF((F29>0),ROUND((101+1000*(LOG10($F$5)-LOG10(F29)))*$A$2,0),0) -> 0 | Q29: =IF((G29>0),ROUND((101+1000*(LOG10($G$5)-LOG10(G29)))*$A$2,0),0) -> 0 | R29: =IF((H29>0),ROUND((101+1000*(LOG10($H$5)-LOG10(H29)))*$A$2,0),0) -> 0 | S29: =IF((I29>0),ROUND((101+1000*(LOG10($I$5)-LOG10(I29)))*$A$2,0),0) -> 0 | T29: =IF((J29>0),ROUND((101+1000*(LOG10($J$5)-LOG10(J29)))*$A$2,0),0) -> 0 | U29: =IF((K29>0),ROUND((101+1000*(LOG10($K$5)-LOG10(K29)))*$A$2,0),0) -> 0 | V29: =IF((L29>0),ROUND((101+1000*(LOG10($L$5)-LOG10(L29)))*$A$2,0),0) -> 0 | W29: =IF((M29>0),ROUND((101+1000*(LOG10($M$5)-LOG10(M29)))*$A$2,0),0) -> 0 | X29: =IF((N29>0),ROUND((101+1000*(LOG10($N$5)-LOG10(N29)))*$A$2,0),0) -> 0 | Y29: =SUM(LARGE(O29:X29,1),LARGE(O29:X29,2),LARGE(O29:X29,3),LARGE(O29:X29,4)) -> 0
A30: 24 | O30: =IF((E30>0),ROUND((101+1000*(LOG10($E$5)-LOG10(E30)))*$A$2,0),0) -> 0 | P30: =IF((F30>0),ROUND((101+1000*(LOG10($F$5)-LOG10(F30)))*$A$2,0),0) -> 0 | Q30: =IF((G30>0),ROUND((101+1000*(LOG10($G$5)-LOG10(G30)))*$A$2,0),0) -> 0 | R30: =IF((H30>0),ROUND((101+1000*(LOG10($H$5)-LOG10(H30)))*$A$2,0),0) -> 0 | S30: =IF((I30>0),ROUND((101+1000*(LOG10($I$5)-LOG10(I30)))*$A$2,0),0) -> 0 | T30: =IF((J30>0),ROUND((101+1000*(LOG10($J$5)-LOG10(J30)))*$A$2,0),0) -> 0 | U30: =IF((K30>0),ROUND((101+1000*(LOG10($K$5)-LOG10(K30)))*$A$2,0),0) -> 0 | V30: =IF((L30>0),ROUND((101+1000*(LOG10($L$5)-LOG10(L30)))*$A$2,0),0) -> 0 | W30: =IF((M30>0),ROUND((101+1000*(LOG10($M$5)-LOG10(M30)))*$A$2,0),0) -> 0 | X30: =IF((N30>0),ROUND((101+1000*(LOG10($N$5)-LOG10(N30)))*$A$2,0),0) -> 0 | Y30: =SUM(LARGE(O30:X30,1),LARGE(O30:X30,2),LARGE(O30:X30,3),LARGE(O30:X30,4)) -> 0
A31: 25 | O31: =IF((E31>0),ROUND((101+1000*(LOG10($E$5)-LOG10(E31)))*$A$2,0),0) -> 0 | P31: =IF((F31>0),ROUND((101+1000*(LOG10($F$5)-LOG10(F31)))*$A$2,0),0) -> 0 | Q31: =IF((G31>0),ROUND((101+1000*(LOG10($G$5)-LOG10(G31)))*$A$2,0),0) -> 0 | R31: =IF((H31>0),ROUND((101+1000*(LOG10($H$5)-LOG10(H31)))*$A$2,0),0) -> 0 | S31: =IF((I31>0),ROUND((101+1000*(LOG10($I$5)-LOG10(I31)))*$A$2,0),0) -> 0 | T31: =IF((J31>0),ROUND((101+1000*(LOG10($J$5)-LOG10(J31)))*$A$2,0),0) -> 0 | U31: =IF((K31>0),ROUND((101+1000*(LOG10($K$5)-LOG10(K31)))*$A$2,0),0) -> 0 | V31: =IF((L31>0),ROUND((101+1000*(LOG10($L$5)-LOG10(L31)))*$A$2,0),0) -> 0 | W31: =IF((M31>0),ROUND((101+1000*(LOG10($M$5)-LOG10(M31)))*$A$2,0),0) -> 0 | X31: =IF((N31>0),ROUND((101+1000*(LOG10($N$5)-LOG10(N31)))*$A$2,0),0) -> 0 | Y31: =SUM(LARGE(O31:X31,1),LARGE(O31:X31,2),LARGE(O31:X31,3),LARGE(O31:X31,4)) -> 0
A32: 26 | O32: =IF((E32>0),ROUND((101+1000*(LOG10($E$5)-LOG10(E32)))*$A$2,0),0) -> 0 | P32: =IF((F32>0),ROUND((101+1000*(LOG10($F$5)-LOG10(F32)))*$A$2,0),0) -> 0 | Q32: =IF((G32>0),ROUND((101+1000*(LOG10($G$5)-LOG10(G32)))*$A$2,0),0) -> 0 | R32: =IF((H32>0),ROUND((101+1000*(LOG10($H$5)-LOG10(H32)))*$A$2,0),0) -> 0 | S32: =IF((I32>0),ROUND((101+1000*(LOG10($I$5)-LOG10(I32)))*$A$2,0),0) -> 0 | T32: =IF((J32>0),ROUND((101+1000*(LOG10($J$5)-LOG10(J32)))*$A$2,0),0) -> 0 | U32: =IF((K32>0),ROUND((101+1000*(LOG10($K$5)-LOG10(K32)))*$A$2,0),0) -> 0 | V32: =IF((L32>0),ROUND((101+1000*(LOG10($L$5)-LOG10(L32)))*$A$2,0),0) -> 0 | W32: =IF((M32>0),ROUND((101+1000*(LOG10($M$5)-LOG10(M32)))*$A$2,0),0) -> 0 | X32: =IF((N32>0),ROUND((101+1000*(LOG10($N$5)-LOG10(N32)))*$A$2,0),0) -> 0 | Y32: =SUM(LARGE(O32:X32,1),LARGE(O32:X32,2),LARGE(O32:X32,3),LARGE(O32:X32,4)) -> 0
A33: 27 | O33: =IF((E33>0),ROUND((101+1000*(LOG10($E$5)-LOG10(E33)))*$A$2,0),0) -> 0 | P33: =IF((F33>0),ROUND((101+1000*(LOG10($F$5)-LOG10(F33)))*$A$2,0),0) -> 0 | Q33: =IF((G33>0),ROUND((101+1000*(LOG10($G$5)-LOG10(G33)))*$A$2,0),0) -> 0 | R33: =IF((H33>0),ROUND((101+1000*(LOG10($H$5)-LOG10(H33)))*$A$2,0),0) -> 0 | S33: =IF((I33>0),ROUND((101+1000*(LOG10($I$5)-LOG10(I33)))*$A$2,0),0) -> 0 | T33: =IF((J33>0),ROUND((101+1000*(LOG10($J$5)-LOG10(J33)))*$A$2,0),0) -> 0 | U33: =IF((K33>0),ROUND((101+1000*(LOG10($K$5)-LOG10(K33)))*$A$2,0),0) -> 0 | V33: =IF((L33>0),ROUND((101+1000*(LOG10($L$5)-LOG10(L33)))*$A$2,0),0) -> 0 | W33: =IF((M33>0),ROUND((101+1000*(LOG10($M$5)-LOG10(M33)))*$A$2,0),0) -> 0 | X33: =IF((N33>0),ROUND((101+1000*(LOG10($N$5)-LOG10(N33)))*$A$2,0),0) -> 0 | Y33: =SUM(LARGE(O33:X33,1),LARGE(O33:X33,2),LARGE(O33:X33,3),LARGE(O33:X33,4)) -> 0
A34: 28 | O34: =IF((E34>0),ROUND((101+1000*(LOG10($E$5)-LOG10(E34)))*$A$2,0),0) -> 0 | P34: =IF((F34>0),ROUND((101+1000*(LOG10($F$5)-LOG10(F34)))*$A$2,0),0) -> 0 | Q34: =IF((G34>0),ROUND((101+1000*(LOG10($G$5)-LOG10(G34)))*$A$2,0),0) -> 0 | R34: =IF((H34>0),ROUND((101+1000*(LOG10($H$5)-LOG10(H34)))*$A$2,0),0) -> 0 | S34: =IF((I34>0),ROUND((101+1000*(LOG10($I$5)-LOG10(I34)))*$A$2,0),0) -> 0 | T34: =IF((J34>0),ROUND((101+1000*(LOG10($J$5)-LOG10(J34)))*$A$2,0),0) -> 0 | U34: =IF((K34>0),ROUND((101+1000*(LOG10($K$5)-LOG10(K34)))*$A$2,0),0) -> 0 | V34: =IF((L34>0),ROUND((101+1000*(LOG10($L$5)-LOG10(L34)))*$A$2,0),0) -> 0 | W34: =IF((M34>0),ROUND((101+1000*(LOG10($M$5)-LOG10(M34)))*$A$2,0),0) -> 0 | X34: =IF((N34>0),ROUND((101+1000*(LOG10($N$5)-LOG10(N34)))*$A$2,0),0) -> 0 | Y34: =SUM(LARGE(O34:X34,1),LARGE(O34:X34,2),LARGE(O34:X34,3)) -> 0
A35: 29 | O35: =IF((E35>0),ROUND((101+1000*(LOG10($E$5)-LOG10(E35)))*$A$2,0),0) -> 0 | P35: =IF((F35>0),ROUND((101+1000*(LOG10($F$5)-LOG10(F35)))*$A$2,0),0) -> 0 | Q35: =IF((G35>0),ROUND((101+1000*(LOG10($G$5)-LOG10(G35)))*$A$2,0),0) -> 0 | R35: =IF((H35>0),ROUND((101+1000*(LOG10($H$5)-LOG10(H35)))*$A$2,0),0) -> 0 | S35: =IF((I35>0),ROUND((101+1000*(LOG10($I$5)-LOG10(I35)))*$A$2,0),0) -> 0 | T35: =IF((J35>0),ROUND((101+1000*(LOG10($J$5)-LOG10(J35)))*$A$2,0),0) -> 0 | U35: =IF((K35>0),ROUND((101+1000*(LOG10($K$5)-LOG10(K35)))*$A$2,0),0) -> 0 | V35: =IF((L35>0),ROUND((101+1000*(LOG10($L$5)-LOG10(L35)))*$A$2,0),0) -> 0 | W35: =IF((M35>0),ROUND((101+1000*(LOG10($M$5)-LOG10(M35)))*$A$2,0),0) -> 0 | X35: =IF((N35>0),ROUND((101+1000*(LOG10($N$5)-LOG10(N35)))*$A$2,0),0) -> 0 | Y35: =SUM(LARGE(O35:X35,1),LARGE(O35:X35,2),LARGE(O35:X35,3)) -> 0

Sheet Pohár ČWA
A1: 3 | B1: 2018 | C1: Pouze členi | D1: A | I1: Věk min: | M1: Rok: | N1: 2013 | W1: created by: Zdeněk Vykydal
A2: 3 | D2: koeficient pro logaritmické body | I2: Věk max:
A4: RAC - Pohár ČWA 2018 | E4: 182120 | F4: 182132 | G4: 181506 | H4: 181507 | I4: 182209 | J4: 181720 | O4: Starobrno Cup | P4: Veterán Cup | Q4: Sdružený krajský přebor | R4: Senior Cup | S4: Tvarůžková regata | T4: Ski regata
D5: Poč. záv./CTL | E5: 12 | F5: 11 | G5: 11 | H5: 10 | I5: 10 | J5: 0 | O5: 182120 | P5: 182132 | Q5: 181506 | R5: 181507 | S5: 182209 | T5: 181720 | X5: =IF(N4,N4,"") -> 
A6: Poř. celk. | B6: Kat. | C6: Reg. číslo | D6: Jméno | E6: Poř. | F6: Poř. | G6: Poř. | H6: Poř. | I6: Poř. | J6: Poř. | K6: Poř. | L6: Poř. | M6: Poř. | N6: Poř. | O6: Body | P6: Body | Q6: Body | R6: Body | S6: Body | T6: Body | U6: Body | V6: Body | W6: Body | X6: Body | Y6: Celkem
A7: 1 | B7: 1.- | C7: 2110-0050 | D7: Kučera Petr | E7: 2 | F7: 1 | I7: 2 | O7: =IF((E7>0),ROUND((101+1000*(LOG10($E$5)-LOG10(E7)))*$A$2,0),0) -> 2637 | P7: =IF((F7>0),ROUND((101+1000*(LOG10($F$5)-LOG10(F7)))*$A$2,0),0) -> 3427 | Q7: =IF((G7>0),ROUND((101+1000*(LOG10($G$5)-LOG10(G7)))*$A$2,0),0) -> 0 | R7: =IF((H7>0),ROUND((101+1000*(LOG10($H$5)-LOG10(H7)))*$A$2,0),0) -> 0 | S7: =IF((I7>0),ROUND((101+1000*(LOG10($I$5)-LOG10(I7)))*$A$2,0),0) -> 2400 | T7: =IF((J7>0),ROUND((101+1000*(LOG10($J$5)-LOG10(J7)))*$A$2,0),0) -> 0 | U7: =IF((K7>0),ROUND((101+1000*(LOG10($K$5)-LOG10(K7)))*$A$2,0),0) -> 0 | V7: =IF((L7>0),ROUND((101+1000*(LOG10($L$5)-LOG10(L7)))*$A$2,0),0) -> 0 | W7: =IF((M7>0),ROUND((101+1000*(LOG10($M$5)-LOG10(M7)))*$A$2,0),0) -> 0 | X7: =IF((N7>0),ROUND((101+1000*(LOG10($N$5)-LOG10(N7)))*$A$2,0),0) -> 0 | Y7: =SUM(LARGE(O7:X7,1),LARGE(O7:X7,2),LARGE(O7:X7,3),LARGE(O7:X7,4)) -> 8464
A8: 2 | B8: 1.M | C8: 2001-0096 | D8: Kamenský Radim | E8: 1 | I8: 1 | O8: =IF((E8>0),ROUND((101+1000*(LOG10($E$5)-LOG10(E8)))*$A$2,0),0) -> 3541 | P8: =IF((F8>0),ROUND((101+1000*(LOG10($F$5)-LOG10(F8)))*$A$2,0),0) -> 0 | Q8: =IF((G8>0),ROUND((101+1000*(LOG10($G$5)-LOG10(G8)))*$A$2,0),0) -> 0 | R8: =IF((H8>0),ROUND((101+1000*(LOG10($H$5)-LOG10(H8)))*$A$2,0),0) -> 0 | S8: =IF((I8>0),ROUND((101+1000*(LOG10($I$5)-LOG10(I8)))*$A$2,0),0) -> 3303 | T8: =IF((J8>0),ROUND((101+1000*(LOG10($J$5)-LOG10(J8)))*$A$2,0),0) -> 0 | U8: =IF((K8>0),ROUND((101+1000*(LOG10($K$5)-LOG10(K8)))*$A$2,0),0) -> 0 | V8: =IF((L8>0),ROUND((101+1000*(LOG10($L$5)-LOG10(L8)))*$A$2,0),0) -> 0 | W8: =IF((M8>0),ROUND((101+1000*(LOG10($M$5)-LOG10(M8)))*$A$2,0),0) -> 0 | X8: =IF((N8>0),ROUND((101+1000*(LOG10($N$5)-LOG10(N8)))*$A$2,0),0) -> 0 | Y8: =SUM(LARGE(O8:X8,1),LARGE(O8:X8,2),LARGE(O8:X8,3),LARGE(O8:X8,4)) -> 6844
A9: 3 | B9: 2.M | C9: 2413-0001 | D9: Král Jiří | E9: 3 | F9: 2 | I9: 3 | O9: =IF((E9>0),ROUND((101+1000*(LOG10($E$5)-LOG10(E9)))*$A$2,0),0) -> 2109 | P9: =IF((F9>0),ROUND((101+1000*(LOG10($F$5)-LOG10(F9)))*$A$2,0),0) -> 2524 | Q9: =IF((G9>0),ROUND((101+1000*(LOG10($G$5)-LOG10(G9)))*$A$2,0),0) -> 0 | R9: =IF((H9>0),ROUND((101+1000*(LOG10($H$5)-LOG10(H9)))*$A$2,0),0) -> 0 | S9: =IF((I9>0),ROUND((101+1000*(LOG10($I$5)-LOG10(I9)))*$A$2,0),0) -> 1872 | T9: =IF((J9>0),ROUND((101+1000*(LOG10($J$5)-LOG10(J9)))*$A$2,0),0) -> 0 | U9: =IF((K9>0),ROUND((101+1000*(LOG10($K$5)-LOG10(K9)))*$A$2,0),0) -> 0 | V9: =IF((L9>0),ROUND((101+1000*(LOG10($L$5)-LOG10(L9)))*$A$2,0),0) -> 0 | W9: =IF((M9>0),ROUND((101+1000*(LOG10($M$5)-LOG10(M9)))*$A$2,0),0) -> 0 | X9: =IF((N9>0),ROUND((101+1000*(LOG10($N$5)-LOG10(N9)))*$A$2,0),0) -> 0 | Y9: =SUM(LARGE(O9:X9,1),LARGE(O9:X9,2),LARGE(O9:X9,3),LARGE(O9:X9,4)) -> 6505
A10: 4 | B10: 1.V | C10: 1503-0180 | D10: Hrubý Roman | E10: 10 | F10: 4 | G10: 7 | H10: 2 | I10: 10 | O10: =IF((E10>0),ROUND((101+1000*(LOG10($E$5)-LOG10(E10)))*$A$2,0),0) -> 541 | P10: =IF((F10>0),ROUND((101+1000*(LOG10($F$5)-LOG10(F10)))*$A$2,0),0) -> 1621 | Q10: =IF((G10>0),ROUND((101+1000*(LOG10($G$5)-LOG10(G10)))*$A$2,0),0) -> 892 | R10: =IF((H10>0),ROUND((101+1000*(LOG10($H$5)-LOG10(H10)))*$A$2,0),0) -> 2400 | S10: =IF((I10>0),ROUND((101+1000*(LOG10($I$5)-LOG10(I10)))*$A$2,0),0) -> 303 | T10: =IF((J10>0),ROUND((101+1000*(LOG10($J$5)-LOG10(J10)))*$A$2,0),0) -> 0 | U10: =IF((K10>0),ROUND((101+1000*(LOG10($K$5)-LOG10(K10)))*$A$2,0),0) -> 0 | V10: =IF((L10>0),ROUND((101+1000*(LOG10($L$5)-LOG10(L10)))*$A$2,0),0) -> 0 | W10: =IF((M10>0),ROUND((101+1000*(LOG10($M$5)-LOG10(M10)))*$A$2,0),0) -> 0 | X10: =IF((N10>0),ROUND((101+1000*(LOG10($N$5)-LOG10(N10)))*$A$2,0),0) -> 0 | Y10: =SUM(LARGE(O10:X10,1),LARGE(O10:X10,2),LARGE(O10:X10,3),LARGE(O10:X10,4)) -> 5454
A11: 5 | B11: 2.V | C11: 7019-0359 | D11: Dolejš Rudolf | G11: 1 | H11: 3 | O11: =IF((E11>0),ROUND((101+1000*(LOG10($E$5)-LOG10(E11)))*$A$2,0),0) -> 0 | P11: =IF((F11>0),ROUND((101+1000*(LOG10($F$5)-LOG10(F11)))*$A$2,0),0) -> 0 | Q11: =IF((G11>0),ROUND((101+1000*(LOG10($G$5)-LOG10(G11)))*$A$2,0),0) -> 3427 | R11: =IF((H11>0),ROUND((101+1000*(LOG10($H$5)-LOG10(H11)))*$A$2,0),0) -> 1872 | S11: =IF((I11>0),ROUND((101+1000*(LOG10($I$5)-LOG10(I11)))*$A$2,0),0) -> 0 | T11: =IF((J11>0),ROUND((101+1000*(LOG10($J$5)-LOG10(J11)))*$A$2,0),0) -> 0 | U11: =IF((K11>0),ROUND((101+1000*(LOG10($K$5)-LOG10(K11)))*$A$2,0),0) -> 0 | V11: =IF((L11>0),ROUND((101+1000*(LOG10($L$5)-LOG10(L11)))*$A$2,0),0) -> 0 | W11: =IF((M11>0),ROUND((101+1000*(LOG10($M$5)-LOG10(M11)))*$A$2,0),0) -> 0 | X11: =IF((N11>0),ROUND((101+1000*(LOG10($N$5)-LOG10(N11)))*$A$2,0),0) -> 0 | Y11: =SUM(LARGE(O11:X11,1),LARGE(O11:X11,2),LARGE(O11:X11,3),LARGE(O11:X11,4)) -> 5299
A12: 6 | B12: 1.GM | C12: 7019-0144 | D12: Hrubý Pavel | G12: 4 | H12: 1 | O12: =IF((E12>0),ROUND((101+1000*(LOG10($E$5)-LOG10(E12)))*$A$2,0),0) -> 0 | P12: =IF((F12>0),ROUND((101+1000*(LOG10($F$5)-LOG10(F12)))*$A$2,0),0) -> 0 | Q12: =IF((G12>0),ROUND((101+1000*(LOG10($G$5)-LOG10(G12)))*$A$2,0),0) -> 1621 | R12: =IF((H12>0),ROUND((101+1000*(LOG10($H$5)-LOG10(H12)))*$A$2,0),0) -> 3303 | S12: =IF((I12>0),ROUND((101+1000*(LOG10($I$5)-LOG10(I12)))*$A$2,0),0) -> 0 | T12: =IF((J12>0),ROUND((101+1000*(LOG10($J$5)-LOG10(J12)))*$A$2,0),0) -> 0 | U12: =IF((K12>0),ROUND((101+1000*(LOG10($K$5)-LOG10(K12)))*$A$2,0),0) -> 0 | V12: =IF((L12>0),ROUND((101+1000*(LOG10($L$5)-LOG10(L12)))*$A$2,0),0) -> 0 | W12: =IF((M12>0),ROUND((101+1000*(LOG10($M$5)-LOG10(M12)))*$A$2,0),0) -> 0 | X12: =IF((N12>0),ROUND((101+1000*(LOG10($N$5)-LOG10(N12)))*$A$2,0),0) -> 0 | Y12: =SUM(LARGE(O12:X12,1),LARGE(O12:X12,2),LARGE(O12:X12,3),LARGE(O12:X12,4)) -> 4924
A13: 7 | B13: 3.V | C13: 2405-0133 | D13: Mielec Lubomír | E13: 7 | F13: 5 | H13: 6 | I13: 8 | O13: =IF((E13>0),ROUND((101+1000*(LOG10($E$5)-LOG10(E13)))*$A$2,0),0) -> 1005 | P13: =IF((F13>0),ROUND((101+1000*(LOG10($F$5)-LOG10(F13)))*$A$2,0),0) -> 1330 | Q13: =IF((G13>0),ROUND((101+1000*(LOG10($G$5)-LOG10(G13)))*$A$2,0),0) -> 0 | R13: =IF((H13>0),ROUND((101+1000*(LOG10($H$5)-LOG10(H13)))*$A$2,0),0) -> 969 | S13: =IF((I13>0),ROUND((101+1000*(LOG10($I$5)-LOG10(I13)))*$A$2,0),0) -> 594 | T13: =IF((J13>0),ROUND((101+1000*(LOG10($J$5)-LOG10(J13)))*$A$2,0),0) -> 0 | U13: =IF((K13>0),ROUND((101+1000*(LOG10($K$5)-LOG10(K13)))*$A$2,0),0) -> 0 | V13: =IF((L13>0),ROUND((101+1000*(LOG10($L$5)-LOG10(L13)))*$A$2,0),0) -> 0 | W13: =IF((M13>0),ROUND((101+1000*(LOG10($M$5)-LOG10(M13)))*$A$2,0),0) -> 0 | X13: =IF((N13>0),ROUND((101+1000*(LOG10($N$5)-LOG10(N13)))*$A$2,0),0) -> 0 | Y13: =SUM(LARGE(O13:X13,1),LARGE(O13:X13,2),LARGE(O13:X13,3),LARGE(O13:X13,4)) -> 3898
A14: 8 | B14: 2.GM | C14: 1503-0181 | D14: Hrubá Dagmar | E14: 9 | F14: 6 | G14: 5 | H14: 7 | I14: 9 | O14: =IF((E14>0),ROUND((101+1000*(LOG10($E$5)-LOG10(E14)))*$A$2,0),0) -> 678 | P14: =IF((F14>0),ROUND((101+1000*(LOG10($F$5)-LOG10(F14)))*$A$2,0),0) -> 1093 | Q14: =IF((G14>0),ROUND((101+1000*(LOG10($G$5)-LOG10(G14)))*$A$2,0),0) -> 1330 | R14: =IF((H14>0),ROUND((101+1000*(LOG10($H$5)-LOG10(H14)))*$A$2,0),0) -> 768 | S14: =IF((I14>0),ROUND((101+1000*(LOG10($I$5)-LOG10(I14)))*$A$2,0),0) -> 440 | T14: =IF((J14>0),ROUND((101+1000*(LOG10($J$5)-LOG10(J14)))*$A$2,0),0) -> 0 | U14: =IF((K14>0),ROUND((101+1000*(LOG10($K$5)-LOG10(K14)))*$A$2,0),0) -> 0 | V14: =IF((L14>0),ROUND((101+1000*(LOG10($L$5)-LOG10(L14)))*$A$2,0),0) -> 0 | W14: =IF((M14>0),ROUND((101+1000*(LOG10($M$5)-LOG10(M14)))*$A$2,0),0) -> 0 | X14: =IF((N14>0),ROUND((101+1000*(LOG10($N$5)-LOG10(N14)))*$A$2,0),0) -> 0 | Y14: =SUM(LARGE(O14:X14,1),LARGE(O14:X14,2),LARGE(O14:X14,3),LARGE(O14:X14,4)) -> 3869
A15: 9 | B15: 3.GM | C15: 2101-0375 | D15: Pospíšil Martin | E15: 5 | F15: 3 | O15: =IF((E15>0),ROUND((101+1000*(LOG10($E$5)-LOG10(E15)))*$A$2,0),0) -> 1444 | P15: =IF((F15>0),ROUND((101+1000*(LOG10($F$5)-LOG10(F15)))*$A$2,0),0) -> 1996 | Q15: =IF((G15>0),ROUND((101+1000*(LOG10($G$5)-LOG10(G15)))*$A$2,0),0) -> 0 | R15: =IF((H15>0),ROUND((101+1000*(LOG10($H$5)-LOG10(H15)))*$A$2,0),0) -> 0 | S15: =IF((I15>0),ROUND((101+1000*(LOG10($I$5)-LOG10(I15)))*$A$2,0),0) -> 0 | T15: =IF((J15>0),ROUND((101+1000*(LOG10($J$5)-LOG10(J15)))*$A$2,0),0) -> 0 | U15: =IF((K15>0),ROUND((101+1000*(LOG10($K$5)-LOG10(K15)))*$A$2,0),0) -> 0 | V15: =IF((L15>0),ROUND((101+1000*(LOG10($L$5)-LOG10(L15)))*$A$2,0),0) -> 0 | W15: =IF((M15>0),ROUND((101+1000*(LOG10($M$5)-LOG10(M15)))*$A$2,0),0) -> 0 | X15: =IF((N15>0),ROUND((101+1000*(LOG10($N$5)-LOG10(N15)))*$A$2,0),0) -> 0 | Y15: =SUM(LARGE(O15:X15,1),LARGE(O15:X15,2),LARGE(O15:X15,3),LARGE(O15:X15,4)) -> 3440
A16: 10 | B16: 4.V | C16: 2110-0006 | D16: Kučera Petr | E16: 8 | F16: 11 | I16: 4 | O16: =IF((E16>0),ROUND((101+1000*(LOG10($E$5)-LOG10(E16)))*$A$2,0),0) -> 831 | P16: =IF((F16>0),ROUND((101+1000*(LOG10($F$5)-LOG10(F16)))*$A$2,0),0) -> 303 | Q16: =IF((G16>0),ROUND((101+1000*(LOG10($G$5)-LOG10(G16)))*$A$2,0),0) -> 0 | R16: =IF((H16>0),ROUND((101+1000*(LOG10($H$5)-LOG10(H16)))*$A$2,0),0) -> 0 | S16: =IF((I16>0),ROUND((101+1000*(LOG10($I$5)-LOG10(I16)))*$A$2,0),0) -> 1497 | T16: =IF((J16>0),ROUND((101+1000*(LOG10($J$5)-LOG10(J16)))*$A$2,0),0) -> 0 | U16: =IF((K16>0),ROUND((101+1000*(LOG10($K$5)-LOG10(K16)))*$A$2,0),0) -> 0 | V16: =IF((L16>0),ROUND((101+1000*(LOG10($L$5)-LOG10(L16)))*$A$2,0),0) -> 0 | W16: =IF((M16>0),ROUND((101+1000*(LOG10($M$5)-LOG10(M16)))*$A$2,0),0) -> 0 | X16: =IF((N16>0),ROUND((101+1000*(LOG10($N$5)-LOG10(N16)))*$A$2,0),0) -> 0 | Y16: =SUM(LARGE(O16:X16,1),LARGE(O16:X16,2),LARGE(O16:X16,3),LARGE(O16:X16,4)) -> 2631
A17: 11 | B17: 5.V | C17: 1705-0001 | D17: Haubold Petr | G17: 6 | H17: 4 | O17: =IF((E17>0),ROUND((101+1000*(LOG10($E$5)-LOG10(E17)))*$A$2,0),0) -> 0 | P17: =IF((F17>0),ROUND((101+1000*(LOG10($F$5)-LOG10(F17)))*$A$2,0),0) -> 0 | Q17: =IF((G17>0),ROUND((101+1000*(LOG10($G$5)-LOG10(G17)))*$A$2,0),0) -> 1093 | R17: =IF((H17>0),ROUND((101+1000*(LOG10($H$5)-LOG10(H17)))*$A$2,0),0) -> 1497 | S17: =IF((I17>0),ROUND((101+1000*(LOG10($I$5)-LOG10(I17)))*$A$2,0),0) -> 0 | T17: =IF((J17>0),ROUND((101+1000*(LOG10($J$5)-LOG10(J17)))*$A$2,0),0) -> 0 | U17: =IF((K17>0),ROUND((101+1000*(LOG10($K$5)-LOG10(K17)))*$A$2,0),0) -> 0 | V17: =IF((L17>0),ROUND((101+1000*(LOG10($L$5)-LOG10(L17)))*$A$2,0),0) -> 0 | W17: =IF((M17>0),ROUND((101+1000*(LOG10($M$5)-LOG10(M17)))*$A$2,0),0) -> 0 | X17: =IF((N17>0),ROUND((101+1000*(LOG10($N$5)-LOG10(N17)))*$A$2,0),0) -> 0 | Y17: =SUM(LARGE(O17:X17,1),LARGE(O17:X17,2),LARGE(O17:X17,3),LARGE(O17:X17,4)) -> 2590
A18: 12 | B18: 3.M | C18: 2110-0111 | D18: Skřepek Jan | E18: 4 | F18: 8 | O18: =IF((E18>0),ROUND((101+1000*(LOG10($E$5)-LOG10(E18)))*$A$2,0),0) -> 1734 | P18: =IF((F18>0),ROUND((101+1000*(LOG10($F$5)-LOG10(F18)))*$A$2,0),0) -> 718 | Q18: =IF((G18>0),ROUND((101+1000*(LOG10($G$5)-LOG10(G18)))*$A$2,0),0) -> 0 | R18: =IF((H18>0),ROUND((101+1000*(LOG10($H$5)-LOG10(H18)))*$A$2,0),0) -> 0 | S18: =IF((I18>0),ROUND((101+1000*(LOG10($I$5)-LOG10(I18)))*$A$2,0),0) -> 0 | T18: =IF((J18>0),ROUND((101+1000*(LOG10($J$5)-LOG10(J18)))*$A$2,0),0) -> 0 | U18: =IF((K18>0),ROUND((101+1000*(LOG10($K$5)-LOG10(K18)))*$A$2,0),0) -> 0 | V18: =IF((L18>0),ROUND((101+1000*(LOG10($L$5)-LOG10(L18)))*$A$2,0),0) -> 0 | W18: =IF((M18>0),ROUND((101+1000*(LOG10($M$5)-LOG10(M18)))*$A$2,0),0) -> 0 | X18: =IF((N18>0),ROUND((101+1000*(LOG10($N$5)-LOG10(N18)))*$A$2,0),0) -> 0 | Y18: =SUM(LARGE(O18:X18,1),LARGE(O18:X18,2),LARGE(O18:X18,3),LARGE(O18:X18,4)) -> 2452
A19: 13 | B19: 6.V | C19: 2110-0124 | D19: Vrána Petr | E19: 6 | I19: 6 | O19: =IF((E19>0),ROUND((101+1000*(LOG10($E$5)-LOG10(E19)))*$A$2,0),0) -> 1206 | P19: =IF((F19>0),ROUND((101+1000*(LOG10($F$5)-LOG10(F19)))*$A$2,0),0) -> 0 | Q19: =IF((G19>0),ROUND((101+1000*(LOG10($G$5)-LOG10(G19)))*$A$2,0),0) -> 0 | R19: =IF((H19>0),ROUND((101+1000*(LOG10($H$5)-LOG10(H19)))*$A$2,0),0) -> 0 | S19: =IF((I19>0),ROUND((101+1000*(LOG10($I$5)-LOG10(I19)))*$A$2,0),0) -> 969 | T19: =IF((J19>0),ROUND((101+1000*(LOG10($J$5)-LOG10(J19)))*$A$2,0),0) -> 0 | U19: =IF((K19>0),ROUND((101+1000*(LOG10($K$5)-LOG10(K19)))*$A$2,0),0) -> 0 | V19: =IF((L19>0),ROUND((101+1000*(LOG10($L$5)-LOG10(L19)))*$A$2,0),0) -> 0 | W19: =IF((M19>0),ROUND((101+1000*(LOG10($M$5)-LOG10(M19)))*$A$2,0),0) -> 0 | X19: =IF((N19>0),ROUND((101+1000*(LOG10($N$5)-LOG10(N19)))*$A$2,0),0) -> 0 | Y19: =SUM(LARGE(O19:X19,1),LARGE(O19:X19,2),LARGE(O19:X19,3),LARGE(O19:X19,4)) -> 2175
A20: 14 | B20: 7.V | C20: 2204-0021 | D20: Štrambach Ladislav | F20: 7 | I20: 7 | O20: =IF((E20>0),ROUND((101+1000*(LOG10($E$5)-LOG10(E20)))*$A$2,0),0) -> 0 | P20: =IF((F20>0),ROUND((101+1000*(LOG10($F$5)-LOG10(F20)))*$A$2,0),0) -> 892 | Q20: =IF((G20>0),ROUND((101+1000*(LOG10($G$5)-LOG10(G20)))*$A$2,0),0) -> 0 | R20: =IF((H20>0),ROUND((101+1000*(LOG10($H$5)-LOG10(H20)))*$A$2,0),0) -> 0 | S20: =IF((I20>0),ROUND((101+1000*(LOG10($I$5)-LOG10(I20)))*$A$2,0),0) -> 768 | T20: =IF((J20>0),ROUND((101+1000*(LOG10($J$5)-LOG10(J20)))*$A$2,0),0) -> 0 | U20: =IF((K20>0),ROUND((101+1000*(LOG10($K$5)-LOG10(K20)))*$A$2,0),0) -> 0 | V20: =IF((L20>0),ROUND((101+1000*(LOG10($L$5)-LOG10(L20)))*$A$2,0),0) -> 0 | W20: =IF((M20>0),ROUND((101+1000*(LOG10($M$5)-LOG10(M20)))*$A$2,0),0) -> 0 | X20: =IF((N20>0),ROUND((101+1000*(LOG10($N$5)-LOG10(N20)))*$A$2,0),0) -> 0 | Y20: =SUM(LARGE(O20:X20,1),LARGE(O20:X20,2),LARGE(O20:X20,3),LARGE(O20:X20,4)) -> 1660
A21: 15 | B21: 4.M | C21: 2001-0086 | D21: Kamenský Pavel | E21: 12 | I21: 5 | O21: =IF((E21>0),ROUND((101+1000*(LOG10($E$5)-LOG10(E21)))*$A$2,0),0) -> 303 | P21: =IF((F21>0),ROUND((101+1000*(LOG10($F$5)-LOG10(F21)))*$A$2,0),0) -> 0 | Q21: =IF((G21>0),ROUND((101+1000*(LOG10($G$5)-LOG10(G21)))*$A$2,0),0) -> 0 | R21: =IF((H21>0),ROUND((101+1000*(LOG10($H$5)-LOG10(H21)))*$A$2,0),0) -> 0 | S21: =IF((I21>0),ROUND((101+1000*(LOG10($I$5)-LOG10(I21)))*$A$2,0),0) -> 1206 | T21: =IF((J21>0),ROUND((101+1000*(LOG10($J$5)-LOG10(J21)))*$A$2,0),0) -> 0 | U21: =IF((K21>0),ROUND((101+1000*(LOG10($K$5)-LOG10(K21)))*$A$2,0),0) -> 0 | V21: =IF((L21>0),ROUND((101+1000*(LOG10($L$5)-LOG10(L21)))*$A$2,0),0) -> 0 | W21: =IF((M21>0),ROUND((101+1000*(LOG10($M$5)-LOG10(M21)))*$A$2,0),0) -> 0 | X21: =IF((N21>0),ROUND((101+1000*(LOG10($N$5)-LOG10(N21)))*$A$2,0),0) -> 0 | Y21: =SUM(LARGE(O21:X21,1),LARGE(O21:X21,2),LARGE(O21:X21,3),LARGE(O21:X21,4)) -> 1509
A22: 17 | B22: 4.GM | C22: 1526-0044 | D22: Mrůzek Pavel | H22: 5 | O22: =IF((E22>0),ROUND((101+1000*(LOG10($E$5)-LOG10(E22)))*$A$2,0),0) -> 0 | P22: =IF((F22>0),ROUND((101+1000*(LOG10($F$5)-LOG10(F22)))*$A$2,0),0) -> 0 | Q22: =IF((G22>0),ROUND((101+1000*(LOG10($G$5)-LOG10(G22)))*$A$2,0),0) -> 0 | R22: =IF((H22>0),ROUND((101+1000*(LOG10($H$5)-LOG10(H22)))*$A$2,0),0) -> 1206 | S22: =IF((I22>0),ROUND((101+1000*(LOG10($I$5)-LOG10(I22)))*$A$2,0),0) -> 0 | T22: =IF((J22>0),ROUND((101+1000*(LOG10($J$5)-LOG10(J22)))*$A$2,0),0) -> 0 | U22: =IF((K22>0),ROUND((101+1000*(LOG10($K$5)-LOG10(K22)))*$A$2,0),0) -> 0 | V22: =IF((L22>0),ROUND((101+1000*(LOG10($L$5)-LOG10(L22)))*$A$2,0),0) -> 0 | W22: =IF((M22>0),ROUND((101+1000*(LOG10($M$5)-LOG10(M22)))*$A$2,0),0) -> 0 | X22: =IF((N22>0),ROUND((101+1000*(LOG10($N$5)-LOG10(N22)))*$A$2,0),0) -> 0 | Y22: =SUM(LARGE(O22:X22,1),LARGE(O22:X22,2),LARGE(O22:X22,3),LARGE(O22:X22,4)) -> 1206
A23: 18 | B23: 8.V | C23: 1402-0334 | D23: Hrubý Jiří | G23: 8 | H23: 10 | O23: =IF((E23>0),ROUND((101+1000*(LOG10($E$5)-LOG10(E23)))*$A$2,0),0) -> 0 | P23: =IF((F23>0),ROUND((101+1000*(LOG10($F$5)-LOG10(F23)))*$A$2,0),0) -> 0 | Q23: =IF((G23>0),ROUND((101+1000*(LOG10($G$5)-LOG10(G23)))*$A$2,0),0) -> 718 | R23: =IF((H23>0),ROUND((101+1000*(LOG10($H$5)-LOG10(H23)))*$A$2,0),0) -> 303 | S23: =IF((I23>0),ROUND((101+1000*(LOG10($I$5)-LOG10(I23)))*$A$2,0),0) -> 0 | T23: =IF((J23>0),ROUND((101+1000*(LOG10($J$5)-LOG10(J23)))*$A$2,0),0) -> 0 | U23: =IF((K23>0),ROUND((101+1000*(LOG10($K$5)-LOG10(K23)))*$A$2,0),0) -> 0 | V23: =IF((L23>0),ROUND((101+1000*(LOG10($L$5)-LOG10(L23)))*$A$2,0),0) -> 0 | W23: =IF((M23>0),ROUND((101+1000*(LOG10($M$5)-LOG10(M23)))*$A$2,0),0) -> 0 | X23: =IF((N23>0),ROUND((101+1000*(LOG10($N$5)-LOG10(N23)))*$A$2,0),0) -> 0 | Y23: =SUM(LARGE(O23:X23,1),LARGE(O23:X23,2),LARGE(O23:X23,3),LARGE(O23:X23,4)) -> 1021
A24: 19 | B24: 9.V | C24: 1503-0186 | D24: Hromádka Josef | G24: 10 | H24: 9 | O24: =IF((E24>0),ROUND((101+1000*(LOG10($E$5)-LOG10(E24)))*$A$2,0),0) -> 0 | P24: =IF((F24>0),ROUND((101+1000*(LOG10($F$5)-LOG10(F24)))*$A$2,0),0) -> 0 | Q24: =IF((G24>0),ROUND((101+1000*(LOG10($G$5)-LOG10(G24)))*$A$2,0),0) -> 427 | R24: =IF((H24>0),ROUND((101+1000*(LOG10($H$5)-LOG10(H24)))*$A$2,0),0) -> 440 | S24: =IF((I24>0),ROUND((101+1000*(LOG10($I$5)-LOG10(I24)))*$A$2,0),0) -> 0 | T24: =IF((J24>0),ROUND((101+1000*(LOG10($J$5)-LOG10(J24)))*$A$2,0),0) -> 0 | U24: =IF((K24>0),ROUND((101+1000*(LOG10($K$5)-LOG10(K24)))*$A$2,0),0) -> 0 | V24: =IF((L24>0),ROUND((101+1000*(LOG10($L$5)-LOG10(L24)))*$A$2,0),0) -> 0 | W24: =IF((M24>0),ROUND((101+1000*(LOG10($M$5)-LOG10(M24)))*$A$2,0),0) -> 0 | X24: =IF((N24>0),ROUND((101+1000*(LOG10($N$5)-LOG10(N24)))*$A$2,0),0) -> 0 | Y24: =SUM(LARGE(O24:X24,1),LARGE(O24:X24,2),LARGE(O24:X24,3),LARGE(O24:X24,4)) -> 867
A25: 20 | B25: 10.V | C25: 1503-0124 | D25: Koblasa Stanislav | G25: 11 | O25: =IF((E25>0),ROUND((101+1000*(LOG10($E$5)-LOG10(E25)))*$A$2,0),0) -> 0 | P25: =IF((F25>0),ROUND((101+1000*(LOG10($F$5)-LOG10(F25)))*$A$2,0),0) -> 0 | Q25: =IF((G25>0),ROUND((101+1000*(LOG10($G$5)-LOG10(G25)))*$A$2,0),0) -> 303 | R25: =IF((H25>0),ROUND((101+1000*(LOG10($H$5)-LOG10(H25)))*$A$2,0),0) -> 0 | S25: =IF((I25>0),ROUND((101+1000*(LOG10($I$5)-LOG10(I25)))*$A$2,0),0) -> 0 | T25: =IF((J25>0),ROUND((101+1000*(LOG10($J$5)-LOG10(J25)))*$A$2,0),0) -> 0 | U25: =IF((K25>0),ROUND((101+1000*(LOG10($K$5)-LOG10(K25)))*$A$2,0),0) -> 0 | V25: =IF((L25>0),ROUND((101+1000*(LOG10($L$5)-LOG10(L25)))*$A$2,0),0) -> 0 | W25: =IF((M25>0),ROUND((101+1000*(LOG10($M$5)-LOG10(M25)))*$A$2,0),0) -> 0 | X25: =IF((N25>0),ROUND((101+1000*(LOG10($N$5)-LOG10(N25)))*$A$2,0),0) -> 0 | Y25: =SUM(LARGE(O25:X25,1),LARGE(O25:X25,2),LARGE(O25:X25,3),LARGE(O25:X25,4)) -> 303
A26: 21 | O26: =IF((E26>0),ROUND((101+1000*(LOG10($E$5)-LOG10(E26)))*$A$2,0),0) -> 0 | P26: =IF((F26>0),ROUND((101+1000*(LOG10($F$5)-LOG10(F26)))*$A$2,0),0) -> 0 | Q26: =IF((G26>0),ROUND((101+1000*(LOG10($G$5)-LOG10(G26)))*$A$2,0),0) -> 0 | R26: =IF((H26>0),ROUND((101+1000*(LOG10($H$5)-LOG10(H26)))*$A$2,0),0) -> 0 | S26: =IF((I26>0),ROUND((101+1000*(LOG10($I$5)-LOG10(I26)))*$A$2,0),0) -> 0 | T26: =IF((J26>0),ROUND((101+1000*(LOG10($J$5)-LOG10(J26)))*$A$2,0),0) -> 0 | U26: =IF((K26>0),ROUND((101+1000*(LOG10($K$5)-LOG10(K26)))*$A$2,0),0) -> 0 | V26: =IF((L26>0),ROUND((101+1000*(LOG10($L$5)-LOG10(L26)))*$A$2,0),0) -> 0 | W26: =IF((M26>0),ROUND((101+1000*(LOG10($M$5)-LOG10(M26)))*$A$2,0),0) -> 0 | X26: =IF((N26>0),ROUND((101+1000*(LOG10($N$5)-LOG10(N26)))*$A$2,0),0) -> 0 | Y26: =SUM(LARGE(O26:X26,1),LARGE(O26:X26,2),LARGE(O26:X26,3),LARGE(O26:X26,4)) -> 0
A27: 22 | O27: =IF((E27>0),ROUND((101+1000*(LOG10($E$5)-LOG10(E27)))*$A$2,0),0) -> 0 | P27: =IF((F27>0),ROUND((101+1000*(LOG10($F$5)-LOG10(F27)))*$A$2,0),0) -> 0 | Q27: =IF((G27>0),ROUND((101+1000*(LOG10($G$5)-LOG10(G27)))*$A$2,0),0) -> 0 | R27: =IF((H27>0),ROUND((101+1000*(LOG10($H$5)-LOG10(H27)))*$A$2,0),0) -> 0 | S27: =IF((I27>0),ROUND((101+1000*(LOG10($I$5)-LOG10(I27)))*$A$2,0),0) -> 0 | T27: =IF((J27>0),ROUND((101+1000*(LOG10($J$5)-LOG10(J27)))*$A$2,0),0) -> 0 | U27: =IF((K27>0),ROUND((101+1000*(LOG10($K$5)-LOG10(K27)))*$A$2,0),0) -> 0 | V27: =IF((L27>0),ROUND((101+1000*(LOG10($L$5)-LOG10(L27)))*$A$2,0),0) -> 0 | W27: =IF((M27>0),ROUND((101+1000*(LOG10($M$5)-LOG10(M27)))*$A$2,0),0) -> 0 | X27: =IF((N27>0),ROUND((101+1000*(LOG10($N$5)-LOG10(N27)))*$A$2,0),0) -> 0 | Y27: =SUM(LARGE(O27:X27,1),LARGE(O27:X27,2),LARGE(O27:X27,3),LARGE(O27:X27,4)) -> 0
A28: 23 | O28: =IF((E28>0),ROUND((101+1000*(LOG10($E$5)-LOG10(E28)))*$A$2,0),0) -> 0 | P28: =IF((F28>0),ROUND((101+1000*(LOG10($F$5)-LOG10(F28)))*$A$2,0),0) -> 0 | Q28: =IF((G28>0),ROUND((101+1000*(LOG10($G$5)-LOG10(G28)))*$A$2,0),0) -> 0 | R28: =IF((H28>0),ROUND((101+1000*(LOG10($H$5)-LOG10(H28)))*$A$2,0),0) -> 0 | S28: =IF((I28>0),ROUND((101+1000*(LOG10($I$5)-LOG10(I28)))*$A$2,0),0) -> 0 | T28: =IF((J28>0),ROUND((101+1000*(LOG10($J$5)-LOG10(J28)))*$A$2,0),0) -> 0 | U28: =IF((K28>0),ROUND((101+1000*(LOG10($K$5)-LOG10(K28)))*$A$2,0),0) -> 0 | V28: =IF((L28>0),ROUND((101+1000*(LOG10($L$5)-LOG10(L28)))*$A$2,0),0) -> 0 | W28: =IF((M28>0),ROUND((101+1000*(LOG10($M$5)-LOG10(M28)))*$A$2,0),0) -> 0 | X28: =IF((N28>0),ROUND((101+1000*(LOG10($N$5)-LOG10(N28)))*$A$2,0),0) -> 0 | Y28: =SUM(LARGE(O28:X28,1),LARGE(O28:X28,2),LARGE(O28:X28,3),LARGE(O28:X28,4)) -> 0
A29: 24 | O29: =IF((E29>0),ROUND((101+1000*(LOG10($E$5)-LOG10(E29)))*$A$2,0),0) -> 0 | P29: =IF((F29>0),ROUND((101+1000*(LOG10($F$5)-LOG10(F29)))*$A$2,0),0) -> 0 | Q29: =IF((G29>0),ROUND((101+1000*(LOG10($G$5)-LOG10(G29)))*$A$2,0),0) -> 0 | R29: =IF((H29>0),ROUND((101+1000*(LOG10($H$5)-LOG10(H29)))*$A$2,0),0) -> 0 | S29: =IF((I29>0),ROUND((101+1000*(LOG10($I$5)-LOG10(I29)))*$A$2,0),0) -> 0 | T29: =IF((J29>0),ROUND((101+1000*(LOG10($J$5)-LOG10(J29)))*$A$2,0),0) -> 0 | U29: =IF((K29>0),ROUND((101+1000*(LOG10($K$5)-LOG10(K29)))*$A$2,0),0) -> 0 | V29: =IF((L29>0),ROUND((101+1000*(LOG10($L$5)-LOG10(L29)))*$A$2,0),0) -> 0 | W29: =IF((M29>0),ROUND((101+1000*(LOG10($M$5)-LOG10(M29)))*$A$2,0),0) -> 0 | X29: =IF((N29>0),ROUND((101+1000*(LOG10($N$5)-LOG10(N29)))*$A$2,0),0) -> 0 | Y29: =SUM(LARGE(O29:X29,1),LARGE(O29:X29,2),LARGE(O29:X29,3),LARGE(O29:X29,4)) -> 0
A30: 25 | O30: =IF((E30>0),ROUND((101+1000*(LOG10($E$5)-LOG10(E30)))*$A$2,0),0) -> 0 | P30: =IF((F30>0),ROUND((101+1000*(LOG10($F$5)-LOG10(F30)))*$A$2,0),0) -> 0 | Q30: =IF((G30>0),ROUND((101+1000*(LOG10($G$5)-LOG10(G30)))*$A$2,0),0) -> 0 | R30: =IF((H30>0),ROUND((101+1000*(LOG10($H$5)-LOG10(H30)))*$A$2,0),0) -> 0 | S30: =IF((I30>0),ROUND((101+1000*(LOG10($I$5)-LOG10(I30)))*$A$2,0),0) -> 0 | T30: =IF((J30>0),ROUND((101+1000*(LOG10($J$5)-LOG10(J30)))*$A$2,0),0) -> 0 | U30: =IF((K30>0),ROUND((101+1000*(LOG10($K$5)-LOG10(K30)))*$A$2,0),0) -> 0 | V30: =IF((L30>0),ROUND((101+1000*(LOG10($L$5)-LOG10(L30)))*$A$2,0),0) -> 0 | W30: =IF((M30>0),ROUND((101+1000*(LOG10($M$5)-LOG10(M30)))*$A$2,0),0) -> 0 | X30: =IF((N30>0),ROUND((101+1000*(LOG10($N$5)-LOG10(N30)))*$A$2,0),0) -> 0 | Y30: =SUM(LARGE(O30:X30,1),LARGE(O30:X30,2),LARGE(O30:X30,3),LARGE(O30:X30,4)) -> 0
A31: 26 | O31: =IF((E31>0),ROUND((101+1000*(LOG10($E$5)-LOG10(E31)))*$A$2,0),0) -> 0 | P31: =IF((F31>0),ROUND((101+1000*(LOG10($F$5)-LOG10(F31)))*$A$2,0),0) -> 0 | Q31: =IF((G31>0),ROUND((101+1000*(LOG10($G$5)-LOG10(G31)))*$A$2,0),0) -> 0 | R31: =IF((H31>0),ROUND((101+1000*(LOG10($H$5)-LOG10(H31)))*$A$2,0),0) -> 0 | S31: =IF((I31>0),ROUND((101+1000*(LOG10($I$5)-LOG10(I31)))*$A$2,0),0) -> 0 | T31: =IF((J31>0),ROUND((101+1000*(LOG10($J$5)-LOG10(J31)))*$A$2,0),0) -> 0 | U31: =IF((K31>0),ROUND((101+1000*(LOG10($K$5)-LOG10(K31)))*$A$2,0),0) -> 0 | V31: =IF((L31>0),ROUND((101+1000*(LOG10($L$5)-LOG10(L31)))*$A$2,0),0) -> 0 | W31: =IF((M31>0),ROUND((101+1000*(LOG10($M$5)-LOG10(M31)))*$A$2,0),0) -> 0 | X31: =IF((N31>0),ROUND((101+1000*(LOG10($N$5)-LOG10(N31)))*$A$2,0),0) -> 0 | Y31: =SUM(LARGE(O31:X31,1),LARGE(O31:X31,2),LARGE(O31:X31,3),LARGE(O31:X31,4)) -> 0
A32: 27 | O32: =IF((E32>0),ROUND((101+1000*(LOG10($E$5)-LOG10(E32)))*$A$2,0),0) -> 0 | P32: =IF((F32>0),ROUND((101+1000*(LOG10($F$5)-LOG10(F32)))*$A$2,0),0) -> 0 | Q32: =IF((G32>0),ROUND((101+1000*(LOG10($G$5)-LOG10(G32)))*$A$2,0),0) -> 0 | R32: =IF((H32>0),ROUND((101+1000*(LOG10($H$5)-LOG10(H32)))*$A$2,0),0) -> 0 | S32: =IF((I32>0),ROUND((101+1000*(LOG10($I$5)-LOG10(I32)))*$A$2,0),0) -> 0 | T32: =IF((J32>0),ROUND((101+1000*(LOG10($J$5)-LOG10(J32)))*$A$2,0),0) -> 0 | U32: =IF((K32>0),ROUND((101+1000*(LOG10($K$5)-LOG10(K32)))*$A$2,0),0) -> 0 | V32: =IF((L32>0),ROUND((101+1000*(LOG10($L$5)-LOG10(L32)))*$A$2,0),0) -> 0 | W32: =IF((M32>0),ROUND((101+1000*(LOG10($M$5)-LOG10(M32)))*$A$2,0),0) -> 0 | X32: =IF((N32>0),ROUND((101+1000*(LOG10($N$5)-LOG10(N32)))*$A$2,0),0) -> 0 | Y32: =SUM(LARGE(O32:X32,1),LARGE(O32:X32,2),LARGE(O32:X32,3),LARGE(O32:X32,4)) -> 0
A33: 28 | O33: =IF((E33>0),ROUND((101+1000*(LOG10($E$5)-LOG10(E33)))*$A$2,0),0) -> 0 | P33: =IF((F33>0),ROUND((101+1000*(LOG10($F$5)-LOG10(F33)))*$A$2,0),0) -> 0 | Q33: =IF((G33>0),ROUND((101+1000*(LOG10($G$5)-LOG10(G33)))*$A$2,0),0) -> 0 | R33: =IF((H33>0),ROUND((101+1000*(LOG10($H$5)-LOG10(H33)))*$A$2,0),0) -> 0 | S33: =IF((I33>0),ROUND((101+1000*(LOG10($I$5)-LOG10(I33)))*$A$2,0),0) -> 0 | T33: =IF((J33>0),ROUND((101+1000*(LOG10($J$5)-LOG10(J33)))*$A$2,0),0) -> 0 | U33: =IF((K33>0),ROUND((101+1000*(LOG10($K$5)-LOG10(K33)))*$A$2,0),0) -> 0 | V33: =IF((L33>0),ROUND((101+1000*(LOG10($L$5)-LOG10(L33)))*$A$2,0),0) -> 0 | W33: =IF((M33>0),ROUND((101+1000*(LOG10($M$5)-LOG10(M33)))*$A$2,0),0) -> 0 | X33: =IF((N33>0),ROUND((101+1000*(LOG10($N$5)-LOG10(N33)))*$A$2,0),0) -> 0 | Y33: =SUM(LARGE(O33:X33,1),LARGE(O33:X33,2),LARGE(O33:X33,3),LARGE(O33:X33,4)) -> 0
A34: 29 | O34: =IF((E34>0),ROUND((101+1000*(LOG10($E$5)-LOG10(E34)))*$A$2,0),0) -> 0 | P34: =IF((F34>0),ROUND((101+1000*(LOG10($F$5)-LOG10(F34)))*$A$2,0),0) -> 0 | Q34: =IF((G34>0),ROUND((101+1000*(LOG10($G$5)-LOG10(G34)))*$A$2,0),0) -> 0 | R34: =IF((H34>0),ROUND((101+1000*(LOG10($H$5)-LOG10(H34)))*$A$2,0),0) -> 0 | S34: =IF((I34>0),ROUND((101+1000*(LOG10($I$5)-LOG10(I34)))*$A$2,0),0) -> 0 | T34: =IF((J34>0),ROUND((101+1000*(LOG10($J$5)-LOG10(J34)))*$A$2,0),0) -> 0 | U34: =IF((K34>0),ROUND((101+1000*(LOG10($K$5)-LOG10(K34)))*$A$2,0),0) -> 0 | V34: =IF((L34>0),ROUND((101+1000*(LOG10($L$5)-LOG10(L34)))*$A$2,0),0) -> 0 | W34: =IF((M34>0),ROUND((101+1000*(LOG10($M$5)-LOG10(M34)))*$A$2,0),0) -> 0 | X34: =IF((N34>0),ROUND((101+1000*(LOG10($N$5)-LOG10(N34)))*$A$2,0),0) -> 0 | Y34: =SUM(LARGE(O34:X34,1),LARGE(O34:X34,2),LARGE(O34:X34,3),LARGE(O34:X34,4)) -> 0
A35: 30 | O35: =IF((E35>0),ROUND((101+1000*(LOG10($E$5)-LOG10(E35)))*$A$2,0),0) -> 0 | P35: =IF((F35>0),ROUND((101+1000*(LOG10($F$5)-LOG10(F35)))*$A$2,0),0) -> 0 | Q35: =IF((G35>0),ROUND((101+1000*(LOG10($G$5)-LOG10(G35)))*$A$2,0),0) -> 0 | R35: =IF((H35>0),ROUND((101+1000*(LOG10($H$5)-LOG10(H35)))*$A$2,0),0) -> 0 | S35: =IF((I35>0),ROUND((101+1000*(LOG10($I$5)-LOG10(I35)))*$A$2,0),0) -> 0 | T35: =IF((J35>0),ROUND((101+1000*(LOG10($J$5)-LOG10(J35)))*$A$2,0),0) -> 0 | U35: =IF((K35>0),ROUND((101+1000*(LOG10($K$5)-LOG10(K35)))*$A$2,0),0) -> 0 | V35: =IF((L35>0),ROUND((101+1000*(LOG10($L$5)-LOG10(L35)))*$A$2,0),0) -> 0 | W35: =IF((M35>0),ROUND((101+1000*(LOG10($M$5)-LOG10(M35)))*$A$2,0),0) -> 0 | X35: =IF((N35>0),ROUND((101+1000*(LOG10($N$5)-LOG10(N35)))*$A$2,0),0) -> 0 | Y35: =SUM(LARGE(O35:X35,1),LARGE(O35:X35,2),LARGE(O35:X35,3),LARGE(O35:X35,4)) -> 0
A36: 31 | O36: =IF((E36>0),ROUND((101+1000*(LOG10($E$5)-LOG10(E36)))*$A$2,0),0) -> 0 | P36: =IF((F36>0),ROUND((101+1000*(LOG10($F$5)-LOG10(F36)))*$A$2,0),0) -> 0 | Q36: =IF((G36>0),ROUND((101+1000*(LOG10($G$5)-LOG10(G36)))*$A$2,0),0) -> 0 | R36: =IF((H36>0),ROUND((101+1000*(LOG10($H$5)-LOG10(H36)))*$A$2,0),0) -> 0 | S36: =IF((I36>0),ROUND((101+1000*(LOG10($I$5)-LOG10(I36)))*$A$2,0),0) -> 0 | T36: =IF((J36>0),ROUND((101+1000*(LOG10($J$5)-LOG10(J36)))*$A$2,0),0) -> 0 | U36: =IF((K36>0),ROUND((101+1000*(LOG10($K$5)-LOG10(K36)))*$A$2,0),0) -> 0 | V36: =IF((L36>0),ROUND((101+1000*(LOG10($L$5)-LOG10(L36)))*$A$2,0),0) -> 0 | W36: =IF((M36>0),ROUND((101+1000*(LOG10($M$5)-LOG10(M36)))*$A$2,0),0) -> 0 | X36: =IF((N36>0),ROUND((101+1000*(LOG10($N$5)-LOG10(N36)))*$A$2,0),0) -> 0 | Y36: =SUM(LARGE(O36:X36,1),LARGE(O36:X36,2),LARGE(O36:X36,3),LARGE(O36:X36,4)) -> 0
A37: 32 | O37: =IF((E37>0),ROUND((101+1000*(LOG10($E$5)-LOG10(E37)))*$A$2,0),0) -> 0 | P37: =IF((F37>0),ROUND((101+1000*(LOG10($F$5)-LOG10(F37)))*$A$2,0),0) -> 0 | Q37: =IF((G37>0),ROUND((101+1000*(LOG10($G$5)-LOG10(G37)))*$A$2,0),0) -> 0 | R37: =IF((H37>0),ROUND((101+1000*(LOG10($H$5)-LOG10(H37)))*$A$2,0),0) -> 0 | S37: =IF((I37>0),ROUND((101+1000*(LOG10($I$5)-LOG10(I37)))*$A$2,0),0) -> 0 | T37: =IF((J37>0),ROUND((101+1000*(LOG10($J$5)-LOG10(J37)))*$A$2,0),0) -> 0 | U37: =IF((K37>0),ROUND((101+1000*(LOG10($K$5)-LOG10(K37)))*$A$2,0),0) -> 0 | V37: =IF((L37>0),ROUND((101+1000*(LOG10($L$5)-LOG10(L37)))*$A$2,0),0) -> 0 | W37: =IF((M37>0),ROUND((101+1000*(LOG10($M$5)-LOG10(M37)))*$A$2,0),0) -> 0 | X37: =IF((N37>0),ROUND((101+1000*(LOG10($N$5)-LOG10(N37)))*$A$2,0),0) -> 0 | Y37: =SUM(LARGE(O37:X37,1),LARGE(O37:X37,2),LARGE(O37:X37,3)) -> 0

Sheet Regionální pohár Čechy
A1: 3C | B1: 2018 | C1: Pouze členi | D1: A | I1: Věk min: | M1: Rok: | N1: 2013 | W1: created by: Zdeněk Vykydal
A2: 3 | D2: koeficient pro logaritmické body | I2: Věk max:
A4: RAC - Regionální pohár Čechy 2018 | E4: 181506 | F4: 181507 | G4: 181720 | O4: Sdružený krajský přebor | P4: Senior Cup | Q4: Ski regata
D5: Poč. záv./CTL | E5: 11 | F5: 10 | G5: 0 | O5: 181506 | P5: 181507 | Q5: 181720 | X5: =IF(N4,N4,"") -> 
A6: Poř. celk. | B6: Kat. | C6: Reg. číslo | D6: Jméno | E6: Poř. | F6: Poř. | G6: Poř. | H6: Poř. | I6: Poř. | J6: Poř. | K6: Poř. | L6: Poř. | M6: Poř. | N6: Poř. | O6: Body | P6: Body | Q6: Body | R6: Body | S6: Body | T6: Body | U6: Body | V6: Body | W6: Body | X6: Body | Y6: Celkem
A7: 1 | B7: 1.V | C7: 7019-0359 | D7: Dolejš Rudolf | E7: 1 | F7: 3 | O7: =IF((E7>0),ROUND((101+1000*(LOG10($E$5)-LOG10(E7)))*$A$2,0),0) -> 3427 | P7: =IF((F7>0),ROUND((101+1000*(LOG10($F$5)-LOG10(F7)))*$A$2,0),0) -> 1872 | Q7: =IF((G7>0),ROUND((101+1000*(LOG10($G$5)-LOG10(G7)))*$A$2,0),0) -> 0 | R7: =IF((H7>0),ROUND((101+1000*(LOG10($H$5)-LOG10(H7)))*$A$2,0),0) -> 0 | S7: =IF((I7>0),ROUND((101+1000*(LOG10($I$5)-LOG10(I7)))*$A$2,0),0) -> 0 | T7: =IF((J7>0),ROUND((101+1000*(LOG10($J$5)-LOG10(J7)))*$A$2,0),0) -> 0 | U7: =IF((K7>0),ROUND((101+1000*(LOG10($K$5)-LOG10(K7)))*$A$2,0),0) -> 0 | V7: =IF((L7>0),ROUND((101+1000*(LOG10($L$5)-LOG10(L7)))*$A$2,0),0) -> 0 | W7: =IF((M7>0),ROUND((101+1000*(LOG10($M$5)-LOG10(M7)))*$A$2,0),0) -> 0 | X7: =IF((N7>0),ROUND((101+1000*(LOG10($N$5)-LOG10(N7)))*$A$2,0),0) -> 0 | Y7: =SUM(LARGE(O7:X7,1),LARGE(O7:X7,2),LARGE(O7:X7,3)) -> 5299
A8: 2 | B8: 1.GM | C8: 7019-0144 | D8: Hrubý Pavel | E8: 4 | F8: 1 | O8: =IF((E8>0),ROUND((101+1000*(LOG10($E$5)-LOG10(E8)))*$A$2,0),0) -> 1621 | P8: =IF((F8>0),ROUND((101+1000*(LOG10($F$5)-LOG10(F8)))*$A$2,0),0) -> 3303 | Q8: =IF((G8>0),ROUND((101+1000*(LOG10($G$5)-LOG10(G8)))*$A$2,0),0) -> 0 | R8: =IF((H8>0),ROUND((101+1000*(LOG10($H$5)-LOG10(H8)))*$A$2,0),0) -> 0 | S8: =IF((I8>0),ROUND((101+1000*(LOG10($I$5)-LOG10(I8)))*$A$2,0),0) -> 0 | T8: =IF((J8>0),ROUND((101+1000*(LOG10($J$5)-LOG10(J8)))*$A$2,0),0) -> 0 | U8: =IF((K8>0),ROUND((101+1000*(LOG10($K$5)-LOG10(K8)))*$A$2,0),0) -> 0 | V8: =IF((L8>0),ROUND((101+1000*(LOG10($L$5)-LOG10(L8)))*$A$2,0),0) -> 0 | W8: =IF((M8>0),ROUND((101+1000*(LOG10($M$5)-LOG10(M8)))*$A$2,0),0) -> 0 | X8: =IF((N8>0),ROUND((101+1000*(LOG10($N$5)-LOG10(N8)))*$A$2,0),0) -> 0 | Y8: =SUM(LARGE(O8:X8,1),LARGE(O8:X8,2),LARGE(O8:X8,3)) -> 4924
A9: 3 | B9: 2.V | C9: 1503-0180 | D9: Hrubý Roman | E9: 7 | F9: 2 | O9: =IF((E9>0),ROUND((101+1000*(LOG10($E$5)-LOG10(E9)))*$A$2,0),0) -> 892 | P9: =IF((F9>0),ROUND((101+1000*(LOG10($F$5)-LOG10(F9)))*$A$2,0),0) -> 2400 | Q9: =IF((G9>0),ROUND((101+1000*(LOG10($G$5)-LOG10(G9)))*$A$2,0),0) -> 0 | R9: =IF((H9>0),ROUND((101+1000*(LOG10($H$5)-LOG10(H9)))*$A$2,0),0) -> 0 | S9: =IF((I9>0),ROUND((101+1000*(LOG10($I$5)-LOG10(I9)))*$A$2,0),0) -> 0 | T9: =IF((J9>0),ROUND((101+1000*(LOG10($J$5)-LOG10(J9)))*$A$2,0),0) -> 0 | U9: =IF((K9>0),ROUND((101+1000*(LOG10($K$5)-LOG10(K9)))*$A$2,0),0) -> 0 | V9: =IF((L9>0),ROUND((101+1000*(LOG10($L$5)-LOG10(L9)))*$A$2,0),0) -> 0 | W9: =IF((M9>0),ROUND((101+1000*(LOG10($M$5)-LOG10(M9)))*$A$2,0),0) -> 0 | X9: =IF((N9>0),ROUND((101+1000*(LOG10($N$5)-LOG10(N9)))*$A$2,0),0) -> 0 | Y9: =SUM(LARGE(O9:X9,1),LARGE(O9:X9,2),LARGE(O9:X9,3)) -> 3292
A10: 4 | B10: 3.V | C10: 1705-0001 | D10: Haubold Petr | E10: 6 | F10: 4 | O10: =IF((E10>0),ROUND((101+1000*(LOG10($E$5)-LOG10(E10)))*$A$2,0),0) -> 1093 | P10: =IF((F10>0),ROUND((101+1000*(LOG10($F$5)-LOG10(F10)))*$A$2,0),0) -> 1497 | Q10: =IF((G10>0),ROUND((101+1000*(LOG10($G$5)-LOG10(G10)))*$A$2,0),0) -> 0 | R10: =IF((H10>0),ROUND((101+1000*(LOG10($H$5)-LOG10(H10)))*$A$2,0),0) -> 0 | S10: =IF((I10>0),ROUND((101+1000*(LOG10($I$5)-LOG10(I10)))*$A$2,0),0) -> 0 | T10: =IF((J10>0),ROUND((101+1000*(LOG10($J$5)-LOG10(J10)))*$A$2,0),0) -> 0 | U10: =IF((K10>0),ROUND((101+1000*(LOG10($K$5)-LOG10(K10)))*$A$2,0),0) -> 0 | V10: =IF((L10>0),ROUND((101+1000*(LOG10($L$5)-LOG10(L10)))*$A$2,0),0) -> 0 | W10: =IF((M10>0),ROUND((101+1000*(LOG10($M$5)-LOG10(M10)))*$A$2,0),0) -> 0 | X10: =IF((N10>0),ROUND((101+1000*(LOG10($N$5)-LOG10(N10)))*$A$2,0),0) -> 0 | Y10: =SUM(LARGE(O10:X10,1),LARGE(O10:X10,2),LARGE(O10:X10,3)) -> 2590
A11: 5 | B11: 2.GM | C11: 1503-0181 | D11: Hrubá Dagmar | E11: 5 | F11: 7 | O11: =IF((E11>0),ROUND((101+1000*(LOG10($E$5)-LOG10(E11)))*$A$2,0),0) -> 1330 | P11: =IF((F11>0),ROUND((101+1000*(LOG10($F$5)-LOG10(F11)))*$A$2,0),0) -> 768 | Q11: =IF((G11>0),ROUND((101+1000*(LOG10($G$5)-LOG10(G11)))*$A$2,0),0) -> 0 | R11: =IF((H11>0),ROUND((101+1000*(LOG10($H$5)-LOG10(H11)))*$A$2,0),0) -> 0 | S11: =IF((I11>0),ROUND((101+1000*(LOG10($I$5)-LOG10(I11)))*$A$2,0),0) -> 0 | T11: =IF((J11>0),ROUND((101+1000*(LOG10($J$5)-LOG10(J11)))*$A$2,0),0) -> 0 | U11: =IF((K11>0),ROUND((101+1000*(LOG10($K$5)-LOG10(K11)))*$A$2,0),0) -> 0 | V11: =IF((L11>0),ROUND((101+1000*(LOG10($L$5)-LOG10(L11)))*$A$2,0),0) -> 0 | W11: =IF((M11>0),ROUND((101+1000*(LOG10($M$5)-LOG10(M11)))*$A$2,0),0) -> 0 | X11: =IF((N11>0),ROUND((101+1000*(LOG10($N$5)-LOG10(N11)))*$A$2,0),0) -> 0 | Y11: =SUM(LARGE(O11:X11,1),LARGE(O11:X11,2),LARGE(O11:X11,3)) -> 2098
A12: 6 | B12: 3.GM | C12: 1526-0044 | D12: Mrůzek Pavel | F12: 5 | O12: =IF((E12>0),ROUND((101+1000*(LOG10($E$5)-LOG10(E12)))*$A$2,0),0) -> 0 | P12: =IF((F12>0),ROUND((101+1000*(LOG10($F$5)-LOG10(F12)))*$A$2,0),0) -> 1206 | Q12: =IF((G12>0),ROUND((101+1000*(LOG10($G$5)-LOG10(G12)))*$A$2,0),0) -> 0 | R12: =IF((H12>0),ROUND((101+1000*(LOG10($H$5)-LOG10(H12)))*$A$2,0),0) -> 0 | S12: =IF((I12>0),ROUND((101+1000*(LOG10($I$5)-LOG10(I12)))*$A$2,0),0) -> 0 | T12: =IF((J12>0),ROUND((101+1000*(LOG10($J$5)-LOG10(J12)))*$A$2,0),0) -> 0 | U12: =IF((K12>0),ROUND((101+1000*(LOG10($K$5)-LOG10(K12)))*$A$2,0),0) -> 0 | V12: =IF((L12>0),ROUND((101+1000*(LOG10($L$5)-LOG10(L12)))*$A$2,0),0) -> 0 | W12: =IF((M12>0),ROUND((101+1000*(LOG10($M$5)-LOG10(M12)))*$A$2,0),0) -> 0 | X12: =IF((N12>0),ROUND((101+1000*(LOG10($N$5)-LOG10(N12)))*$A$2,0),0) -> 0 | Y12: =SUM(LARGE(O12:X12,1),LARGE(O12:X12,2),LARGE(O12:X12,3)) -> 1206
A13: 7 | B13: 4.V | C13: 1402-0334 | D13: Hrubý Jiří | E13: 8 | F13: 10 | O13: =IF((E13>0),ROUND((101+1000*(LOG10($E$5)-LOG10(E13)))*$A$2,0),0) -> 718 | P13: =IF((F13>0),ROUND((101+1000*(LOG10($F$5)-LOG10(F13)))*$A$2,0),0) -> 303 | Q13: =IF((G13>0),ROUND((101+1000*(LOG10($G$5)-LOG10(G13)))*$A$2,0),0) -> 0 | R13: =IF((H13>0),ROUND((101+1000*(LOG10($H$5)-LOG10(H13)))*$A$2,0),0) -> 0 | S13: =IF((I13>0),ROUND((101+1000*(LOG10($I$5)-LOG10(I13)))*$A$2,0),0) -> 0 | T13: =IF((J13>0),ROUND((101+1000*(LOG10($J$5)-LOG10(J13)))*$A$2,0),0) -> 0 | U13: =IF((K13>0),ROUND((101+1000*(LOG10($K$5)-LOG10(K13)))*$A$2,0),0) -> 0 | V13: =IF((L13>0),ROUND((101+1000*(LOG10($L$5)-LOG10(L13)))*$A$2,0),0) -> 0 | W13: =IF((M13>0),ROUND((101+1000*(LOG10($M$5)-LOG10(M13)))*$A$2,0),0) -> 0 | X13: =IF((N13>0),ROUND((101+1000*(LOG10($N$5)-LOG10(N13)))*$A$2,0),0) -> 0 | Y13: =SUM(LARGE(O13:X13,1),LARGE(O13:X13,2),LARGE(O13:X13,3)) -> 1021
A14: 8 | B14: 5.V | C14: 2405-0133 | D14: Mielec Lubomír | F14: 6 | O14: =IF((E14>0),ROUND((101+1000*(LOG10($E$5)-LOG10(E14)))*$A$2,0),0) -> 0 | P14: =IF((F14>0),ROUND((101+1000*(LOG10($F$5)-LOG10(F14)))*$A$2,0),0) -> 969 | Q14: =IF((G14>0),ROUND((101+1000*(LOG10($G$5)-LOG10(G14)))*$A$2,0),0) -> 0 | R14: =IF((H14>0),ROUND((101+1000*(LOG10($H$5)-LOG10(H14)))*$A$2,0),0) -> 0 | S14: =IF((I14>0),ROUND((101+1000*(LOG10($I$5)-LOG10(I14)))*$A$2,0),0) -> 0 | T14: =IF((J14>0),ROUND((101+1000*(LOG10($J$5)-LOG10(J14)))*$A$2,0),0) -> 0 | U14: =IF((K14>0),ROUND((101+1000*(LOG10($K$5)-LOG10(K14)))*$A$2,0),0) -> 0 | V14: =IF((L14>0),ROUND((101+1000*(LOG10($L$5)-LOG10(L14)))*$A$2,0),0) -> 0 | W14: =IF((M14>0),ROUND((101+1000*(LOG10($M$5)-LOG10(M14)))*$A$2,0),0) -> 0 | X14: =IF((N14>0),ROUND((101+1000*(LOG10($N$5)-LOG10(N14)))*$A$2,0),0) -> 0 | Y14: =SUM(LARGE(O14:X14,1),LARGE(O14:X14,2),LARGE(O14:X14,3)) -> 969
A15: 9 | B15: 6.V | C15: 1503-0186 | D15: Hromádka Josef | E15: 10 | F15: 9 | O15: =IF((E15>0),ROUND((101+1000*(LOG10($E$5)-LOG10(E15)))*$A$2,0),0) -> 427 | P15: =IF((F15>0),ROUND((101+1000*(LOG10($F$5)-LOG10(F15)))*$A$2,0),0) -> 440 | Q15: =IF((G15>0),ROUND((101+1000*(LOG10($G$5)-LOG10(G15)))*$A$2,0),0) -> 0 | R15: =IF((H15>0),ROUND((101+1000*(LOG10($H$5)-LOG10(H15)))*$A$2,0),0) -> 0 | S15: =IF((I15>0),ROUND((101+1000*(LOG10($I$5)-LOG10(I15)))*$A$2,0),0) -> 0 | T15: =IF((J15>0),ROUND((101+1000*(LOG10($J$5)-LOG10(J15)))*$A$2,0),0) -> 0 | U15: =IF((K15>0),ROUND((101+1000*(LOG10($K$5)-LOG10(K15)))*$A$2,0),0) -> 0 | V15: =IF((L15>0),ROUND((101+1000*(LOG10($L$5)-LOG10(L15)))*$A$2,0),0) -> 0 | W15: =IF((M15>0),ROUND((101+1000*(LOG10($M$5)-LOG10(M15)))*$A$2,0),0) -> 0 | X15: =IF((N15>0),ROUND((101+1000*(LOG10($N$5)-LOG10(N15)))*$A$2,0),0) -> 0 | Y15: =SUM(LARGE(O15:X15,1),LARGE(O15:X15,2),LARGE(O15:X15,3)) -> 867
A16: 10 | B16: 7.V | C16: 1503-0124 | D16: Koblasa Stanislav | E16: 11 | O16: =IF((E16>0),ROUND((101+1000*(LOG10($E$5)-LOG10(E16)))*$A$2,0),0) -> 303 | P16: =IF((F16>0),ROUND((101+1000*(LOG10($F$5)-LOG10(F16)))*$A$2,0),0) -> 0 | Q16: =IF((G16>0),ROUND((101+1000*(LOG10($G$5)-LOG10(G16)))*$A$2,0),0) -> 0 | R16: =IF((H16>0),ROUND((101+1000*(LOG10($H$5)-LOG10(H16)))*$A$2,0),0) -> 0 | S16: =IF((I16>0),ROUND((101+1000*(LOG10($I$5)-LOG10(I16)))*$A$2,0),0) -> 0 | T16: =IF((J16>0),ROUND((101+1000*(LOG10($J$5)-LOG10(J16)))*$A$2,0),0) -> 0 | U16: =IF((K16>0),ROUND((101+1000*(LOG10($K$5)-LOG10(K16)))*$A$2,0),0) -> 0 | V16: =IF((L16>0),ROUND((101+1000*(LOG10($L$5)-LOG10(L16)))*$A$2,0),0) -> 0 | W16: =IF((M16>0),ROUND((101+1000*(LOG10($M$5)-LOG10(M16)))*$A$2,0),0) -> 0 | X16: =IF((N16>0),ROUND((101+1000*(LOG10($N$5)-LOG10(N16)))*$A$2,0),0) -> 0 | Y16: =SUM(LARGE(O16:X16,1),LARGE(O16:X16,2),LARGE(O16:X16,3)) -> 303
O17: =IF((E17>0),ROUND((101+1000*(LOG10($E$5)-LOG10(E17)))*$A$2,0),0) -> 0 | P17: =IF((F17>0),ROUND((101+1000*(LOG10($F$5)-LOG10(F17)))*$A$2,0),0) -> 0 | Q17: =IF((G17>0),ROUND((101+1000*(LOG10($G$5)-LOG10(G17)))*$A$2,0),0) -> 0 | R17: =IF((H17>0),ROUND((101+1000*(LOG10($H$5)-LOG10(H17)))*$A$2,0),0) -> 0 | S17: =IF((I17>0),ROUND((101+1000*(LOG10($I$5)-LOG10(I17)))*$A$2,0),0) -> 0 | T17: =IF((J17>0),ROUND((101+1000*(LOG10($J$5)-LOG10(J17)))*$A$2,0),0) -> 0 | U17: =IF((K17>0),ROUND((101+1000*(LOG10($K$5)-LOG10(K17)))*$A$2,0),0) -> 0 | V17: =IF((L17>0),ROUND((101+1000*(LOG10($L$5)-LOG10(L17)))*$A$2,0),0) -> 0 | W17: =IF((M17>0),ROUND((101+1000*(LOG10($M$5)-LOG10(M17)))*$A$2,0),0) -> 0 | X17: =IF((N17>0),ROUND((101+1000*(LOG10($N$5)-LOG10(N17)))*$A$2,0),0) -> 0 | Y17: =SUM(LARGE(O17:X17,1),LARGE(O17:X17,2),LARGE(O17:X17,3)) -> 0
O18: =IF((E18>0),ROUND((101+1000*(LOG10($E$5)-LOG10(E18)))*$A$2,0),0) -> 0 | P18: =IF((F18>0),ROUND((101+1000*(LOG10($F$5)-LOG10(F18)))*$A$2,0),0) -> 0 | Q18: =IF((G18>0),ROUND((101+1000*(LOG10($G$5)-LOG10(G18)))*$A$2,0),0) -> 0 | R18: =IF((H18>0),ROUND((101+1000*(LOG10($H$5)-LOG10(H18)))*$A$2,0),0) -> 0 | S18: =IF((I18>0),ROUND((101+1000*(LOG10($I$5)-LOG10(I18)))*$A$2,0),0) -> 0 | T18: =IF((J18>0),ROUND((101+1000*(LOG10($J$5)-LOG10(J18)))*$A$2,0),0) -> 0 | U18: =IF((K18>0),ROUND((101+1000*(LOG10($K$5)-LOG10(K18)))*$A$2,0),0) -> 0 | V18: =IF((L18>0),ROUND((101+1000*(LOG10($L$5)-LOG10(L18)))*$A$2,0),0) -> 0 | W18: =IF((M18>0),ROUND((101+1000*(LOG10($M$5)-LOG10(M18)))*$A$2,0),0) -> 0 | X18: =IF((N18>0),ROUND((101+1000*(LOG10($N$5)-LOG10(N18)))*$A$2,0),0) -> 0 | Y18: =SUM(LARGE(O18:X18,1),LARGE(O18:X18,2),LARGE(O18:X18,3)) -> 0
O19: =IF((E19>0),ROUND((101+1000*(LOG10($E$5)-LOG10(E19)))*$A$2,0),0) -> 0 | P19: =IF((F19>0),ROUND((101+1000*(LOG10($F$5)-LOG10(F19)))*$A$2,0),0) -> 0 | Q19: =IF((G19>0),ROUND((101+1000*(LOG10($G$5)-LOG10(G19)))*$A$2,0),0) -> 0 | R19: =IF((H19>0),ROUND((101+1000*(LOG10($H$5)-LOG10(H19)))*$A$2,0),0) -> 0 | S19: =IF((I19>0),ROUND((101+1000*(LOG10($I$5)-LOG10(I19)))*$A$2,0),0) -> 0 | T19: =IF((J19>0),ROUND((101+1000*(LOG10($J$5)-LOG10(J19)))*$A$2,0),0) -> 0 | U19: =IF((K19>0),ROUND((101+1000*(LOG10($K$5)-LOG10(K19)))*$A$2,0),0) -> 0 | V19: =IF((L19>0),ROUND((101+1000*(LOG10($L$5)-LOG10(L19)))*$A$2,0),0) -> 0 | W19: =IF((M19>0),ROUND((101+1000*(LOG10($M$5)-LOG10(M19)))*$A$2,0),0) -> 0 | X19: =IF((N19>0),ROUND((101+1000*(LOG10($N$5)-LOG10(N19)))*$A$2,0),0) -> 0 | Y19: =SUM(LARGE(O19:X19,1),LARGE(O19:X19,2),LARGE(O19:X19,3)) -> 0
O20: =IF((E20>0),ROUND((101+1000*(LOG10($E$5)-LOG10(E20)))*$A$2,0),0) -> 0 | P20: =IF((F20>0),ROUND((101+1000*(LOG10($F$5)-LOG10(F20)))*$A$2,0),0) -> 0 | Q20: =IF((G20>0),ROUND((101+1000*(LOG10($G$5)-LOG10(G20)))*$A$2,0),0) -> 0 | R20: =IF((H20>0),ROUND((101+1000*(LOG10($H$5)-LOG10(H20)))*$A$2,0),0) -> 0 | S20: =IF((I20>0),ROUND((101+1000*(LOG10($I$5)-LOG10(I20)))*$A$2,0),0) -> 0 | T20: =IF((J20>0),ROUND((101+1000*(LOG10($J$5)-LOG10(J20)))*$A$2,0),0) -> 0 | U20: =IF((K20>0),ROUND((101+1000*(LOG10($K$5)-LOG10(K20)))*$A$2,0),0) -> 0 | V20: =IF((L20>0),ROUND((101+1000*(LOG10($L$5)-LOG10(L20)))*$A$2,0),0) -> 0 | W20: =IF((M20>0),ROUND((101+1000*(LOG10($M$5)-LOG10(M20)))*$A$2,0),0) -> 0 | X20: =IF((N20>0),ROUND((101+1000*(LOG10($N$5)-LOG10(N20)))*$A$2,0),0) -> 0 | Y20: =SUM(LARGE(O20:X20,1),LARGE(O20:X20,2),LARGE(O20:X20,3)) -> 0
O21: =IF((E21>0),ROUND((101+1000*(LOG10($E$5)-LOG10(E21)))*$A$2,0),0) -> 0 | P21: =IF((F21>0),ROUND((101+1000*(LOG10($F$5)-LOG10(F21)))*$A$2,0),0) -> 0 | Q21: =IF((G21>0),ROUND((101+1000*(LOG10($G$5)-LOG10(G21)))*$A$2,0),0) -> 0 | R21: =IF((H21>0),ROUND((101+1000*(LOG10($H$5)-LOG10(H21)))*$A$2,0),0) -> 0 | S21: =IF((I21>0),ROUND((101+1000*(LOG10($I$5)-LOG10(I21)))*$A$2,0),0) -> 0 | T21: =IF((J21>0),ROUND((101+1000*(LOG10($J$5)-LOG10(J21)))*$A$2,0),0) -> 0 | U21: =IF((K21>0),ROUND((101+1000*(LOG10($K$5)-LOG10(K21)))*$A$2,0),0) -> 0 | V21: =IF((L21>0),ROUND((101+1000*(LOG10($L$5)-LOG10(L21)))*$A$2,0),0) -> 0 | W21: =IF((M21>0),ROUND((101+1000*(LOG10($M$5)-LOG10(M21)))*$A$2,0),0) -> 0 | X21: =IF((N21>0),ROUND((101+1000*(LOG10($N$5)-LOG10(N21)))*$A$2,0),0) -> 0 | Y21: =SUM(LARGE(O21:X21,1),LARGE(O21:X21,2),LARGE(O21:X21,3)) -> 0
A22: 17 | O22: =IF((E22>0),ROUND((101+1000*(LOG10($E$5)-LOG10(E22)))*$A$2,0),0) -> 0 | P22: =IF((F22>0),ROUND((101+1000*(LOG10($F$5)-LOG10(F22)))*$A$2,0),0) -> 0 | Q22: =IF((G22>0),ROUND((101+1000*(LOG10($G$5)-LOG10(G22)))*$A$2,0),0) -> 0 | R22: =IF((H22>0),ROUND((101+1000*(LOG10($H$5)-LOG10(H22)))*$A$2,0),0) -> 0 | S22: =IF((I22>0),ROUND((101+1000*(LOG10($I$5)-LOG10(I22)))*$A$2,0),0) -> 0 | T22: =IF((J22>0),ROUND((101+1000*(LOG10($J$5)-LOG10(J22)))*$A$2,0),0) -> 0 | U22: =IF((K22>0),ROUND((101+1000*(LOG10($K$5)-LOG10(K22)))*$A$2,0),0) -> 0 | V22: =IF((L22>0),ROUND((101+1000*(LOG10($L$5)-LOG10(L22)))*$A$2,0),0) -> 0 | W22: =IF((M22>0),ROUND((101+1000*(LOG10($M$5)-LOG10(M22)))*$A$2,0),0) -> 0 | X22: =IF((N22>0),ROUND((101+1000*(LOG10($N$5)-LOG10(N22)))*$A$2,0),0) -> 0 | Y22: =SUM(LARGE(O22:X22,1),LARGE(O22:X22,2),LARGE(O22:X22,3)) -> 0
A23: 18 | O23: =IF((E23>0),ROUND((101+1000*(LOG10($E$5)-LOG10(E23)))*$A$2,0),0) -> 0 | P23: =IF((F23>0),ROUND((101+1000*(LOG10($F$5)-LOG10(F23)))*$A$2,0),0) -> 0 | Q23: =IF((G23>0),ROUND((101+1000*(LOG10($G$5)-LOG10(G23)))*$A$2,0),0) -> 0 | R23: =IF((H23>0),ROUND((101+1000*(LOG10($H$5)-LOG10(H23)))*$A$2,0),0) -> 0 | S23: =IF((I23>0),ROUND((101+1000*(LOG10($I$5)-LOG10(I23)))*$A$2,0),0) -> 0 | T23: =IF((J23>0),ROUND((101+1000*(LOG10($J$5)-LOG10(J23)))*$A$2,0),0) -> 0 | U23: =IF((K23>0),ROUND((101+1000*(LOG10($K$5)-LOG10(K23)))*$A$2,0),0) -> 0 | V23: =IF((L23>0),ROUND((101+1000*(LOG10($L$5)-LOG10(L23)))*$A$2,0),0) -> 0 | W23: =IF((M23>0),ROUND((101+1000*(LOG10($M$5)-LOG10(M23)))*$A$2,0),0) -> 0 | X23: =IF((N23>0),ROUND((101+1000*(LOG10($N$5)-LOG10(N23)))*$A$2,0),0) -> 0 | Y23: =SUM(LARGE(O23:X23,1),LARGE(O23:X23,2),LARGE(O23:X23,3)) -> 0
A24: 19 | O24: =IF((E24>0),ROUND((101+1000*(LOG10($E$5)-LOG10(E24)))*$A$2,0),0) -> 0 | P24: =IF((F24>0),ROUND((101+1000*(LOG10($F$5)-LOG10(F24)))*$A$2,0),0) -> 0 | Q24: =IF((G24>0),ROUND((101+1000*(LOG10($G$5)-LOG10(G24)))*$A$2,0),0) -> 0 | R24: =IF((H24>0),ROUND((101+1000*(LOG10($H$5)-LOG10(H24)))*$A$2,0),0) -> 0 | S24: =IF((I24>0),ROUND((101+1000*(LOG10($I$5)-LOG10(I24)))*$A$2,0),0) -> 0 | T24: =IF((J24>0),ROUND((101+1000*(LOG10($J$5)-LOG10(J24)))*$A$2,0),0) -> 0 | U24: =IF((K24>0),ROUND((101+1000*(LOG10($K$5)-LOG10(K24)))*$A$2,0),0) -> 0 | V24: =IF((L24>0),ROUND((101+1000*(LOG10($L$5)-LOG10(L24)))*$A$2,0),0) -> 0 | W24: =IF((M24>0),ROUND((101+1000*(LOG10($M$5)-LOG10(M24)))*$A$2,0),0) -> 0 | X24: =IF((N24>0),ROUND((101+1000*(LOG10($N$5)-LOG10(N24)))*$A$2,0),0) -> 0 | Y24: =SUM(LARGE(O24:X24,1),LARGE(O24:X24,2),LARGE(O24:X24,3)) -> 0
A25: 20 | O25: =IF((E25>0),ROUND((101+1000*(LOG10($E$5)-LOG10(E25)))*$A$2,0),0) -> 0 | P25: =IF((F25>0),ROUND((101+1000*(LOG10($F$5)-LOG10(F25)))*$A$2,0),0) -> 0 | Q25: =IF((G25>0),ROUND((101+1000*(LOG10($G$5)-LOG10(G25)))*$A$2,0),0) -> 0 | R25: =IF((H25>0),ROUND((101+1000*(LOG10($H$5)-LOG10(H25)))*$A$2,0),0) -> 0 | S25: =IF((I25>0),ROUND((101+1000*(LOG10($I$5)-LOG10(I25)))*$A$2,0),0) -> 0 | T25: =IF((J25>0),ROUND((101+1000*(LOG10($J$5)-LOG10(J25)))*$A$2,0),0) -> 0 | U25: =IF((K25>0),ROUND((101+1000*(LOG10($K$5)-LOG10(K25)))*$A$2,0),0) -> 0 | V25: =IF((L25>0),ROUND((101+1000*(LOG10($L$5)-LOG10(L25)))*$A$2,0),0) -> 0 | W25: =IF((M25>0),ROUND((101+1000*(LOG10($M$5)-LOG10(M25)))*$A$2,0),0) -> 0 | X25: =IF((N25>0),ROUND((101+1000*(LOG10($N$5)-LOG10(N25)))*$A$2,0),0) -> 0 | Y25: =SUM(LARGE(O25:X25,1),LARGE(O25:X25,2),LARGE(O25:X25,3)) -> 0
A26: 21 | O26: =IF((E26>0),ROUND((101+1000*(LOG10($E$5)-LOG10(E26)))*$A$2,0),0) -> 0 | P26: =IF((F26>0),ROUND((101+1000*(LOG10($F$5)-LOG10(F26)))*$A$2,0),0) -> 0 | Q26: =IF((G26>0),ROUND((101+1000*(LOG10($G$5)-LOG10(G26)))*$A$2,0),0) -> 0 | R26: =IF((H26>0),ROUND((101+1000*(LOG10($H$5)-LOG10(H26)))*$A$2,0),0) -> 0 | S26: =IF((I26>0),ROUND((101+1000*(LOG10($I$5)-LOG10(I26)))*$A$2,0),0) -> 0 | T26: =IF((J26>0),ROUND((101+1000*(LOG10($J$5)-LOG10(J26)))*$A$2,0),0) -> 0 | U26: =IF((K26>0),ROUND((101+1000*(LOG10($K$5)-LOG10(K26)))*$A$2,0),0) -> 0 | V26: =IF((L26>0),ROUND((101+1000*(LOG10($L$5)-LOG10(L26)))*$A$2,0),0) -> 0 | W26: =IF((M26>0),ROUND((101+1000*(LOG10($M$5)-LOG10(M26)))*$A$2,0),0) -> 0 | X26: =IF((N26>0),ROUND((101+1000*(LOG10($N$5)-LOG10(N26)))*$A$2,0),0) -> 0 | Y26: =SUM(LARGE(O26:X26,1),LARGE(O26:X26,2),LARGE(O26:X26,3)) -> 0
A27: 22 | O27: =IF((E27>0),ROUND((101+1000*(LOG10($E$5)-LOG10(E27)))*$A$2,0),0) -> 0 | P27: =IF((F27>0),ROUND((101+1000*(LOG10($F$5)-LOG10(F27)))*$A$2,0),0) -> 0 | Q27: =IF((G27>0),ROUND((101+1000*(LOG10($G$5)-LOG10(G27)))*$A$2,0),0) -> 0 | R27: =IF((H27>0),ROUND((101+1000*(LOG10($H$5)-LOG10(H27)))*$A$2,0),0) -> 0 | S27: =IF((I27>0),ROUND((101+1000*(LOG10($I$5)-LOG10(I27)))*$A$2,0),0) -> 0 | T27: =IF((J27>0),ROUND((101+1000*(LOG10($J$5)-LOG10(J27)))*$A$2,0),0) -> 0 | U27: =IF((K27>0),ROUND((101+1000*(LOG10($K$5)-LOG10(K27)))*$A$2,0),0) -> 0 | V27: =IF((L27>0),ROUND((101+1000*(LOG10($L$5)-LOG10(L27)))*$A$2,0),0) -> 0 | W27: =IF((M27>0),ROUND((101+1000*(LOG10($M$5)-LOG10(M27)))*$A$2,0),0) -> 0 | X27: =IF((N27>0),ROUND((101+1000*(LOG10($N$5)-LOG10(N27)))*$A$2,0),0) -> 0 | Y27: =SUM(LARGE(O27:X27,1),LARGE(O27:X27,2),LARGE(O27:X27,3)) -> 0
A28: 23 | O28: =IF((E28>0),ROUND((101+1000*(LOG10($E$5)-LOG10(E28)))*$A$2,0),0) -> 0 | P28: =IF((F28>0),ROUND((101+1000*(LOG10($F$5)-LOG10(F28)))*$A$2,0),0) -> 0 | Q28: =IF((G28>0),ROUND((101+1000*(LOG10($G$5)-LOG10(G28)))*$A$2,0),0) -> 0 | R28: =IF((H28>0),ROUND((101+1000*(LOG10($H$5)-LOG10(H28)))*$A$2,0),0) -> 0 | S28: =IF((I28>0),ROUND((101+1000*(LOG10($I$5)-LOG10(I28)))*$A$2,0),0) -> 0 | T28: =IF((J28>0),ROUND((101+1000*(LOG10($J$5)-LOG10(J28)))*$A$2,0),0) -> 0 | U28: =IF((K28>0),ROUND((101+1000*(LOG10($K$5)-LOG10(K28)))*$A$2,0),0) -> 0 | V28: =IF((L28>0),ROUND((101+1000*(LOG10($L$5)-LOG10(L28)))*$A$2,0),0) -> 0 | W28: =IF((M28>0),ROUND((101+1000*(LOG10($M$5)-LOG10(M28)))*$A$2,0),0) -> 0 | X28: =IF((N28>0),ROUND((101+1000*(LOG10($N$5)-LOG10(N28)))*$A$2,0),0) -> 0 | Y28: =SUM(LARGE(O28:X28,1),LARGE(O28:X28,2),LARGE(O28:X28,3)) -> 0
A29: 24 | O29: =IF((E29>0),ROUND((101+1000*(LOG10($E$5)-LOG10(E29)))*$A$2,0),0) -> 0 | P29: =IF((F29>0),ROUND((101+1000*(LOG10($F$5)-LOG10(F29)))*$A$2,0),0) -> 0 | Q29: =IF((G29>0),ROUND((101+1000*(LOG10($G$5)-LOG10(G29)))*$A$2,0),0) -> 0 | R29: =IF((H29>0),ROUND((101+1000*(LOG10($H$5)-LOG10(H29)))*$A$2,0),0) -> 0 | S29: =IF((I29>0),ROUND((101+1000*(LOG10($I$5)-LOG10(I29)))*$A$2,0),0) -> 0 | T29: =IF((J29>0),ROUND((101+1000*(LOG10($J$5)-LOG10(J29)))*$A$2,0),0) -> 0 | U29: =IF((K29>0),ROUND((101+1000*(LOG10($K$5)-LOG10(K29)))*$A$2,0),0) -> 0 | V29: =IF((L29>0),ROUND((101+1000*(LOG10($L$5)-LOG10(L29)))*$A$2,0),0) -> 0 | W29: =IF((M29>0),ROUND((101+1000*(LOG10($M$5)-LOG10(M29)))*$A$2,0),0) -> 0 | X29: =IF((N29>0),ROUND((101+1000*(LOG10($N$5)-LOG10(N29)))*$A$2,0),0) -> 0 | Y29: =SUM(LARGE(O29:X29,1),LARGE(O29:X29,2),LARGE(O29:X29,3)) -> 0
A30: 25 | O30: =IF((E30>0),ROUND((101+1000*(LOG10($E$5)-LOG10(E30)))*$A$2,0),0) -> 0 | P30: =IF((F30>0),ROUND((101+1000*(LOG10($F$5)-LOG10(F30)))*$A$2,0),0) -> 0 | Q30: =IF((G30>0),ROUND((101+1000*(LOG10($G$5)-LOG10(G30)))*$A$2,0),0) -> 0 | R30: =IF((H30>0),ROUND((101+1000*(LOG10($H$5)-LOG10(H30)))*$A$2,0),0) -> 0 | S30: =IF((I30>0),ROUND((101+1000*(LOG10($I$5)-LOG10(I30)))*$A$2,0),0) -> 0 | T30: =IF((J30>0),ROUND((101+1000*(LOG10($J$5)-LOG10(J30)))*$A$2,0),0) -> 0 | U30: =IF((K30>0),ROUND((101+1000*(LOG10($K$5)-LOG10(K30)))*$A$2,0),0) -> 0 | V30: =IF((L30>0),ROUND((101+1000*(LOG10($L$5)-LOG10(L30)))*$A$2,0),0) -> 0 | W30: =IF((M30>0),ROUND((101+1000*(LOG10($M$5)-LOG10(M30)))*$A$2,0),0) -> 0 | X30: =IF((N30>0),ROUND((101+1000*(LOG10($N$5)-LOG10(N30)))*$A$2,0),0) -> 0 | Y30: =SUM(LARGE(O30:X30,1),LARGE(O30:X30,2),LARGE(O30:X30,3)) -> 0
A31: 26 | O31: =IF((E31>0),ROUND((101+1000*(LOG10($E$5)-LOG10(E31)))*$A$2,0),0) -> 0 | P31: =IF((F31>0),ROUND((101+1000*(LOG10($F$5)-LOG10(F31)))*$A$2,0),0) -> 0 | Q31: =IF((G31>0),ROUND((101+1000*(LOG10($G$5)-LOG10(G31)))*$A$2,0),0) -> 0 | R31: =IF((H31>0),ROUND((101+1000*(LOG10($H$5)-LOG10(H31)))*$A$2,0),0) -> 0 | S31: =IF((I31>0),ROUND((101+1000*(LOG10($I$5)-LOG10(I31)))*$A$2,0),0) -> 0 | T31: =IF((J31>0),ROUND((101+1000*(LOG10($J$5)-LOG10(J31)))*$A$2,0),0) -> 0 | U31: =IF((K31>0),ROUND((101+1000*(LOG10($K$5)-LOG10(K31)))*$A$2,0),0) -> 0 | V31: =IF((L31>0),ROUND((101+1000*(LOG10($L$5)-LOG10(L31)))*$A$2,0),0) -> 0 | W31: =IF((M31>0),ROUND((101+1000*(LOG10($M$5)-LOG10(M31)))*$A$2,0),0) -> 0 | X31: =IF((N31>0),ROUND((101+1000*(LOG10($N$5)-LOG10(N31)))*$A$2,0),0) -> 0 | Y31: =SUM(LARGE(O31:X31,1),LARGE(O31:X31,2),LARGE(O31:X31,3)) -> 0
A32: 27 | O32: =IF((E32>0),ROUND((101+1000*(LOG10($E$5)-LOG10(E32)))*$A$2,0),0) -> 0 | P32: =IF((F32>0),ROUND((101+1000*(LOG10($F$5)-LOG10(F32)))*$A$2,0),0) -> 0 | Q32: =IF((G32>0),ROUND((101+1000*(LOG10($G$5)-LOG10(G32)))*$A$2,0),0) -> 0 | R32: =IF((H32>0),ROUND((101+1000*(LOG10($H$5)-LOG10(H32)))*$A$2,0),0) -> 0 | S32: =IF((I32>0),ROUND((101+1000*(LOG10($I$5)-LOG10(I32)))*$A$2,0),0) -> 0 | T32: =IF((J32>0),ROUND((101+1000*(LOG10($J$5)-LOG10(J32)))*$A$2,0),0) -> 0 | U32: =IF((K32>0),ROUND((101+1000*(LOG10($K$5)-LOG10(K32)))*$A$2,0),0) -> 0 | V32: =IF((L32>0),ROUND((101+1000*(LOG10($L$5)-LOG10(L32)))*$A$2,0),0) -> 0 | W32: =IF((M32>0),ROUND((101+1000*(LOG10($M$5)-LOG10(M32)))*$A$2,0),0) -> 0 | X32: =IF((N32>0),ROUND((101+1000*(LOG10($N$5)-LOG10(N32)))*$A$2,0),0) -> 0 | Y32: =SUM(LARGE(O32:X32,1),LARGE(O32:X32,2),LARGE(O32:X32,3)) -> 0
A33: 28 | O33: =IF((E33>0),ROUND((101+1000*(LOG10($E$5)-LOG10(E33)))*$A$2,0),0) -> 0 | P33: =IF((F33>0),ROUND((101+1000*(LOG10($F$5)-LOG10(F33)))*$A$2,0),0) -> 0 | Q33: =IF((G33>0),ROUND((101+1000*(LOG10($G$5)-LOG10(G33)))*$A$2,0),0) -> 0 | R33: =IF((H33>0),ROUND((101+1000*(LOG10($H$5)-LOG10(H33)))*$A$2,0),0) -> 0 | S33: =IF((I33>0),ROUND((101+1000*(LOG10($I$5)-LOG10(I33)))*$A$2,0),0) -> 0 | T33: =IF((J33>0),ROUND((101+1000*(LOG10($J$5)-LOG10(J33)))*$A$2,0),0) -> 0 | U33: =IF((K33>0),ROUND((101+1000*(LOG10($K$5)-LOG10(K33)))*$A$2,0),0) -> 0 | V33: =IF((L33>0),ROUND((101+1000*(LOG10($L$5)-LOG10(L33)))*$A$2,0),0) -> 0 | W33: =IF((M33>0),ROUND((101+1000*(LOG10($M$5)-LOG10(M33)))*$A$2,0),0) -> 0 | X33: =IF((N33>0),ROUND((101+1000*(LOG10($N$5)-LOG10(N33)))*$A$2,0),0) -> 0 | Y33: =SUM(LARGE(O33:X33,1),LARGE(O33:X33,2),LARGE(O33:X33,3)) -> 0
A34: 29 | O34: =IF((E34>0),ROUND((101+1000*(LOG10($E$5)-LOG10(E34)))*$A$2,0),0) -> 0 | P34: =IF((F34>0),ROUND((101+1000*(LOG10($F$5)-LOG10(F34)))*$A$2,0),0) -> 0 | Q34: =IF((G34>0),ROUND((101+1000*(LOG10($G$5)-LOG10(G34)))*$A$2,0),0) -> 0 | R34: =IF((H34>0),ROUND((101+1000*(LOG10($H$5)-LOG10(H34)))*$A$2,0),0) -> 0 | S34: =IF((I34>0),ROUND((101+1000*(LOG10($I$5)-LOG10(I34)))*$A$2,0),0) -> 0 | T34: =IF((J34>0),ROUND((101+1000*(LOG10($J$5)-LOG10(J34)))*$A$2,0),0) -> 0 | U34: =IF((K34>0),ROUND((101+1000*(LOG10($K$5)-LOG10(K34)))*$A$2,0),0) -> 0 | V34: =IF((L34>0),ROUND((101+1000*(LOG10($L$5)-LOG10(L34)))*$A$2,0),0) -> 0 | W34: =IF((M34>0),ROUND((101+1000*(LOG10($M$5)-LOG10(M34)))*$A$2,0),0) -> 0 | X34: =IF((N34>0),ROUND((101+1000*(LOG10($N$5)-LOG10(N34)))*$A$2,0),0) -> 0 | Y34: =SUM(LARGE(O34:X34,1),LARGE(O34:X34,2),LARGE(O34:X34,3)) -> 0
A35: 30 | O35: =IF((E35>0),ROUND((101+1000*(LOG10($E$5)-LOG10(E35)))*$A$2,0),0) -> 0 | P35: =IF((F35>0),ROUND((101+1000*(LOG10($F$5)-LOG10(F35)))*$A$2,0),0) -> 0 | Q35: =IF((G35>0),ROUND((101+1000*(LOG10($G$5)-LOG10(G35)))*$A$2,0),0) -> 0 | R35: =IF((H35>0),ROUND((101+1000*(LOG10($H$5)-LOG10(H35)))*$A$2,0),0) -> 0 | S35: =IF((I35>0),ROUND((101+1000*(LOG10($I$5)-LOG10(I35)))*$A$2,0),0) -> 0 | T35: =IF((J35>0),ROUND((101+1000*(LOG10($J$5)-LOG10(J35)))*$A$2,0),0) -> 0 | U35: =IF((K35>0),ROUND((101+1000*(LOG10($K$5)-LOG10(K35)))*$A$2,0),0) -> 0 | V35: =IF((L35>0),ROUND((101+1000*(LOG10($L$5)-LOG10(L35)))*$A$2,0),0) -> 0 | W35: =IF((M35>0),ROUND((101+1000*(LOG10($M$5)-LOG10(M35)))*$A$2,0),0) -> 0 | X35: =IF((N35>0),ROUND((101+1000*(LOG10($N$5)-LOG10(N35)))*$A$2,0),0) -> 0 | Y35: =SUM(LARGE(O35:X35,1),LARGE(O35:X35,2),LARGE(O35:X35,3)) -> 0
A36: 31 | O36: =IF((E36>0),ROUND((101+1000*(LOG10($E$5)-LOG10(E36)))*$A$2,0),0) -> 0 | P36: =IF((F36>0),ROUND((101+1000*(LOG10($F$5)-LOG10(F36)))*$A$2,0),0) -> 0 | Q36: =IF((G36>0),ROUND((101+1000*(LOG10($G$5)-LOG10(G36)))*$A$2,0),0) -> 0 | R36: =IF((H36>0),ROUND((101+1000*(LOG10($H$5)-LOG10(H36)))*$A$2,0),0) -> 0 | S36: =IF((I36>0),ROUND((101+1000*(LOG10($I$5)-LOG10(I36)))*$A$2,0),0) -> 0 | T36: =IF((J36>0),ROUND((101+1000*(LOG10($J$5)-LOG10(J36)))*$A$2,0),0) -> 0 | U36: =IF((K36>0),ROUND((101+1000*(LOG10($K$5)-LOG10(K36)))*$A$2,0),0) -> 0 | V36: =IF((L36>0),ROUND((101+1000*(LOG10($L$5)-LOG10(L36)))*$A$2,0),0) -> 0 | W36: =IF((M36>0),ROUND((101+1000*(LOG10($M$5)-LOG10(M36)))*$A$2,0),0) -> 0 | X36: =IF((N36>0),ROUND((101+1000*(LOG10($N$5)-LOG10(N36)))*$A$2,0),0) -> 0 | Y36: =SUM(LARGE(O36:X36,1),LARGE(O36:X36,2),LARGE(O36:X36,3)) -> 0
A37: 32 | O37: =IF((E37>0),ROUND((101+1000*(LOG10($E$5)-LOG10(E37)))*$A$2,0),0) -> 0 | P37: =IF((F37>0),ROUND((101+1000*(LOG10($F$5)-LOG10(F37)))*$A$2,0),0) -> 0 | Q37: =IF((G37>0),ROUND((101+1000*(LOG10($G$5)-LOG10(G37)))*$A$2,0),0) -> 0 | R37: =IF((H37>0),ROUND((101+1000*(LOG10($H$5)-LOG10(H37)))*$A$2,0),0) -> 0 | S37: =IF((I37>0),ROUND((101+1000*(LOG10($I$5)-LOG10(I37)))*$A$2,0),0) -> 0 | T37: =IF((J37>0),ROUND((101+1000*(LOG10($J$5)-LOG10(J37)))*$A$2,0),0) -> 0 | U37: =IF((K37>0),ROUND((101+1000*(LOG10($K$5)-LOG10(K37)))*$A$2,0),0) -> 0 | V37: =IF((L37>0),ROUND((101+1000*(LOG10($L$5)-LOG10(L37)))*$A$2,0),0) -> 0 | W37: =IF((M37>0),ROUND((101+1000*(LOG10($M$5)-LOG10(M37)))*$A$2,0),0) -> 0 | X37: =IF((N37>0),ROUND((101+1000*(LOG10($N$5)-LOG10(N37)))*$A$2,0),0) -> 0 | Y37: =SUM(LARGE(O37:X37,1),LARGE(O37:X37,2),LARGE(O37:X37,3)) -> 0

Sheet Regionální pohár Morava
A1: 3M | B1: 2018 | C1: Pouze členi | D1: A | I1: Věk min: | M1: Rok: | N1: 2013
A2: 3 | B2: koeficient pro logaritmické body | I2: Věk max:
A4: RAC - Regionální pohár Morava 2018 | E4: 182120 | F4: 182132 | G4: 182209 | O4: Starobrno Cup | P4: Veterán Cup | Q4: Tvarůžková regata
D5: Poč. záv./CTL | E5: 12 | F5: 11 | G5: 10 | O5: 182120 | P5: 182132 | Q5: 182209 | X5: =IF(N4,N4,"") -> 
A6: Poř. celk. | B6: Kat. | C6: Reg. číslo | D6: Jméno | E6: Poř. | F6: Poř. | G6: Poř. | H6: Poř. | I6: Poř. | J6: Poř. | K6: Poř. | L6: Poř. | M6: Poř. | N6: Poř. | O6: Body | P6: Body | Q6: Body | R6: Body | S6: Body | T6: Body | U6: Body | V6: Body | W6: Body | X6: Body | Y6: Celkem
A7: 1 | B7: 1.- | C7: 2110-0050 | D7: Kučera Petr | E7: 2 | F7: 1 | G7: 2 | O7: =IF((E7>0),ROUND((101+1000*(LOG10($E$5)-LOG10(E7)))*$A$2,0),0) -> 2637 | P7: =IF((F7>0),ROUND((101+1000*(LOG10($F$5)-LOG10(F7)))*$A$2,0),0) -> 3427 | Q7: =IF((G7>0),ROUND((101+1000*(LOG10($G$5)-LOG10(G7)))*$A$2,0),0) -> 2400 | R7: =IF((H7>0),ROUND((101+1000*(LOG10($H$5)-LOG10(H7)))*$A$2,0),0) -> 0 | S7: =IF((I7>0),ROUND((101+1000*(LOG10($I$5)-LOG10(I7)))*$A$2,0),0) -> 0 | T7: =IF((J7>0),ROUND((101+1000*(LOG10($J$5)-LOG10(J7)))*$A$2,0),0) -> 0 | U7: =IF((K7>0),ROUND((101+1000*(LOG10($K$5)-LOG10(K7)))*$A$2,0),0) -> 0 | V7: =IF((L7>0),ROUND((101+1000*(LOG10($L$5)-LOG10(L7)))*$A$2,0),0) -> 0 | W7: =IF((M7>0),ROUND((101+1000*(LOG10($M$5)-LOG10(M7)))*$A$2,0),0) -> 0 | X7: =IF((N7>0),ROUND((101+1000*(LOG10($N$5)-LOG10(N7)))*$A$2,0),0) -> 0 | Y7: =SUM(LARGE(O7:X7,1),LARGE(O7:X7,2),LARGE(O7:X7,3)) -> 8464
A8: 2 | B8: 1.M | C8: 2001-0096 | D8: Kamenský Radim | E8: 1 | G8: 1 | O8: =IF((E8>0),ROUND((101+1000*(LOG10($E$5)-LOG10(E8)))*$A$2,0),0) -> 3541 | P8: =IF((F8>0),ROUND((101+1000*(LOG10($F$5)-LOG10(F8)))*$A$2,0),0) -> 0 | Q8: =IF((G8>0),ROUND((101+1000*(LOG10($G$5)-LOG10(G8)))*$A$2,0),0) -> 3303 | R8: =IF((H8>0),ROUND((101+1000*(LOG10($H$5)-LOG10(H8)))*$A$2,0),0) -> 0 | S8: =IF((I8>0),ROUND((101+1000*(LOG10($I$5)-LOG10(I8)))*$A$2,0),0) -> 0 | T8: =IF((J8>0),ROUND((101+1000*(LOG10($J$5)-LOG10(J8)))*$A$2,0),0) -> 0 | U8: =IF((K8>0),ROUND((101+1000*(LOG10($K$5)-LOG10(K8)))*$A$2,0),0) -> 0 | V8: =IF((L8>0),ROUND((101+1000*(LOG10($L$5)-LOG10(L8)))*$A$2,0),0) -> 0 | W8: =IF((M8>0),ROUND((101+1000*(LOG10($M$5)-LOG10(M8)))*$A$2,0),0) -> 0 | X8: =IF((N8>0),ROUND((101+1000*(LOG10($N$5)-LOG10(N8)))*$A$2,0),0) -> 0 | Y8: =SUM(LARGE(O8:X8,1),LARGE(O8:X8,2),LARGE(O8:X8,3)) -> 6844
A9: 3 | B9: 2.M | C9: 2413-0001 | D9: Král Jiří | E9: 3 | F9: 2 | G9: 3 | O9: =IF((E9>0),ROUND((101+1000*(LOG10($E$5)-LOG10(E9)))*$A$2,0),0) -> 2109 | P9: =IF((F9>0),ROUND((101+1000*(LOG10($F$5)-LOG10(F9)))*$A$2,0),0) -> 2524 | Q9: =IF((G9>0),ROUND((101+1000*(LOG10($G$5)-LOG10(G9)))*$A$2,0),0) -> 1872 | R9: =IF((H9>0),ROUND((101+1000*(LOG10($H$5)-LOG10(H9)))*$A$2,0),0) -> 0 | S9: =IF((I9>0),ROUND((101+1000*(LOG10($I$5)-LOG10(I9)))*$A$2,0),0) -> 0 | T9: =IF((J9>0),ROUND((101+1000*(LOG10($J$5)-LOG10(J9)))*$A$2,0),0) -> 0 | U9: =IF((K9>0),ROUND((101+1000*(LOG10($K$5)-LOG10(K9)))*$A$2,0),0) -> 0 | V9: =IF((L9>0),ROUND((101+1000*(LOG10($L$5)-LOG10(L9)))*$A$2,0),0) -> 0 | W9: =IF((M9>0),ROUND((101+1000*(LOG10($M$5)-LOG10(M9)))*$A$2,0),0) -> 0 | X9: =IF((N9>0),ROUND((101+1000*(LOG10($N$5)-LOG10(N9)))*$A$2,0),0) -> 0 | Y9: =SUM(LARGE(O9:X9,1),LARGE(O9:X9,2),LARGE(O9:X9,3)) -> 6505
A10: 4 | B10: 1.GM | C10: 2101-0375 | D10: Pospíšil Martin | E10: 5 | F10: 3 | O10: =IF((E10>0),ROUND((101+1000*(LOG10($E$5)-LOG10(E10)))*$A$2,0),0) -> 1444 | P10: =IF((F10>0),ROUND((101+1000*(LOG10($F$5)-LOG10(F10)))*$A$2,0),0) -> 1996 | Q10: =IF((G10>0),ROUND((101+1000*(LOG10($G$5)-LOG10(G10)))*$A$2,0),0) -> 0 | R10: =IF((H10>0),ROUND((101+1000*(LOG10($H$5)-LOG10(H10)))*$A$2,0),0) -> 0 | S10: =IF((I10>0),ROUND((101+1000*(LOG10($I$5)-LOG10(I10)))*$A$2,0),0) -> 0 | T10: =IF((J10>0),ROUND((101+1000*(LOG10($J$5)-LOG10(J10)))*$A$2,0),0) -> 0 | U10: =IF((K10>0),ROUND((101+1000*(LOG10($K$5)-LOG10(K10)))*$A$2,0),0) -> 0 | V10: =IF((L10>0),ROUND((101+1000*(LOG10($L$5)-LOG10(L10)))*$A$2,0),0) -> 0 | W10: =IF((M10>0),ROUND((101+1000*(LOG10($M$5)-LOG10(M10)))*$A$2,0),0) -> 0 | X10: =IF((N10>0),ROUND((101+1000*(LOG10($N$5)-LOG10(N10)))*$A$2,0),0) -> 0 | Y10: =SUM(LARGE(O10:X10,1),LARGE(O10:X10,2),LARGE(O10:X10,3)) -> 3440
A11: 5 | B11: 1.V | C11: 2405-0133 | D11: Mielec Lubomír | E11: 7 | F11: 5 | G11: 8 | O11: =IF((E11>0),ROUND((101+1000*(LOG10($E$5)-LOG10(E11)))*$A$2,0),0) -> 1005 | P11: =IF((F11>0),ROUND((101+1000*(LOG10($F$5)-LOG10(F11)))*$A$2,0),0) -> 1330 | Q11: =IF((G11>0),ROUND((101+1000*(LOG10($G$5)-LOG10(G11)))*$A$2,0),0) -> 594 | R11: =IF((H11>0),ROUND((101+1000*(LOG10($H$5)-LOG10(H11)))*$A$2,0),0) -> 0 | S11: =IF((I11>0),ROUND((101+1000*(LOG10($I$5)-LOG10(I11)))*$A$2,0),0) -> 0 | T11: =IF((J11>0),ROUND((101+1000*(LOG10($J$5)-LOG10(J11)))*$A$2,0),0) -> 0 | U11: =IF((K11>0),ROUND((101+1000*(LOG10($K$5)-LOG10(K11)))*$A$2,0),0) -> 0 | V11: =IF((L11>0),ROUND((101+1000*(LOG10($L$5)-LOG10(L11)))*$A$2,0),0) -> 0 | W11: =IF((M11>0),ROUND((101+1000*(LOG10($M$5)-LOG10(M11)))*$A$2,0),0) -> 0 | X11: =IF((N11>0),ROUND((101+1000*(LOG10($N$5)-LOG10(N11)))*$A$2,0),0) -> 0 | Y11: =SUM(LARGE(O11:X11,1),LARGE(O11:X11,2),LARGE(O11:X11,3)) -> 2929
A12: 6 | B12: 2.V | C12: 2110-0006 | D12: Kučera Petr | E12: 8 | F12: 11 | G12: 4 | O12: =IF((E12>0),ROUND((101+1000*(LOG10($E$5)-LOG10(E12)))*$A$2,0),0) -> 831 | P12: =IF((F12>0),ROUND((101+1000*(LOG10($F$5)-LOG10(F12)))*$A$2,0),0) -> 303 | Q12: =IF((G12>0),ROUND((101+1000*(LOG10($G$5)-LOG10(G12)))*$A$2,0),0) -> 1497 | R12: =IF((H12>0),ROUND((101+1000*(LOG10($H$5)-LOG10(H12)))*$A$2,0),0) -> 0 | S12: =IF((I12>0),ROUND((101+1000*(LOG10($I$5)-LOG10(I12)))*$A$2,0),0) -> 0 | T12: =IF((J12>0),ROUND((101+1000*(LOG10($J$5)-LOG10(J12)))*$A$2,0),0) -> 0 | U12: =IF((K12>0),ROUND((101+1000*(LOG10($K$5)-LOG10(K12)))*$A$2,0),0) -> 0 | V12: =IF((L12>0),ROUND((101+1000*(LOG10($L$5)-LOG10(L12)))*$A$2,0),0) -> 0 | W12: =IF((M12>0),ROUND((101+1000*(LOG10($M$5)-LOG10(M12)))*$A$2,0),0) -> 0 | X12: =IF((N12>0),ROUND((101+1000*(LOG10($N$5)-LOG10(N12)))*$A$2,0),0) -> 0 | Y12: =SUM(LARGE(O12:X12,1),LARGE(O12:X12,2),LARGE(O12:X12,3)) -> 2631
A13: 7 | B13: 3.V | C13: 1503-0180 | D13: Hrubý Roman | E13: 10 | F13: 4 | G13: 10 | O13: =IF((E13>0),ROUND((101+1000*(LOG10($E$5)-LOG10(E13)))*$A$2,0),0) -> 541 | P13: =IF((F13>0),ROUND((101+1000*(LOG10($F$5)-LOG10(F13)))*$A$2,0),0) -> 1621 | Q13: =IF((G13>0),ROUND((101+1000*(LOG10($G$5)-LOG10(G13)))*$A$2,0),0) -> 303 | R13: =IF((H13>0),ROUND((101+1000*(LOG10($H$5)-LOG10(H13)))*$A$2,0),0) -> 0 | S13: =IF((I13>0),ROUND((101+1000*(LOG10($I$5)-LOG10(I13)))*$A$2,0),0) -> 0 | T13: =IF((J13>0),ROUND((101+1000*(LOG10($J$5)-LOG10(J13)))*$A$2,0),0) -> 0 | U13: =IF((K13>0),ROUND((101+1000*(LOG10($K$5)-LOG10(K13)))*$A$2,0),0) -> 0 | V13: =IF((L13>0),ROUND((101+1000*(LOG10($L$5)-LOG10(L13)))*$A$2,0),0) -> 0 | W13: =IF((M13>0),ROUND((101+1000*(LOG10($M$5)-LOG10(M13)))*$A$2,0),0) -> 0 | X13: =IF((N13>0),ROUND((101+1000*(LOG10($N$5)-LOG10(N13)))*$A$2,0),0) -> 0 | Y13: =SUM(LARGE(O13:X13,1),LARGE(O13:X13,2),LARGE(O13:X13,3)) -> 2465
A14: 8 | B14: 3.M | C14: 2110-0111 | D14: Skřepek Jan | E14: 4 | F14: 8 | O14: =IF((E14>0),ROUND((101+1000*(LOG10($E$5)-LOG10(E14)))*$A$2,0),0) -> 1734 | P14: =IF((F14>0),ROUND((101+1000*(LOG10($F$5)-LOG10(F14)))*$A$2,0),0) -> 718 | Q14: =IF((G14>0),ROUND((101+1000*(LOG10($G$5)-LOG10(G14)))*$A$2,0),0) -> 0 | R14: =IF((H14>0),ROUND((101+1000*(LOG10($H$5)-LOG10(H14)))*$A$2,0),0) -> 0 | S14: =IF((I14>0),ROUND((101+1000*(LOG10($I$5)-LOG10(I14)))*$A$2,0),0) -> 0 | T14: =IF((J14>0),ROUND((101+1000*(LOG10($J$5)-LOG10(J14)))*$A$2,0),0) -> 0 | U14: =IF((K14>0),ROUND((101+1000*(LOG10($K$5)-LOG10(K14)))*$A$2,0),0) -> 0 | V14: =IF((L14>0),ROUND((101+1000*(LOG10($L$5)-LOG10(L14)))*$A$2,0),0) -> 0 | W14: =IF((M14>0),ROUND((101+1000*(LOG10($M$5)-LOG10(M14)))*$A$2,0),0) -> 0 | X14: =IF((N14>0),ROUND((101+1000*(LOG10($N$5)-LOG10(N14)))*$A$2,0),0) -> 0 | Y14: =SUM(LARGE(O14:X14,1),LARGE(O14:X14,2),LARGE(O14:X14,3)) -> 2452
A15: 9 | B15: 2.GM | C15: 1503-0181 | D15: Hrubá Dagmar | E15: 9 | F15: 6 | G15: 9 | O15: =IF((E15>0),ROUND((101+1000*(LOG10($E$5)-LOG10(E15)))*$A$2,0),0) -> 678 | P15: =IF((F15>0),ROUND((101+1000*(LOG10($F$5)-LOG10(F15)))*$A$2,0),0) -> 1093 | Q15: =IF((G15>0),ROUND((101+1000*(LOG10($G$5)-LOG10(G15)))*$A$2,0),0) -> 440 | R15: =IF((H15>0),ROUND((101+1000*(LOG10($H$5)-LOG10(H15)))*$A$2,0),0) -> 0 | S15: =IF((I15>0),ROUND((101+1000*(LOG10($I$5)-LOG10(I15)))*$A$2,0),0) -> 0 | T15: =IF((J15>0),ROUND((101+1000*(LOG10($J$5)-LOG10(J15)))*$A$2,0),0) -> 0 | U15: =IF((K15>0),ROUND((101+1000*(LOG10($K$5)-LOG10(K15)))*$A$2,0),0) -> 0 | V15: =IF((L15>0),ROUND((101+1000*(LOG10($L$5)-LOG10(L15)))*$A$2,0),0) -> 0 | W15: =IF((M15>0),ROUND((101+1000*(LOG10($M$5)-LOG10(M15)))*$A$2,0),0) -> 0 | X15: =IF((N15>0),ROUND((101+1000*(LOG10($N$5)-LOG10(N15)))*$A$2,0),0) -> 0 | Y15: =SUM(LARGE(O15:X15,1),LARGE(O15:X15,2),LARGE(O15:X15,3)) -> 2211
A16: 10 | B16: 4.V | C16: 2110-0124 | D16: Vrána Petr | E16: 6 | G16: 6 | O16: =IF((E16>0),ROUND((101+1000*(LOG10($E$5)-LOG10(E16)))*$A$2,0),0) -> 1206 | P16: =IF((F16>0),ROUND((101+1000*(LOG10($F$5)-LOG10(F16)))*$A$2,0),0) -> 0 | Q16: =IF((G16>0),ROUND((101+1000*(LOG10($G$5)-LOG10(G16)))*$A$2,0),0) -> 969 | R16: =IF((H16>0),ROUND((101+1000*(LOG10($H$5)-LOG10(H16)))*$A$2,0),0) -> 0 | S16: =IF((I16>0),ROUND((101+1000*(LOG10($I$5)-LOG10(I16)))*$A$2,0),0) -> 0 | T16: =IF((J16>0),ROUND((101+1000*(LOG10($J$5)-LOG10(J16)))*$A$2,0),0) -> 0 | U16: =IF((K16>0),ROUND((101+1000*(LOG10($K$5)-LOG10(K16)))*$A$2,0),0) -> 0 | V16: =IF((L16>0),ROUND((101+1000*(LOG10($L$5)-LOG10(L16)))*$A$2,0),0) -> 0 | W16: =IF((M16>0),ROUND((101+1000*(LOG10($M$5)-LOG10(M16)))*$A$2,0),0) -> 0 | X16: =IF((N16>0),ROUND((101+1000*(LOG10($N$5)-LOG10(N16)))*$A$2,0),0) -> 0 | Y16: =SUM(LARGE(O16:X16,1),LARGE(O16:X16,2),LARGE(O16:X16,3)) -> 2175
A17: 11 | B17: 5.V | C17: 2204-0021 | D17: Štrambach Ladislav | F17: 7 | G17: 7 | O17: =IF((E17>0),ROUND((101+1000*(LOG10($E$5)-LOG10(E17)))*$A$2,0),0) -> 0 | P17: =IF((F17>0),ROUND((101+1000*(LOG10($F$5)-LOG10(F17)))*$A$2,0),0) -> 892 | Q17: =IF((G17>0),ROUND((101+1000*(LOG10($G$5)-LOG10(G17)))*$A$2,0),0) -> 768 | R17: =IF((H17>0),ROUND((101+1000*(LOG10($H$5)-LOG10(H17)))*$A$2,0),0) -> 0 | S17: =IF((I17>0),ROUND((101+1000*(LOG10($I$5)-LOG10(I17)))*$A$2,0),0) -> 0 | T17: =IF((J17>0),ROUND((101+1000*(LOG10($J$5)-LOG10(J17)))*$A$2,0),0) -> 0 | U17: =IF((K17>0),ROUND((101+1000*(LOG10($K$5)-LOG10(K17)))*$A$2,0),0) -> 0 | V17: =IF((L17>0),ROUND((101+1000*(LOG10($L$5)-LOG10(L17)))*$A$2,0),0) -> 0 | W17: =IF((M17>0),ROUND((101+1000*(LOG10($M$5)-LOG10(M17)))*$A$2,0),0) -> 0 | X17: =IF((N17>0),ROUND((101+1000*(LOG10($N$5)-LOG10(N17)))*$A$2,0),0) -> 0 | Y17: =SUM(LARGE(O17:X17,1),LARGE(O17:X17,2),LARGE(O17:X17,3)) -> 1660
A18: 12 | B18: 4.M | C18: 2001-0086 | D18: Kamenský Pavel | E18: 12 | G18: 5 | O18: =IF((E18>0),ROUND((101+1000*(LOG10($E$5)-LOG10(E18)))*$A$2,0),0) -> 303 | P18: =IF((F18>0),ROUND((101+1000*(LOG10($F$5)-LOG10(F18)))*$A$2,0),0) -> 0 | Q18: =IF((G18>0),ROUND((101+1000*(LOG10($G$5)-LOG10(G18)))*$A$2,0),0) -> 1206 | R18: =IF((H18>0),ROUND((101+1000*(LOG10($H$5)-LOG10(H18)))*$A$2,0),0) -> 0 | S18: =IF((I18>0),ROUND((101+1000*(LOG10($I$5)-LOG10(I18)))*$A$2,0),0) -> 0 | T18: =IF((J18>0),ROUND((101+1000*(LOG10($J$5)-LOG10(J18)))*$A$2,0),0) -> 0 | U18: =IF((K18>0),ROUND((101+1000*(LOG10($K$5)-LOG10(K18)))*$A$2,0),0) -> 0 | V18: =IF((L18>0),ROUND((101+1000*(LOG10($L$5)-LOG10(L18)))*$A$2,0),0) -> 0 | W18: =IF((M18>0),ROUND((101+1000*(LOG10($M$5)-LOG10(M18)))*$A$2,0),0) -> 0 | X18: =IF((N18>0),ROUND((101+1000*(LOG10($N$5)-LOG10(N18)))*$A$2,0),0) -> 0 | Y18: =SUM(LARGE(O18:X18,1),LARGE(O18:X18,2),LARGE(O18:X18,3)) -> 1509
A19: 13 | O19: =IF((E19>0),ROUND((101+1000*(LOG10($E$5)-LOG10(E19)))*$A$2,0),0) -> 0 | P19: =IF((F19>0),ROUND((101+1000*(LOG10($F$5)-LOG10(F19)))*$A$2,0),0) -> 0 | Q19: =IF((G19>0),ROUND((101+1000*(LOG10($G$5)-LOG10(G19)))*$A$2,0),0) -> 0 | R19: =IF((H19>0),ROUND((101+1000*(LOG10($H$5)-LOG10(H19)))*$A$2,0),0) -> 0 | S19: =IF((I19>0),ROUND((101+1000*(LOG10($I$5)-LOG10(I19)))*$A$2,0),0) -> 0 | T19: =IF((J19>0),ROUND((101+1000*(LOG10($J$5)-LOG10(J19)))*$A$2,0),0) -> 0 | U19: =IF((K19>0),ROUND((101+1000*(LOG10($K$5)-LOG10(K19)))*$A$2,0),0) -> 0 | V19: =IF((L19>0),ROUND((101+1000*(LOG10($L$5)-LOG10(L19)))*$A$2,0),0) -> 0 | W19: =IF((M19>0),ROUND((101+1000*(LOG10($M$5)-LOG10(M19)))*$A$2,0),0) -> 0 | X19: =IF((N19>0),ROUND((101+1000*(LOG10($N$5)-LOG10(N19)))*$A$2,0),0) -> 0 | Y19: =SUM(LARGE(O19:X19,1),LARGE(O19:X19,2),LARGE(O19:X19,3)) -> 0
A20: 14 | O20: =IF((E20>0),ROUND((101+1000*(LOG10($E$5)-LOG10(E20)))*$A$2,0),0) -> 0 | P20: =IF((F20>0),ROUND((101+1000*(LOG10($F$5)-LOG10(F20)))*$A$2,0),0) -> 0 | Q20: =IF((G20>0),ROUND((101+1000*(LOG10($G$5)-LOG10(G20)))*$A$2,0),0) -> 0 | R20: =IF((H20>0),ROUND((101+1000*(LOG10($H$5)-LOG10(H20)))*$A$2,0),0) -> 0 | S20: =IF((I20>0),ROUND((101+1000*(LOG10($I$5)-LOG10(I20)))*$A$2,0),0) -> 0 | T20: =IF((J20>0),ROUND((101+1000*(LOG10($J$5)-LOG10(J20)))*$A$2,0),0) -> 0 | U20: =IF((K20>0),ROUND((101+1000*(LOG10($K$5)-LOG10(K20)))*$A$2,0),0) -> 0 | V20: =IF((L20>0),ROUND((101+1000*(LOG10($L$5)-LOG10(L20)))*$A$2,0),0) -> 0 | W20: =IF((M20>0),ROUND((101+1000*(LOG10($M$5)-LOG10(M20)))*$A$2,0),0) -> 0 | X20: =IF((N20>0),ROUND((101+1000*(LOG10($N$5)-LOG10(N20)))*$A$2,0),0) -> 0 | Y20: =SUM(LARGE(O20:X20,1),LARGE(O20:X20,2),LARGE(O20:X20,3)) -> 0
A21: 15 | O21: =IF((E21>0),ROUND((101+1000*(LOG10($E$5)-LOG10(E21)))*$A$2,0),0) -> 0 | P21: =IF((F21>0),ROUND((101+1000*(LOG10($F$5)-LOG10(F21)))*$A$2,0),0) -> 0 | Q21: =IF((G21>0),ROUND((101+1000*(LOG10($G$5)-LOG10(G21)))*$A$2,0),0) -> 0 | R21: =IF((H21>0),ROUND((101+1000*(LOG10($H$5)-LOG10(H21)))*$A$2,0),0) -> 0 | S21: =IF((I21>0),ROUND((101+1000*(LOG10($I$5)-LOG10(I21)))*$A$2,0),0) -> 0 | T21: =IF((J21>0),ROUND((101+1000*(LOG10($J$5)-LOG10(J21)))*$A$2,0),0) -> 0 | U21: =IF((K21>0),ROUND((101+1000*(LOG10($K$5)-LOG10(K21)))*$A$2,0),0) -> 0 | V21: =IF((L21>0),ROUND((101+1000*(LOG10($L$5)-LOG10(L21)))*$A$2,0),0) -> 0 | W21: =IF((M21>0),ROUND((101+1000*(LOG10($M$5)-LOG10(M21)))*$A$2,0),0) -> 0 | X21: =IF((N21>0),ROUND((101+1000*(LOG10($N$5)-LOG10(N21)))*$A$2,0),0) -> 0 | Y21: =SUM(LARGE(O21:X21,1),LARGE(O21:X21,2),LARGE(O21:X21,3)) -> 0
O22: =IF((E22>0),ROUND((101+1000*(LOG10($E$5)-LOG10(E22)))*$A$2,0),0) -> 0 | P22: =IF((F22>0),ROUND((101+1000*(LOG10($F$5)-LOG10(F22)))*$A$2,0),0) -> 0 | Q22: =IF((G22>0),ROUND((101+1000*(LOG10($G$5)-LOG10(G22)))*$A$2,0),0) -> 0 | R22: =IF((H22>0),ROUND((101+1000*(LOG10($H$5)-LOG10(H22)))*$A$2,0),0) -> 0 | S22: =IF((I22>0),ROUND((101+1000*(LOG10($I$5)-LOG10(I22)))*$A$2,0),0) -> 0 | T22: =IF((J22>0),ROUND((101+1000*(LOG10($J$5)-LOG10(J22)))*$A$2,0),0) -> 0 | U22: =IF((K22>0),ROUND((101+1000*(LOG10($K$5)-LOG10(K22)))*$A$2,0),0) -> 0 | V22: =IF((L22>0),ROUND((101+1000*(LOG10($L$5)-LOG10(L22)))*$A$2,0),0) -> 0 | W22: =IF((M22>0),ROUND((101+1000*(LOG10($M$5)-LOG10(M22)))*$A$2,0),0) -> 0 | X22: =IF((N22>0),ROUND((101+1000*(LOG10($N$5)-LOG10(N22)))*$A$2,0),0) -> 0 | Y22: =SUM(LARGE(O22:X22,1),LARGE(O22:X22,2),LARGE(O22:X22,3)) -> 0
O23: =IF((E23>0),ROUND((101+1000*(LOG10($E$5)-LOG10(E23)))*$A$2,0),0) -> 0 | P23: =IF((F23>0),ROUND((101+1000*(LOG10($F$5)-LOG10(F23)))*$A$2,0),0) -> 0 | Q23: =IF((G23>0),ROUND((101+1000*(LOG10($G$5)-LOG10(G23)))*$A$2,0),0) -> 0 | R23: =IF((H23>0),ROUND((101+1000*(LOG10($H$5)-LOG10(H23)))*$A$2,0),0) -> 0 | S23: =IF((I23>0),ROUND((101+1000*(LOG10($I$5)-LOG10(I23)))*$A$2,0),0) -> 0 | T23: =IF((J23>0),ROUND((101+1000*(LOG10($J$5)-LOG10(J23)))*$A$2,0),0) -> 0 | U23: =IF((K23>0),ROUND((101+1000*(LOG10($K$5)-LOG10(K23)))*$A$2,0),0) -> 0 | V23: =IF((L23>0),ROUND((101+1000*(LOG10($L$5)-LOG10(L23)))*$A$2,0),0) -> 0 | W23: =IF((M23>0),ROUND((101+1000*(LOG10($M$5)-LOG10(M23)))*$A$2,0),0) -> 0 | X23: =IF((N23>0),ROUND((101+1000*(LOG10($N$5)-LOG10(N23)))*$A$2,0),0) -> 0 | Y23: =SUM(LARGE(O23:X23,1),LARGE(O23:X23,2),LARGE(O23:X23,3)) -> 0
A24: 19 | O24: =IF((E24>0),ROUND((101+1000*(LOG10($E$5)-LOG10(E24)))*$A$2,0),0) -> 0 | P24: =IF((F24>0),ROUND((101+1000*(LOG10($F$5)-LOG10(F24)))*$A$2,0),0) -> 0 | Q24: =IF((G24>0),ROUND((101+1000*(LOG10($G$5)-LOG10(G24)))*$A$2,0),0) -> 0 | R24: =IF((H24>0),ROUND((101+1000*(LOG10($H$5)-LOG10(H24)))*$A$2,0),0) -> 0 | S24: =IF((I24>0),ROUND((101+1000*(LOG10($I$5)-LOG10(I24)))*$A$2,0),0) -> 0 | T24: =IF((J24>0),ROUND((101+1000*(LOG10($J$5)-LOG10(J24)))*$A$2,0),0) -> 0 | U24: =IF((K24>0),ROUND((101+1000*(LOG10($K$5)-LOG10(K24)))*$A$2,0),0) -> 0 | V24: =IF((L24>0),ROUND((101+1000*(LOG10($L$5)-LOG10(L24)))*$A$2,0),0) -> 0 | W24: =IF((M24>0),ROUND((101+1000*(LOG10($M$5)-LOG10(M24)))*$A$2,0),0) -> 0 | X24: =IF((N24>0),ROUND((101+1000*(LOG10($N$5)-LOG10(N24)))*$A$2,0),0) -> 0 | Y24: =SUM(LARGE(O24:X24,1),LARGE(O24:X24,2),LARGE(O24:X24,3)) -> 0
A25: 20 | O25: =IF((E25>0),ROUND((101+1000*(LOG10($E$5)-LOG10(E25)))*$A$2,0),0) -> 0 | P25: =IF((F25>0),ROUND((101+1000*(LOG10($F$5)-LOG10(F25)))*$A$2,0),0) -> 0 | Q25: =IF((G25>0),ROUND((101+1000*(LOG10($G$5)-LOG10(G25)))*$A$2,0),0) -> 0 | R25: =IF((H25>0),ROUND((101+1000*(LOG10($H$5)-LOG10(H25)))*$A$2,0),0) -> 0 | S25: =IF((I25>0),ROUND((101+1000*(LOG10($I$5)-LOG10(I25)))*$A$2,0),0) -> 0 | T25: =IF((J25>0),ROUND((101+1000*(LOG10($J$5)-LOG10(J25)))*$A$2,0),0) -> 0 | U25: =IF((K25>0),ROUND((101+1000*(LOG10($K$5)-LOG10(K25)))*$A$2,0),0) -> 0 | V25: =IF((L25>0),ROUND((101+1000*(LOG10($L$5)-LOG10(L25)))*$A$2,0),0) -> 0 | W25: =IF((M25>0),ROUND((101+1000*(LOG10($M$5)-LOG10(M25)))*$A$2,0),0) -> 0 | X25: =IF((N25>0),ROUND((101+1000*(LOG10($N$5)-LOG10(N25)))*$A$2,0),0) -> 0 | Y25: =SUM(LARGE(O25:X25,1),LARGE(O25:X25,2),LARGE(O25:X25,3)) -> 0
A26: 21 | O26: =IF((E26>0),ROUND((101+1000*(LOG10($E$5)-LOG10(E26)))*$A$2,0),0) -> 0 | P26: =IF((F26>0),ROUND((101+1000*(LOG10($F$5)-LOG10(F26)))*$A$2,0),0) -> 0 | Q26: =IF((G26>0),ROUND((101+1000*(LOG10($G$5)-LOG10(G26)))*$A$2,0),0) -> 0 | R26: =IF((H26>0),ROUND((101+1000*(LOG10($H$5)-LOG10(H26)))*$A$2,0),0) -> 0 | S26: =IF((I26>0),ROUND((101+1000*(LOG10($I$5)-LOG10(I26)))*$A$2,0),0) -> 0 | T26: =IF((J26>0),ROUND((101+1000*(LOG10($J$5)-LOG10(J26)))*$A$2,0),0) -> 0 | U26: =IF((K26>0),ROUND((101+1000*(LOG10($K$5)-LOG10(K26)))*$A$2,0),0) -> 0 | V26: =IF((L26>0),ROUND((101+1000*(LOG10($L$5)-LOG10(L26)))*$A$2,0),0) -> 0 | W26: =IF((M26>0),ROUND((101+1000*(LOG10($M$5)-LOG10(M26)))*$A$2,0),0) -> 0 | X26: =IF((N26>0),ROUND((101+1000*(LOG10($N$5)-LOG10(N26)))*$A$2,0),0) -> 0 | Y26: =SUM(LARGE(O26:X26,1),LARGE(O26:X26,2),LARGE(O26:X26,3)) -> 0
A27: 22 | O27: =IF((E27>0),ROUND((101+1000*(LOG10($E$5)-LOG10(E27)))*$A$2,0),0) -> 0 | P27: =IF((F27>0),ROUND((101+1000*(LOG10($F$5)-LOG10(F27)))*$A$2,0),0) -> 0 | Q27: =IF((G27>0),ROUND((101+1000*(LOG10($G$5)-LOG10(G27)))*$A$2,0),0) -> 0 | R27: =IF((H27>0),ROUND((101+1000*(LOG10($H$5)-LOG10(H27)))*$A$2,0),0) -> 0 | S27: =IF((I27>0),ROUND((101+1000*(LOG10($I$5)-LOG10(I27)))*$A$2,0),0) -> 0 | T27: =IF((J27>0),ROUND((101+1000*(LOG10($J$5)-LOG10(J27)))*$A$2,0),0) -> 0 | U27: =IF((K27>0),ROUND((101+1000*(LOG10($K$5)-LOG10(K27)))*$A$2,0),0) -> 0 | V27: =IF((L27>0),ROUND((101+1000*(LOG10($L$5)-LOG10(L27)))*$A$2,0),0) -> 0 | W27: =IF((M27>0),ROUND((101+1000*(LOG10($M$5)-LOG10(M27)))*$A$2,0),0) -> 0 | X27: =IF((N27>0),ROUND((101+1000*(LOG10($N$5)-LOG10(N27)))*$A$2,0),0) -> 0 | Y27: =SUM(LARGE(O27:X27,1),LARGE(O27:X27,2),LARGE(O27:X27,3)) -> 0
A28: 23 | O28: =IF((E28>0),ROUND((101+1000*(LOG10($E$5)-LOG10(E28)))*$A$2,0),0) -> 0 | P28: =IF((F28>0),ROUND((101+1000*(LOG10($F$5)-LOG10(F28)))*$A$2,0),0) -> 0 | Q28: =IF((G28>0),ROUND((101+1000*(LOG10($G$5)-LOG10(G28)))*$A$2,0),0) -> 0 | R28: =IF((H28>0),ROUND((101+1000*(LOG10($H$5)-LOG10(H28)))*$A$2,0),0) -> 0 | S28: =IF((I28>0),ROUND((101+1000*(LOG10($I$5)-LOG10(I28)))*$A$2,0),0) -> 0 | T28: =IF((J28>0),ROUND((101+1000*(LOG10($J$5)-LOG10(J28)))*$A$2,0),0) -> 0 | U28: =IF((K28>0),ROUND((101+1000*(LOG10($K$5)-LOG10(K28)))*$A$2,0),0) -> 0 | V28: =IF((L28>0),ROUND((101+1000*(LOG10($L$5)-LOG10(L28)))*$A$2,0),0) -> 0 | W28: =IF((M28>0),ROUND((101+1000*(LOG10($M$5)-LOG10(M28)))*$A$2,0),0) -> 0 | X28: =IF((N28>0),ROUND((101+1000*(LOG10($N$5)-LOG10(N28)))*$A$2,0),0) -> 0 | Y28: =SUM(LARGE(O28:X28,1),LARGE(O28:X28,2),LARGE(O28:X28,3)) -> 0
A29: 23 | O29: =IF((E29>0),ROUND((101+1000*(LOG10($E$5)-LOG10(E29)))*$A$2,0),0) -> 0 | P29: =IF((F29>0),ROUND((101+1000*(LOG10($F$5)-LOG10(F29)))*$A$2,0),0) -> 0 | Q29: =IF((G29>0),ROUND((101+1000*(LOG10($G$5)-LOG10(G29)))*$A$2,0),0) -> 0 | R29: =IF((H29>0),ROUND((101+1000*(LOG10($H$5)-LOG10(H29)))*$A$2,0),0) -> 0 | S29: =IF((I29>0),ROUND((101+1000*(LOG10($I$5)-LOG10(I29)))*$A$2,0),0) -> 0 | T29: =IF((J29>0),ROUND((101+1000*(LOG10($J$5)-LOG10(J29)))*$A$2,0),0) -> 0 | U29: =IF((K29>0),ROUND((101+1000*(LOG10($K$5)-LOG10(K29)))*$A$2,0),0) -> 0 | V29: =IF((L29>0),ROUND((101+1000*(LOG10($L$5)-LOG10(L29)))*$A$2,0),0) -> 0 | W29: =IF((M29>0),ROUND((101+1000*(LOG10($M$5)-LOG10(M29)))*$A$2,0),0) -> 0 | X29: =IF((N29>0),ROUND((101+1000*(LOG10($N$5)-LOG10(N29)))*$A$2,0),0) -> 0 | Y29: =SUM(LARGE(O29:X29,1),LARGE(O29:X29,2),LARGE(O29:X29,3)) -> 0

Sheet 181603-7P
B1: Cena YCN
A2: 1 | B2: 1 | C2: CZE 15 | D2: 2110-0050 | E2: Kučera Petr | F2: 1986 | G2: 1 2* 1 2 1 1 2 | H2: 8 | I2: 8730
A3: 2 | B3: 2 | C3: CZE 110 | D3: 2001-0096 | E3: Kamenský Radim | F3: 1976 | G3: 2* 1 2 1 2 2 1 | H3: 9 | I3: 6623
A4: 3 | B4: 3 | C4: CZE 78 | D4: 2110-0111 | E4: Skřepek Jan | F4: 1978 | G4: 3 5 7* 3 3 3 3 | H4: 20 | I4: 5390
A5: 4 | B5: 4 | C5: CZE 21 | D5: 2101-0375 | E5: Pospíšil Martin | F5: 1964 | G5: 4 7* 3 5 4 4 5 | H5: 25 | I5: 4515
A6: 5 | B6: 5 | C6: CZE 26 | D6: 1607-0161 | E6: Slívová Jana | F6: 1991 | G6: 7 9 12* 4 6 8 4 | H6: 38 | I6: 3837
A7: 6 | B7: 6 | C7: CZE 2 | D7: 1607-0119 | E7: Himmel Jiří | F7: 1972 | G7: 6 6 11 7 12* 5 6 | H7: 41 | I7: 3283
A8: 7 | B8: 7 | C8: CZE 61 | D8: 1705-0001 | E8: Haubold Petr | F8: 1944 | G8: 11 3 5 6 13* 9 7 | H8: 41 | I8: 2814
A9: 8 | B9: 8 | C9: CZE 19 | D9: 7019-0144 | E9: Hrubý Pavel | F9: 1964 | G9: 5 10 4 11* 9 11 9 | H9: 48 | I9: 2408
A10: 9 | B10: 9 | C10: CZE 251 | D10: 2001-0223 | E10: Dlouhá Martina | F10: 1992 | G10: 10 11* 6 8 8 7 10 | H10: 49 | I10: 2050
A11: 10 | B11: 10 | C11: CZE 113 | D11: 2001-0086 | E11: Kamenský Pavel | F11: 1974 | G11: 8 8 10 10 7 6 12* | H11: 49 | I11: 1730
A12: 11 | B12: 11 | C12: CZE 125 | D12: 1503-0181 | E12: Hrubá Dagmar | F12: 1967 | G12: 13* 13 8 9 5 10 11 | H12: 56 | I12: 1440
A13: 12 | B13: 12 | C13: CZE 25 | D13: 1503-0180 | E13: Hrubý Roman | F13: 1960 | G13: 14* 14 9 12 10 13 8 | H13: 66 | I13: 1176
A14: 13 | B14: 13 | C14: CZE 195 | D14: 7019-0359 | E14: Dolejš Rudolf | F14: 1961 | G14: 9 4 DNC* DNC DNC DNC DNC | H14: 73 | I14: 932
A15: 14 | B15: 14 | C15: CZE 5 | D15: 2110-0006 | E15: Kučera Petr | F15: 1947 | G15: 12 12 13 DNC* 11 12 13 | H15: 73 | I15: 707

Sheet 182115-7P
B1: Věstonická Venuše
A2: 1 | B2: 1 | C2: CZE 15 | D2: 2110-0050 | E2: Kučera Petr | F2: 1986 | G2: 1 1 1 1 3* | H2: 4 | I2: 9494
A3: 2 | B3: 2 | C3: CZE 110 | D3: 2001-0096 | E3: Kamenský Radim | F3: 1976 | G3: 2 2 2 4* 1 | H3: 7 | I3: 7387
A4: 3 | B4: 3 | C4: CZE 31 | D4: 2413-0001 | E4: Král Jiří | F4: 1974 | G4: 5* 3 5 3 2 | H4: 13 | I4: 6154
A5: X | B5: 4 | C5: SVK 241 | D5: 9901-0002 | E5: Potucký Martin | F5: 1987 | G5: 3 5 3 8* 4 | H5: 15 | I5: 5279
A6: 4 | B6: 5 | C6: CZE 78 | D6: 2110-0111 | E6: Skřepek Jan | F6: 1978 | G6: 4 6* 4 2 6 | H6: 16 | I6: 4601
A7: X | B7: 6 | C7: SVK 4 | D7: 9901-0001 | E7: Heško Marcel | F7: 1975 | G7: 7 10* 7 6 5 | H7: 25 | I7: 4047
A8: 5 | B8: 7 | C8: CZE 26 | D8: 1607-0161 | E8: Slívová Jana | F8: 1991 | G8: 9* 7 9 5 8 | H8: 29 | I8: 3578
A9: 6 | B9: 8 | C9: CZE 24 | D9: 1607-0121 | E9: Hnitka Martin | F9: 1972 | G9: 8 4 12* 9 10 | H9: 31 | I9: 3172
A10: 7 | B10: 9 | C10: CZE 19 | D10: 7019-0144 | E10: Hrubý Pavel | F10: 1964 | G10: 10 9 10 12* 9 | H10: 38 | I10: 2814
A11: 8 | B11: 10 | C11: CZE 61 | D11: 1705-0001 | E11: Haubold Petr | F11: 1944 | G11: 15* 12 11 13 7 | H11: 43 | I11: 2494
A12: 9 | B12: 11 | C12: CZE 45 | D12: 2110-0124 | E12: Vrána Petr | F12: 1958 | G12: 12 16* 13 10 11 | H12: 46 | I12: 2204
A13: 10 | B13: 12 | C13: CZE 2 | D13: 1607-0119 | E13: Himmel Jiří | F13: 1972 | G13: 13 15* 6 15 13 | H13: 47 | I13: 1940
A14: 11 | B14: 13 | C14: CZE 125 | D14: 1503-0181 | E14: Hrubá Dagmar | F14: 1967 | G14: 14 8 17* 14 12 | H14: 48 | I14: 1696
A15: 12 | B15: 14 | C15: CZE 113 | D15: 2001-0086 | E15: Kamenský Pavel | F15: 1974 | G15: 6 14 14 18* 14 | H15: 48 | I15: 1471
A16: 13 | B16: 15 | C16: CZE 5 | D16: 2110-0006 | E16: Kučera Petr | F16: 1947 | G16: DNC* 11 18 7 15 | H16: 51 | I16: 1261
A17: 14 | B17: 16 | C17: CZE 8 | D17: 2405-0133 | E17: Mielec Lubomír | F17: 1950 | G17: 11 17* 16 11 16 | H17: 54 | I17: 1065
A18: 15 | B18: 17 | C18: CZE 251 | D18: 2001-0223 | E18: Dlouhá Martina | F18: 1992 | G18: DNC* DNC 8 16 17 | H18: 60 | I18: 881
A19: 16 | B19: 18 | C19: CZE 25 | D19: 1503-0180 | E19: Hrubý Roman | F19: 1960 | G19: 16 13 15 17 18* | H19: 61 | I19: 707

Sheet 182120-3M
A1: 2110 | B1: Starobrno Cup
A2: 1 | B2: 1 | C2: CZE 110 | D2: 2001-0096 | E2: Kamenský Radim | F2: 1976 | G2: 1* 1 1 1 | H2: 3 | I2: 4721
A3: 2 | B3: 2 | C3: CZE 15 | D3: 2110-0050 | E3: Kučera Petr | F3: 1986 | G3: 4* 3 2 2 | H3: 7 | I3: 3517
A4: 3 | B4: 3 | C4: CZE 31 | D4: 2413-0001 | E4: Král Jiří | F4: 1974 | G4: 3 2 4* 3 | H4: 8 | I4: 2812
A5: 4 | B5: 4 | C5: CZE 78 | D5: 2110-0111 | E5: Skřepek Jan | F5: 1978 | G5: DNC* 4 3 4 | H5: 11 | I5: 2312
A6: 5 | B6: 5 | C6: CZE 21 | D6: 2101-0375 | E6: Pospíšil Martin | F6: 1964 | G6: 2 5* 5 5 | H6: 12 | I6: 1925
A7: 6 | B7: 6 | C7: CZE 45 | D7: 2110-0124 | E7: Vrána Petr | F7: 1958 | G7: 5 6 6 7* | H7: 17 | I7: 1608
A8: 7 | B8: 7 | C8: CZE 8 | D8: 2405-0133 | E8: Mielec Lubomír | F8: 1950 | G8: 6 7 7 10* | H8: 20 | I8: 1340
A9: 8 | B9: 8 | C9: CZE 5 | D9: 2110-0006 | E9: Kučera Petr | F9: 1947 | G9: 8* 8 8 6 | H9: 22 | I9: 1108
A10: 9 | B10: 9 | C10: CZE 125 | D10: 1503-0181 | E10: Hrubá Dagmar | F10: 1967 | G10: 7 9 10 11* | H10: 26 | I10: 904
A11: 10 | B11: 10 | C11: CZE 25 | D11: 1503-0180 | E11: Hrubý Roman | F11: 1960 | G11: 9 10 9 12* | H11: 28 | I11: 721
A12: L | B12: 11 | C12: CZE 44 | D12: 2110-0150 | E12: Vránová Markéta | F12: 1991 | G12: DNC* DNC DNC 8 | H12: 34 | I12: 555
A13: 12 | B13: 12 | C13: CZE 113 | D13: 2001-0086 | E13: Kamenský Pavel | F13: 1974 | G13: DNC* DNC DNC 9 | H13: 35 | I13: 404

Sheet 181803-7P
B1: Pohár Rozkoše
A2: 1 | B2: 1 | C2: CZE 31 | D2: 2413-0001 | E2: Král Jiří | F2: 1974 | G2: 1 3* 1 1 | H2: 3 | I2: 7387
A3: 2 | B3: 2 | C3: CZE 19 | D3: 7019-0144 | E3: Hrubý Pavel | F3: 1964 | G3: 3 1 2 9* | H3: 6 | I3: 5279
A4: 3 | B4: 3 | C4: CZE 26 | D4: 1607-0161 | E4: Slívová Jana | F4: 1991 | G4: 2 4 7* 3 | H4: 9 | I4: 4047
A5: 4 | B5: 4 | C5: CZE 21 | D5: 2101-0375 | E5: Pospíšil Martin | F5: 1964 | G5: 6 7* 3 2 | H5: 11 | I5: 3172
A6: 5 | B6: 5 | C6: CZE 61 | D6: 1705-0001 | E6: Haubold Petr | F6: 1944 | G6: 8* 2 5 6 | H6: 13 | I6: 2494
A7: 6 | B7: 6 | C7: CZE 113 | D7: 2001-0086 | E7: Kamenský Pavel | F7: 1974 | G7: 5 8* 4 4 | H7: 13 | I7: 1940
A8: 7 | B8: 7 | C8: CZE 45 | D8: 2110-0124 | E8: Vrána Petr | F8: 1958 | G8: 7* 5 6 5 | H8: 16 | I8: 1471
A9: 8 | B9: 8 | C9: CZE 5 | D9: 2110-0006 | E9: Kučera Petr | F9: 1947 | G9: 4 9* 8 8 | H9: 20 | I9: 1065
A10: 9 | B10: 9 | C10: CZE 8 | D10: 2405-0133 | E10: Mielec Lubomír | F10: 1950 | G10: 9* 6 9 7 | H10: 22 | I10: 707

Sheet 182002-7xP
B1: Pohár Vysočiny
A2: 1 | B2: 1 | C2: CZE 110 | D2: 2001-0096 | E2: Kamenský Radim | F2: 1976 | G2: 1 1 | H2: 2 | I2: 2554
A3: 2 | B3: 2 | C3: CZE 31 | D3: 2413-0001 | E3: Král Jiří | F3: 1974 | G3: 2 2 | H3: 4 | I3: 1952
A4: 3 | B4: 3 | C4: CZE 15 | D4: 2110-0050 | E4: Kučera Petr | F4: 1986 | G4: 3 3 | H4: 6 | I4: 1600
A5: 4 | B5: 4 | C5: CZE 8 | D5: 2405-0133 | E5: Mielec Lubomír | F5: 1950 | G5: 4 7 | H5: 11 | I5: 1350
A6: 5 | B6: 5 | C6: CZE 24 | D6: 1607-0121 | E6: Hnitka Martin | F6: 1972 | G6: 8 4 | H6: 12 | I6: 1156
A7: 6 | B7: 6 | C7: CZE 5 | D7: 2110-0006 | E7: Kučera Petr | F7: 1947 | G7: 5 8 | H7: 13 | I7: 998
A8: 7 | B8: 7 | C8: CZE 61 | D8: 1705-0001 | E8: Haubold Petr | F8: 1944 | G8: 10 6 | H8: 16 | I8: 864
A9: 8 | B9: 8 | C9: CZE 26 | D9: 1607-0161 | E9: Slívová Jana | F9: 1991 | G9: 6 10 | H9: 16 | I9: 748
A10: 9 | B10: 9 | C10: CZE 53 | D10: 2204-0021 | E10: Štrambach Ladislav | F10: 1954 | G10: 7 9 | H10: 16 | I10: 646
A11: 10 | B11: 10 | C11: CZE 78 | D11: 2110-0111 | E11: Skřepek Jan | F11: 1978 | G11: DNC 5 | H11: 22 | I11: 554
A12: 11 | B12: 11 | C12: CZE 45 | D12: 2110-0124 | E12: Vrána Petr | F12: 1958 | G12: 9 14 | H12: 23 | I12: 471
A13: 12 | B13: 12 | C13: CZE 113 | D13: 2001-0086 | E13: Kamenský Pavel | F13: 1974 | G13: 11 12 | H13: 23 | I13: 396
A14: X | B14: 13 | C14: CZE 44 | D14: 2110-0150 | E14: Vránová Markéta | F14: 1991 | G14: 13 11 | H14: 24 | I14: 326
A15: X | B15: 14 | C15: CZE 67 | D15: 9999-0026 | E15: Marek Michal | F15: 1991 | G15: 12 13 | H15: 25 | I15: 262
A16: 13 | B16: 15 | C16: CZE 33 | D16: 1402-0397 | E16: Rott Petr | F16: 1960 | G16: 14 DNC | H16: 31 | I16: 202
A17: 14 | B17: 16 | C17: CZE 332 | D17: 1402-0334 | E17: Hrubý Jiří | F17: 1958 | G17: DNC DNC | H17: 34

Sheet 182132-3M
A1: 2110 | B1: Veterán Cup
A2: 1 | B2: 1 | C2: CZE 15 | D2: 2110-0050 | E2: Kučera Petr | F2: 1986 | G2: 1 1 1 1 2* 1 2* 1 | H2: 6 | I2: 3645
A3: 2 | B3: 2 | C3: CZE 31 | D3: 2413-0001 | E3: Král Jiří | F3: 1974 | G3: 2 2 2 2 1 5* 3 DNC* | H3: 12 | I3: 2742
A4: X | B4: 3 | C4: SVK 4 | D4: 9901-0001 | E4: Heško Marcel | F4: 1975 | G4: 3* 3 3 3 3 3 4* 3 | H4: 18 | I4: 2213
A5: 3 | B5: 4 | C5: CZE 21 | D5: 2101-0375 | E5: Pospíšil Martin | F5: 1964 | G5: 4 4 4 4 5* 4 5* 4 | H5: 24 | I5: 1839
A6: 4 | B6: 5 | C6: CZE 25 | D6: 1503-0180 | E6: Hrubý Roman | F6: 1960 | G6: 6 5 5 5 7* 7 9* 5 | H6: 33 | I6: 1548
A7: 5 | B7: 6 | C7: CZE 8 | D7: 2405-0133 | E7: Mielec Lubomír | F7: 1950 | G7: 7 6 8* 6 4 8* 6 8 | H7: 37 | I7: 1310
A8: 6 | B8: 7 | C8: CZE 125 | D8: 1503-0181 | E8: Hrubá Dagmar | F8: 1967 | G8: 5 9* 7 9 6 6 7 10* | H8: 40 | I8: 1110
A9: 7 | B9: 8 | C9: CZE 53 | D9: 2204-0021 | E9: Štrambach Ladislav | F9: 1954 | G9: 8 7 6 8 8 9* 10* 6 | H9: 43 | I9: 936
A10: 8 | B10: 9 | C10: CZE 78 | D10: 2110-0111 | E10: Skřepek Jan | F10: 1978 | G10: DNC* DNC* DNC DNC DNC 2 1 2 | H10: 47 | I10: 782
A11: L | B11: 10 | C11: CZE 44 | D11: 2110-0150 | E11: Vránová Markéta | F11: 1991 | G11: 9 8 9 7 10* 10* 8 7 | H11: 48 | I11: 645
A12: L | B12: 11 | C12: CZE 67 | D12: 2110-0149 | E12: Marek Michal | F12: 1991 | G12: 10 10 11* 10 11 11 12* 9 | H12: 61 | I12: 521
A13: X | B13: 12 | C13: CZE 54 | D13: 2103-0221 | E13: Fanta Miroslav | F13: 1966 | G13: DNC* DNC* 10 11 9 DNC 11 DNC | H13: 69 | I13: 407
A14: 11 | B14: 13 | C14: CZE 5 | D14: 2110-0006 | E14: Kučera Petr | F14: 1947 | G14: DNF* DNS* DNC DNC DNC DNC DNC DNC | H14: 84 | I14: 303

Sheet 181506-3C
A1: 1503 | B1: Sdružený krajský přebor
A2: 1 | B2: 1 | C2: CZE 195 | D2: 7019-0359 | E2: Dolejš Rudolf | F2: 1961 | G2: 1* 1 1 1 | H2: 3 | I2: 3427
A3: L | B3: 2 | C3: CZE 13 | D3: 1503-0292 | E3: Koblasa David | F3: 1976 | G3: 2 2 3 5* | H3: 7 | I3: 2524
A4: L | B4: 3 | C4: CZE 57 | D4: 1503-0166 | E4: Ouřada Jaroslav | F4: 1964 | G4: 3 3 5* 3 | H4: 9 | I4: 1996
A5: 4 | B5: 4 | C5: CZE 19 | D5: 7019-0144 | E5: Hrubý Pavel | F5: 1964 | G5: 5* 4 2 4 | H5: 10 | I5: 1621
A6: 5 | B6: 5 | C6: CZE 125 | D6: 1503-0181 | E6: Hrubá Dagmar | F6: 1967 | G6: 7* 5 4 2 | H6: 11 | I6: 1330
A7: 6 | B7: 6 | C7: CZE 61 | D7: 1705-0001 | E7: Haubold Petr | F7: 1944 | G7: 4 7* 7 6 | H7: 17 | I7: 1093
A8: 7 | B8: 7 | C8: CZE 25 | D8: 1503-0180 | E8: Hrubý Roman | F8: 1960 | G8: 6 6 6 7* | H8: 18 | I8: 892
A9: 8 | B9: 8 | C9: CZE 331 | D9: 1402-0334 | E9: Hrubý Jiří | F9: 1958 | G9: 8 9* 8 8 | H9: 24 | I9: 718
A10: L | B10: 9 | C10: CZE 83 | D10: 1503-0196 | E10: Nejtek Petr | F10: 1957 | G10: 10* 8 9 9 | H10: 26 | I10: 564
A11: 10 | B11: 10 | C11: CZE 138 | D11: 1503-0186 | E11: Hromádka Josef | F11: 1944 | G11: 9 DNC* DNC DNC | H11: 33 | I11: 427
A12: 11 | B12: 11 | C12: CZE 101 | D12: 1503-0124 | E12: Koblasa Stanislav | F12: 1934 | G12: 11 DNC* DNC DNC | H12: 35 | I12: 303

Sheet 181507-3C
A1: 1503 | B1: Senior Cup
A2: 1 | B2: 1 | C2: CZE 19 | D2: 7019-0144 | E2: Hrubý Pavel | F2: 1964 | G2: 3 3 1 4 DNC* | H2: 11 | I2: 3427
A3: 2 | B3: 2 | C3: CZE 25 | D3: 1503-0180 | E3: Hrubý Roman | F3: 1960 | G3: 2 1 4 5 DNC* | H3: 12 | I3: 2524
A4: 3 | B4: 3 | C4: CZE 195 | D4: 7019-0359 | E4: Dolejš Rudolf | F4: 1961 | G4: 5 2 2 3 DNC* | H4: 12 | I4: 1996
A5: 4 | B5: 4 | C5: CZE 61 | D5: 1705-0001 | E5: Haubold Petr | F5: 1944 | G5: 4 6 3 2 DNC* | H5: 15 | I5: 1621
A6: 5 | B6: 5 | C6: CZE 86 | D6: 1526-0044 | E6: Mrůzek Pavel | F6: 1963 | G6: 1 4 8 7 DNC* | H6: 20 | I6: 1330
A7: 6 | B7: 6 | C7: CZE 8 | D7: 2405-0133 | E7: Mielec Lubomír | F7: 1950 | G7: 7 7 7 1 DNC* | H7: 22 | I7: 1093
A8: 7 | B8: 7 | C8: CZE 125 | D8: 1503-0181 | E8: Hrubá Dagmar | F8: 1967 | G8: 6 5 5 8 DNC* | H8: 24 | I8: 892
A9: L | B9: 8 | C9: CZE 57 | D9: 1503-0166 | E9: Ouřada Jaroslav | F9: 1964 | G9: 9 8 6 6 DNC* | H9: 29 | I9: 718
A10: X | B10: 9 | C10: CZE 82 | D10: 1526-0080 | E10: Šup Robert | F10: 1972 | G10: 8 9 9 9 DNC* | H10: 35 | I10: 564
A11: 9 | B11: 10 | C11: CZE 138 | D11: 1503-0186 | E11: Hromádka Josef | F11: 1944 | G11: 10 10 10 DNC DNC* | H11: 44 | I11: 427
A12: 10 | B12: 11 | C12: CZE 331 | D12: 1402-0334 | E12: Hrubý Jiří | F12: 1958 | G12: DNC DNC 11 DNC DNC* | H12: 53 | I12: 303

Sheet 181616-7P
A1: 1611 | B1: Nechranická buchta
A2: 1 | B2: 1 | C2: CZE 15 | D2: 2110-0050 | E2: Kučera Petr | F2: 1986 | G2: 1 3* 1 1 1 2* 2 1 | H2: 7 | I2: 10104
A3: 2 | B3: 2 | C3: CZE 110 | D3: 2001-0096 | E3: Kamenský Radim | F3: 1976 | G3: 2 1 2 2 4* 1 1 4* | H3: 9 | I3: 7997
A4: X | B4: 3 | C4: SVK 241 | D4: 9901-0001 | E4: Potucký Martin | F4: 1987 | G4: 3 2 5* 4* 3 4 4 3 | H4: 19 | I4: 6764
A5: 3 | B5: 4 | C5: CZE 78 | D5: 2110-0111 | E5: Skřepek Jan | F5: 1978 | G5: 5* 4 4 3 2 5 6* 2 | H5: 20 | I5: 5890
A6: X | B6: 5 | C6: CZE 6 | D6: 1607-0158 | E6: Slíva Jakub | F6: 1988 | G6: 4 5 3 7* 6 3 3 13* | H6: 24 | I6: 5211
A7: 4 | B7: 6 | C7: CZE 31 | D7: 2413-0001 | E7: Král Jiří | F7: 1974 | G7: 6 7* 6 6 DNC* 7 5 7 | H7: 37 | I7: 4657
A8: 5 | B8: 7 | C8: CZE 113 | D8: 2001-0086 | E8: Kamenský Pavel | F8: 1974 | G8: 7 9* 7 5 5 16* 8 5 | H8: 37 | I8: 4188
A9: 6 | B9: 8 | C9: CZE 21 | D9: 2101-0375 | E9: Pospíšil Martin | F9: 1964 | G9: 8 12* 8 9 8 6 10* 6 | H9: 45 | I9: 3782
A10: 7 | B10: 9 | C10: CZE 2 | D10: 1607-0119 | E10: Himmel Jiří | F10: 1972 | G10: 9 6 9* 8 7 9 7 16* | H10: 46 | I10: 3424
A11: 8 | B11: 10 | C11: CZE 24 | D11: 1607-0121 | E11: Hnitka Martin | F11: 1972 | G11: 15* 11 10 11* 9 11 9 10 | H11: 60 | I11: 3104
A12: 9 | B12: 11 | C12: CZE 19 | D12: 7019-0144 | E12: Hrubý Pavel | F12: 1964 | G12: 16* 8 11 17* 12 13 12 8 | H12: 64 | I12: 2814
A13: 10 | B13: 12 | C13: CZE 251 | D13: 2001-0223 | E13: Dlouhá Martina | F13: 1992 | G13: 11 13* 12 12 11 12 13 DNC* | H13: 71 | I13: 2550
A14: 11 | B14: 13 | C14: CZE 25 | D14: 1503-0180 | E14: Hrubý Roman | F14: 1960 | G14: 13 10 16 13 10 18* 11 17* | H14: 73 | I14: 2306
A15: 12 | B15: 14 | C15: CZE 195 | D15: 7019-0359 | E15: Dolejš Rudolf | F15: 1961 | G15: 10 17* 14 15 14 17 18* 9 | H15: 79 | I15: 2081
A16: 13 | B16: 15 | C16: CZE 45 | D16: 2110-0124 | E16: Vrána Petr | F16: 1958 | G16: 17 15 17* 14 DNC* 8 14 14 | H16: 82 | I16: 1871
A17: 14 | B17: 16 | C17: CZE 8 | D17: 2405-0133 | E17: Mielec Lubomír | F17: 1950 | G17: 19* 14 13 10 13 15 17 18* | H17: 82 | I17: 1675
A18: 15 | B18: 17 | C18: CZE 125 | D18: 1503-0181 | E18: Hrubá Dagmar | F18: 1967 | G18: 12 DNC* 19 16 DNC* 10 15 11 | H18: 83 | I18: 1491
A19: 16 | B19: 18 | C19: CZE 61 | D19: 1705-0001 | E19: Haubold Petr | F19: 1944 | G19: 20* 18 15 18 DNC* 14 19 15 | H19: 99 | I19: 1317
A20: 17 | B20: 19 | C20: CZE 5 | D20: 2110-0006 | E20: Kučera Petr | F20: 1947 | G20: 14 DNC DNC* DNC* DNC DNC 16 12 | H20: 111 | I20: 1153
A21: 18 | B21: 20 | C21: CZE 33 | D21: 1402-0397 | E21: Rott Petr | F21: 1960 | G21: 18 16 18 DNC* DNC* DNC DNC DNC | H21: 121 | I21: 997
A22: 19 | B22: 21 | C22: CZE 138 | D22: 1503-0186 | E22: Hromádka Josef | F22: 1944 | G22: 22 DNC DNC* DNC* DNC 19 20 DNC | H22: 130 | I22: 848
A23: 20 | B23: 22 | C23: CZE 331 | D23: 1402-0334 | E23: Hrubý Jiří | F23: 1958 | G23: 21 DNC DNC* DNC* DNC DNC DNC DNC | H23: 136 | I23: 707

Sheet 182156-7P
B1: Czech Supercup
A2: 1 | B2: 1 | C2: CZE 110 | D2: 2001-0096 | E2: Kamenský Radim | F2: 1976 | G2: 1 1 1 | H2: 3 | I2: 11243
A3: X | B3: 2 | C3: SVK 1 | D3: 9901-0001 | E3: Pollák Patrik | F3: 1972 | G3: 2 3 2 | H3: 7 | I3: 9136
A4: X | B4: 3 | C4: SVK 241 | D4: 9901-0014 | E4: Potucký Martin | F4: 1987 | G4: 7 2 3 | H4: 12 | I4: 7903
A5: 2 | B5: 4 | C5: CZE 26 | D5: 1607-0161 | E5: Slívová Jana | F5: 1991 | G5: 9 4 4 | H5: 17 | I5: 7029
A6: 3 | B6: 5 | C6: CZE 15 | D6: 2110-0050 | E6: Kučera Petr | F6: 1986 | G6: 3 10 5 | H6: 18 | I6: 6350
A7: 4 | B7: 6 | C7: CZE 78 | D7: 2110-0111 | E7: Skřepek Jan | F7: 1978 | G7: 4 7 7 | H7: 18 | I7: 5796
A8: X | B8: 7 | C8: SVK 4 | D8: 9901-0002 | E8: Heško Marcel | F8: 1975 | G8: 5 6 8 | H8: 19 | I8: 5327
A9: 5 | B9: 8 | C9: CZE 21 | D9: 2101-0375 | E9: Pospíšil Martin | F9: 1964 | G9: 8 9 6 | H9: 23 | I9: 4921
A10: 6 | B10: 9 | C10: CZE 31 | D10: 2413-0001 | E10: Král Jiří | F10: 1974 | G10: 6 8 10 | H10: 24 | I10: 4563
A11: X | B11: 10 | C11: SVK 77 | D11: 9901-0005 | E11: Čarný Oliver | F11: 1999 | G11: 17 5 18 | H11: 40 | I11: 4243
A12: 7 | B12: 11 | C12: CZE 113 | D12: 2001-0086 | E12: Kamenský Pavel | F12: 1974 | G12: 14 12 16 | H12: 42 | I12: 3953
A13: 8 | B13: 12 | C13: CZE 24 | D13: 1607-0121 | E13: Hnitka Martin | F13: 1972 | G13: 15 15 12 | H13: 42 | I13: 3689
A14: X | B14: 13 | C14: SVK 150 | D14: 9901-0006 | E14: Jaš Ján | F14: 1974 | G14: 18 17 9 | H14: 44 | I14: 3445
A15: 9 | B15: 14 | C15: CZE 45 | D15: 2110-0124 | E15: Vrána Petr | F15: 1958 | G15: 10 18 17 | H15: 45 | I15: 3220
A16: X | B16: 15 | C16: HUN 71 | D16: 9905-0001 | E16: Utassy Lorand | F16: 1976 | G16: 11 11 26 | H16: 48 | I16: 3010
A17: 10 | B17: 16 | C17: CZE 251 | D17: 2001-0223 | E17: Dlouhá Martina | F17: 1992 | G17: 13 22 13 | H17: 48 | I17: 2814
A18: 11 | B18: 17 | C18: CZE 61 | D18: 1705-0001 | E18: Haubold Petr | F18: 1944 | G18: 19 16 14 | H18: 49 | I18: 2630
A19: 12 | B19: 18 | C19: CZE 8 | D19: 2405-0133 | E19: Mielec Lubomír | F19: 1950 | G19: 20 13 19 | H19: 52 | I19: 2456
A20: X | B20: 19 | C20: CRO 9 | D20: 9910-0001 | E20: Rožič Luka | F20: 2000 | G20: 12 29 15 | H20: 56 | I20: 2292
A21: 13 | B21: 20 | C21: CZE 19 | D21: 7019-0144 | E21: Hrubý Pavel | F21: 1964 | G21: 22 14 23 | H21: 59 | I21: 2136
A22: X | B22: 21 | C22: SVK 26 | D22: 9901-0012 | E22: Duchnovský Milan | F22: 1962 | G22: 16 26 24 | H22: 66 | I22: 1988
A23: X | B23: 22 | C23: SVK 31 | D23: 9901-0004 | E23: Pollák Jozef | F23: 1945 | G23: 28 30 11 | H23: 69 | I23: 1846
A24: X | B24: 23 | C24: HUN 63 | D24: 9905-0009 | E24: Gilicze Tamas | F24: 1966 | G24: 24 25 20 | H24: 69 | I24: 1711
A25: 14 | B25: 24 | C25: CZE 125 | D25: 1503-0181 | E25: Hrubá Dagmar | F25: 1967 | G25: 25 19 27 | H25: 71 | I25: 1582
A26: 15 | B26: 25 | C26: CZE 25 | D26: 1503-0180 | E26: Hrubý Roman | F26: 1960 | G26: 23 27 22 | H26: 72 | I26: 1457
A27: X | B27: 26 | C27: SVK 7 | D27: 9901-0003 | E27: Čarný Marcel | F27: 1963 | G27: DNC 20 21 | H27: 74 | I27: 1338
A28: 16 | B28: 27 | C28: CZE 5 | D28: 2110-0006 | E28: Kučera Petr | F28: 1947 | G28: 21 21 DNC | H28: 75 | I28: 1224
A29: X | B29: 28 | C29: SVK 46 | D29: 9901-0009 | E29: Beránek Peter | F29: 1974 | G29: 27 23 25 | H29: 75 | I29: 1113
A30: X | B30: 29 | C30: SVK 25 | D30: 9901-0011 | E30: Kučinský Lubomír | F30: 1968 | G30: 30 24 29 | H30: 83 | I30: 1006
A31: X | B31: 30 | C31: HUN 18 | D31: 9905-0008 | E31: Gilicze Noemi | F31: 1990 | G31: 26 28 DNC | H31: 87 | I31: 903
A32: X | B32: 31 | C32: SVK 38 | D32: 9901-0013 | E32: Funk Peter | F32: 2000 | G32: 29 31 28 | H32: 88 | I32: 804
A33: X | B33: 32 | C33: SVK 3 | D33: 9901-0010 | E33: Funk Peter | F33: 1969 | G33: 31 32 DNF | H33: 96 | I33: 707

Sheet 182209-3M
B1: Tvarůžková regata
A2: 1 | B2: 1 | C2: CZE 110 | D2: 2001-0096 | E2: Kamenský Radim | F2: 1976 | G2: 1 1 2* 1 1 1 | H2: 5 | I2: 3541
A3: 2 | B3: 2 | C3: CZE 15 | D3: 2110-0050 | E3: Kučera Petr | F3: 1986 | G3: 5* 2 1 2 2 2 | H3: 9 | I3: 2637
A4: 3 | B4: 3 | C4: CZE 31 | D4: 2413-0001 | E4: Král Jiří | F4: 1974 | G4: 2 3 3* 3 3 3 | H4: 14 | I4: 2109
A5: 4 | B5: 4 | C5: CZE 5 | D5: 2110-0006 | E5: Kučera Petr | F5: 1947 | G5: 4 4 4 9* 6 5 | H5: 23 | I5: 1734
A6: 5 | B6: 5 | C6: CZE 113 | D6: 2001-0086 | E6: Kamenský Pavel | F6: 1974 | G6: 7 9* 5 4 4 4 | H6: 24 | I6: 1444
A7: 6 | B7: 6 | C7: CZE 45 | D7: 2110-0124 | E7: Vrána Petr | F7: 1958 | G7: 6 7 7* 5 5 6 | H7: 29 | I7: 1206
A8: 7 | B8: 7 | C8: CZE 53 | D8: 2204-0021 | E8: Štrambach Ladislav | F8: 1954 | G8: 10* 6 6 6 8 7 | H8: 33 | I8: 1005
A9: 8 | B9: 8 | C9: CZE 8 | D9: 2405-0133 | E9: Mielec Lubomír | F9: 1950 | G9: 3 10* 8 7 9 8 | H9: 35 | I9: 831
A10: 9 | B10: 9 | C10: CZE 125 | D10: 1503-0181 | E10: Hrubá Dagmar | F10: 1967 | G10: 8 8 9 8 7 10* | H10: 40 | I10: 678
A11: 10 | B11: 10 | C11: CZE 25 | D11: 1503-0180 | E11: Hrubý Roman | F11: 1960 | G11: 9 5 10* 10 10 9 | H11: 43 | I11: 541
A12: X | B12: 11 | C12: CZE 30 | D12: 9999-0084 | E12: Vykydal Jaroslav | F12: 1947 | G12: DNC 11 DNC* DNC DNC DNC | H12: 63 | I12: 416
A13: X | B13: 12 | C13: CZE 65 | D13: 9999-0085 | E13: Rašovský Jaroslav | F13: 1948 | G13: 11 DNC DNC* DNC DNC DNC | H13: 63 | I13: 303

Sheet 181720-3C
B1: Ski regata

Sheet Members
A1: 4 | B1: Sladký Martin | C1: M
A2: 5 | B2: Kučera Petr sen. | C2: M
A3: 7 | B3: Toth Martin | C3: M
A4: 8 | B4: Mielec Lubomír | C4: M
A5: 10 | B5: Horký Adam | C5: M
A6: 11 | B6: Altmann Tomáš | C6: M
A7: 15 | B7: Kučera Petr jun. | C7: M
A8: 16 | B8: Slíva Matěj | C8: M
A9: 17 | B9: Hrdina Patrik | C9: M
A10: 19 | B10: Hrubý Pavel | C10: M
A11: 21 | B11: Pospíšil Martin | C11: M
A12: 22 | B12: Slíva Martin | C12: M
A13: 24 | B13: Hnitka Martin | C13: M
A14: 25 | B14: Hrubý Roman | C14: M
A15: 26 | B15: Slívová Jana | C15: F
A16: 31 | B16: Král Jiří | C16: M
A17: 34 | B17: Loužek Karel | C17: M
A18: 35 | B18: Mařík Kristian | C18: M
A19: 37 | B19: Šplíchal Filip | C19: M
A20: 39 | B20: Šplíchal Jiří | C20: M
A21: 40 | B21: Štěpánský Adam | C21: M
A22: 41 | B22: Horáček Jonáš | C22: M
A23: 45 | B23: Vrána Petr | C23: M
A24: 48 | B24: Čech Petr | C24: M
A25: 49 | B25: Sadílek Adam | C25: M
A26: 50 | B26: Mikulec Martin | C26: M
A27: 51 | B27: Šeliga Teodor | C27: M
A28: 53 | B28: Štrambach Ladislav | C28: M
A29: 58 | B29: Žlabová Markéta | C29: F
A30: 61 | B30: Haubold Petr | C30: M
A31: 63 | B31: Drda David | C31: M
A32: 71 | B32: Himmelová Klára | C32: F
A33: 73 | B33: Štěpánek Jan | C33: M
A34: 74 | B34: Neckářová Martina | C34: F
A35: 76 | B35: Raška Marek | C35: M
A36: 77 | B36: Rašková Adéla | C36: F
A37: 79 | B37: Himmel Jiří | C37: M
A38: 80 | B38: Sadílková Nela | C38: F
A39: 81 | B39: Himmel Jiří | C39: M
A40: 82 | B40: Parchomenko Ondřej | C40: M
A41: 85 | B41: Kroupa Štěpán | C41: M
A42: 86 | B42: Mrůzek Pavel | C42: M
A43: 87 | B43: Lojínová Alexandra | C43: F
A44: 88 | B44: Štěpánková Markéta | C44: F
A45: 89 | B45: Švíková Katrina | C45: F
A46: 90 | B46: Hykrdová Markéta | C46: F
A47: 91 | B47: Chalupníková Klára | C47: F
A48: 93 | B48: Hasman Radim | C48: M
A49: 95 | B49: Provazník Samuel | C49: M
A50: 98 | B50: Švíková Barbora | C50: F
A51: 99 | B51: Dvořák Rudolf | C51: M
A52: 101 | B52: Koblasa Stanislav | C52: M
A53: 110 | B53: Kamenský Radim | C53: M
A54: 113 | B54: Kamenský Pavel | C54: M
A55: 116 | B55: Netík Pavel | C55: M
A56: 119 | B56: Altmannová Kateřina | C56: F
A57: 125 | B57: Hrubá Dagmar | C57: F
A58: 138 | B58: Hromádka Josef | C58: M
A59: 141 | B59: Sehnal Pavel | C59: M
A60: 147 | B60: Sehnal Pavel | C60: M
A61: 173 | B61: Zidkova Nadine | C61: F
A62: 178 | B62: Kvašnovský Michael | C62: M
A63: 195 | B63: Dolejš Rudolf | C63: M
A64: 211 | B64: Diviš Lukáš | C64: M
A65: 251 | B65: Dlouhá Martina | C65: F
A66: 289 | B66: Piňosová Kristýna | C66: F
A67: 333 | B67: Myška Filip | C67: M
A68: 338 | B68: Myšková Veronika | C68: F
A69: 714 | B69: Samcová Klára | C69: F
A70: 741 | B70: Rais Michal | C70: M
A71: 742 | B71: Kříž Jan | C71: M
A72: 744 | B72: Říčanová Nicol | C72: F
A73: 747 | B73: Říčan Jaroslav | C73: M
A74: 777 | B74: Zíma Jakub | C74: M
A75: 781 | B75: Skřepek Šimon | C75: M
A76: 783 | B76: Tlapák Vojta | C76: M
A77: 784 | B77: Nevolöš Adam | C77: M
A78: 785 | B78: Tlapáková Zuzana | C78: F
A79: 786 | B79: Vaszi Mikuláš | C79: M
A80: 787 | B80: Neveloš Tibor | C80: M
A81: 788 | B81: Muller Ondřej | C81: M
A82: 789 | B82: Nevelöš Jan | C82: M
A83: 814 | B83: Švec Ladislav | C83: M
A84: 1116 | B84: Netík Pavel | C84: M
A85: 2403 | B85: Raška Ondřej | C85: M
B86: Martinová Nicola | C86: F
B87: Sehnalová Tereza | C87: F
B88: Skřepek Jan | C88: M
B89: Kučera Petr | C89: M
B90: Rott Petr | C90: M
B91: Hrubý Jiří | C91: M

Sheet Categories
A1: Muži | B1: M | C1: Ženy | D1: F | G1: Pořadí
A2: Min | B2: Max | C2: Min | D2: Max | E2: Zkratka | F2: Kategorie
A3: 0 | B3: 35 | C3: 0 | D3: 30 | E3: - | F3: - | G3: 3 | H3: 13
A4: 36 | B4: 45 | C4: 31 | D4: 40 | E4: M | F4: Master | G4: 4 | H4: 8
A5: 46 | B5: 55 | C5: 41 | D5: 50 | E5: GM | F5: Grand Master | G5: 5 | H5: 14
A6: 56 | B6: 1000 | C6: 51 | D6: 1000 | E6: V | F6: Veteran | G6: 9 | H6: 21

Sheet List1
A1: Cislo | B1: Jméno | C1: Klub | D1: Člen
A2: 1 | B2: k propůjčení | C2: ČWA Lavický Karel
A3: 2 | B3: Vavřík Petr | C3: Santi Ostrava
A4: 3 | B4: Rott Jan | C4: YC Plzeň | D4: ano
A5: 4 | B5: Sladký Martin ml. | C5: ČWA | D5: ano
A6: 5 | B6: Kučera Petr | C6: Rapid Brno | D6: ano
A7: 6 | B7: Jakub Slíva | C7: YC Nechranice | D7: ano
A8: 7 | B8: Toth Martin | C8: ČWA | D8: ano
A9: 8 | B9: Mielec Lubomír sen. | C9: SKP Ostrava | D9: ano
A10: 9 | B10: Mielec lubomír jun. | C10: SKP Ostrava
A11: 10 | B11: Horký Adam | C11: ČWA | D11: ano
A12: 11 | B12: Altmann Tomáš | C12: SSTK Plzeň | D12: ano
A13: 12 | B13: Diviš Ivo | C13: YC Brno
A14: 13 | B14: Koblasa David | C14: Loko Cheb | D14: ano
A15: 14 | B15: Koblasa Lukáš | C15: Loko Cheb
A16: 15 | B16: Kučera Petr jun. | C16: Rapid Brno | D16: ano
A17: 16 | B17: Slíva Matěj | C17: ČWA | D17: ano
A18: 17 | B18: Hrdina Patrik | C18: Rodop | D18: ano
A19: 19 | B19: Hrubý Pavel | C19: ČWA | D19: ano
A20: 20 | B20: Markýzo
A21: 21 | B21: Pospíšil Martin | C21: Rapid Brno | D21: ano
A22: 22 | B22: Slíva Martin | C22: ČWA | D22: ano
A23: 24 | B23: Hnitka Martin | C23: YC Nechranice | D23: ano
A24: 25 | B24: Hrubý Roman | C24: Loko Cheb | D24: ano
A25: 26 | B25: Slívová Jana | C25: YC Nechranice | D25: ano
A26: 27 | B26: Raška Zdeněk | C26: TJ Baník Karviná
A27: 29 | B27: König Josef | C27: Loko Plzeň | D27: ano
A28: 30 | B28: Vykydal Jaroslav | C28: Rapid Brno | D28: ano
A29: 31 | B29: Král Jiří | C29: HTJ Odra Ostrava | D29: ano
A30: 32 | B30: Stránký Martin | C30: Loko Cheb
A31: 33 | B31: Rott Petr | C31: YC Plzeň | D31: ano
A32: 34 | B32: Loužek Karel | C32: YC Plzeň | D32: ano
A33: 35 | B33: Mařík Kristian | C33: Delfín Jablonec | D33: ano
A34: 36 | B34: Šplíchal Jiří sen. | C34: YC Plzeň
A35: 37 | B35: Šplíchal Filip. | C35: YC Plzeň | D35: ano
A36: 38 | B36: Vaněk Václav | C36: Slovan ML | D36: ano
A37: 39 | B37: Šplíchal Jiří jun | C37: YC Plzeň | D37: ano
A38: 40 | B38: Štěpánský Adam | C38: TJ Slavia | D38: ano
A39: 41 | B39: Horáček Jonáš | C39: Delfín Jablonec | D39: ano
A40: 42 | B40: Hanzi Shafer | C40: ČWA | D40: ano
A41: 43 | B41: Roušal Jar.
A42: 44 | B42: Vránová Markéta | C42: Rapid Brno | D42: ano
A43: 45 | B43: Vrána Petr | C43: Rapid Brno | D43: ano
A44: 46 | B44: Straček Oldřich | C44: Ostrava
A45: 47 | B45: TJ Rapid | C45: TJ Rapid
A46: 48 | B46: Čech Petr | C46: DIM Bezdrev | D46: ano
A47: 49 | B47: Sadílek Adam | C47: Delfín Jablonec | D47: ano
A48: 50 | B48: Mikulec Martin | C48: Rapid Brno | D48: ano
A49: 51 | B49: Šeliga Teodor | C49: Rapid Brno | D49: ano
A50: 52 | B50: Juptner Patrik | C50: Vodní sp. Brno
A51: 53 | B51: Štrambach Ladislav | C51: MEZ Mohelnice | D51: ano
A52: 54 | B52: Fanta Miroslav | C52: TJ L SP Brno
A53: 55 | B53: Kudláček Pavel | C53: ČWA | D53: ano
A54: 56 | C54: Rapid Brno
A55: 57 | B55: Ouřada Jaroslav | C55: Loko Cheb | D55: ano
A56: 58 | B56: Žlabová Markéta | C56: ČWA | D56: ano
A57: 59 | B57: Hrdina Pavelk | C57: ASK | D57: ano
A58: 60 | B58: Hrdinová Patricie | C58: ASK | D58: ano
A59: 61 | B59: Haubold Petr | C59: Delfín Jablonec | D59: ano
A60: 62 | B60: Kocálek Zdeněk | C60: YC Nové Sedlo
A61: 63 | B61: Drda David | C61: Delfín Jablonec | D61: ano
A62: 64 | B62: Rapid Brno | C62: Rapid Brno
A63: 65 | B63: Rašovský Jar. | C63: Rapid Brno | D63: ano
A64: 66 | B64: Ovsík Martin | C64: ČWA | D64: ano
A65: 67 | B65: Marek Michal | C65: TJ Rapid | D65: ano
A66: 68 | B66: Hartman Pavel | C66: ČWA | D66: ano
A67: 69 | B67: Šlechta Jiří | C67: ČWA
A68: 70 | B68: ŠebestaLibor | C68: ČWA | D68: ano
A69: 71 | B69: Himmel Klára | C69: YC Nechranice | D69: ano
A70: 72 | B70: Dvořák Dalibor | C70: ČWA | D70: ano
A71: 73 | B71: Štěpánek Jan | C71: Delfín Jablonec | D71: ano
A72: 74 | B72: Neckářová Martina | C72: Rapid Brno | D72: ano
A73: 75 | B73: JK Plzeň | C73: JK Plzeň
A74: 76 | B74: Raška Marek | C74: ČWA | D74: ano
A75: 77 | B75: Rašková Adéla | C75: ČWA | D75: ano
A76: 78 | B76: Skřepek Jan | C76: Rapid Brno | D76: ano
A77: 79 | B77: Himmel Jiří | C77: YC Nechranice | D77: ano
A78: 80 | B78: Sadílková Nela | C78: Delfín Jablonec | D78: ano
A79: 81 | B79: Himmel Jiří jun | C79: YC Nechranice | D79: ano
A80: 82 | B80: Parchomenko Ondřej | C80: YC Nechranice | D80: ano
A81: 83 | B81: Nejtek Petr | C81: Loko Cheb
A82: 84 | B82: Sadílek Pavel | C82: Delfín Jablonec
A83: 85 | B83: Kroupa Štěpán | C83: Delfín Jablonec | D83: ano
A84: 86 | B84: Mrůzek Pavel | C84: JC Regent | D84: ano
A85: 87 | B85: Lojnová Alexandra | C85: Delfín Jablonec | D85: ano
A86: 88 | B86: Štěpánková Markéta | C86: Delfín Jablonec | D86: ano
A87: 89 | B87: Švíková Katrina | C87: Cere | D87: ano
A88: 90 | B88: Hykrtová Markéta | C88: Rapid Brno | D88: ano
A89: 91 | B89: Chalupníková Klara | C89: YC Brno | D89: ano
A90: 92 | B90: Podzimek Petr | C90: Loko Cheb
A91: 93 | B91: Hasman Radim | C91: YC Kladno | D91: ano
A92: 94 | B92: Novotný Antonín | C92: Rapid Brno
A93: 95 | B93: Provazník Samuel | C93: YC Velké Dářko | D93: ano
A94: 96 | B94: Čech Milan | C94: ČWA
A95: 97 | B95: Městka Josef | C95: Loko Cheb
A96: 98 | B96: Švíková Barbora | C96: Cere | D96: ano
A97: 99 | B97: Dvořák Rudolf | C97: Cere | D97: ano
A98: 101 | B98: Koblasa Stanislav | C98: Loko Cheb | D98: ano
A99: 104 | B99: Čech Petr | C99: ČWA | D99: ano
A100: 105 | B100: Škola Jaroslav | C100: Loko Cheb
A101: 109 | B101: Malina Tomáš | C101: identiti nechr | D101: ano
A102: 110 | B102: Kamenský Radim | C102: YC Velké Dářko | D102: ano
A103: 111 | B103: Kalabis Petr | C103: Rapid Brno | D103: ano
A104: 113 | B104: Kamenský Pavel | C104: YC Velké Dářko | D104: ano
A105: 114 | B105: Nejtek Petr | C105: Loko Cheb
A106: 115 | B106: Škola Jaroslav ml. | C106: Loko Cheb
A107: 116 | B107: Netík Pavel | C107: YC Velké Dářko | D107: ano
A108: 117 | B108: Urbánek Zdeněk | C108: MEZ Mohelnice
A109: 118 | B109: Uldrych Josef
A110: 119 | B110: Altmannová Kat | C110: SSTK Plzeň | D110: ano
A111: 120 | B111: Hrubý Jiří | C111: JC PlzeŇ | D111: ano
A112: 121 | B112: Dvořáková Kateřina | C112: Loko Cheb
A113: 123 | B113: Toupal Jan | C113: ČWA | D113: ano
A114: 124 | B114: Hauer Radim | C114: PLK
A115: 125 | B115: Hrubá Dagmar | C115: Loko Cheb | D115: ano
A116: 126 | B116: Dvořák Michal | C116: ČWA | D116: ano
A117: 128 | B117: Dvořák Marek | D117: ano
A118: 130 | B118: Lavický Karel | C118: DIM Bezdrev | D118: ano
A119: 137 | B119: Motz Daniel | C119: ČWA | D119: ano
A120: 138 | B120: Hromádka Josef | C120: Loko Cheb | D120: ano
A121: 141 | B121: Sehnal Pavel | C121: ČWA | D121: ano
A122: 144 | B122: Haltmarová Dominika | C122: ČWA | D122: ano
A123: 147 | B123: Sehnal Pavel jun. | C123: ČWA | D123: ano
A124: 162 | B124: Kment Libor | C124: ČWA | D124: ano
A125: 165 | B125: Škola Jan | C125: Loko Cheb
A126: 166 | B126: Vejrek Miloš | C126: JC Regent | D126: ano
A127: 172 | B127: Kocman Zdeněk
A128: 173 | B128: Zidkova Nadine | C128: ČWA | D128: ano
A129: 177 | B129: Neumann Lukáš | C129: YC Rodop | D129: ano
A130: 178 | B130: Kvašnovský Michael | C130: ČWA | D130: ano
A131: 195 | B131: Dolejš Rudolf | C131: ČWA | D131: ano
A132: 202 | B132: Bodlák Pavel | D132: ano
A133: 205 | B133: Ehl Vladimír | C133: WCVD
A134: 206 | B134: Haken Vladimír | C134: WCVD
A135: 208 | B135: Ševčík Martin | C135: WCVD
A136: 211 | B136: Diviš Lukáš | C136: YC Brno | D136: ano
A137: 212 | B137: Pelikán Martin | C137: Rapid Brno
A138: 222 | B138: Vazač Jan | C138: ČWA | D138: ano
A139: 251 | B139: Hrubá Martina | C139: YC Velké Dářko | D139: ano
A140: 289 | B140: Piňosová Kristyna | D140: ano
A141: 331 | B141: Rott Jakub | C141: Poseidon Plzeň
A142: 332 | B142: Hrubý Kryštof | C142: ČWA | D142: ano
A143: 333 | B143: Myška Filip | C143: identiti nechr | D143: ano
A144: 338 | B144: Myšková Veronika | C144: ČWA | D144: ano
A145: 404 | B145: Hala Václav | C145: ČWA | D145: ano
A146: 480 | B146: Šmíd Zdeněk | C146: Mez Mohelnice | D146: ano
A147: 534 | B147: Valenta Jan | C147: ČWA | D147: ano
A148: 612 | B148: Modráčková Jana | C148: ČWA | D148: ano
A149: 711 | B149: Toth ml. | C149: ČWA
A150: 714 | B150: Samcová Klára | C150: Rapid Brno | D150: ano
A151: 741 | B151: Rais Michal | C151: YC SK Štětí | D151: ano
A152: 742 | B152: Kříž Jan | C152: YC SK Štětí | D152: ano
A153: 744 | B153: Říčanová Nicol | C153: YC SK Štětí | D153: ano
A154: 747 | B154: Říčan Jaroslav | C154: YC SK Štětí | D154: ano
A155: 771 | B155: Štantejský Jan | C155: ČWA | D155: ano
A156: 777 | B156: Zíma Jakub | C156: ČWA | D156: ano
A157: 781 | B157: Skřepek Šimon | C157: Rapid Brno | D157: ano
A158: 783 | B158: Tlapák Vojta | C158: YC SK Štětí | D158: ano
A159: 784 | B159: Nevološ Adam | C159: YC SK Štětí | D159: ano
A160: 785 | B160: Tlapáková Zuzana | C160: YC SK Štětí | D160: ano
A161: 786 | B161: Vaszi Mikuláš | C161: YC SK Štětí | D161: ano
A162: 787 | B162: Neveloš Tibor | C162: YC SK Štětí | D162: ano
A163: 788 | B163: Muller Ondřej | C163: YC SK Štětí | D163: ano
A164: 789 | B164: Neveloš Janr | C164: YC SK Štětí | D164: ano
A165: 814 | B165: Švec Ladislav | C165: Č. Budějovice | D165: ano
A166: 888 | B166: Hulinský Martin | C166: ČWA | D166: ano
A167: 911 | B167: Chalupníková Kristýna | C167: YC Brno | D167: ano
A168: 1006 | B168: Řehák Pavel | C168: ČWA
A169: 1111 | B169: Kir | C169: identiti nechr | D169: ano
A170: 1116 | B170: Netík Pavel jun | C170: YC Velké Dářko | D170: ano
A171: 1117 | B171: Mika Radek | D171: ano
A172: 1534 | B172: Šmídová Pavla | C172: ČWA | D172: ano
A173: 2403 | B173: Raška Ondřej | C173: ČWA | D173: ano
A174: 2222 | B174: Holý Marek | D174: ano
B175: Ledecká Ester | C175: ČWA
B176: Martinova Nicola | C176: ČWA | D176: ano
B177: Kaš Petr | C177: TJ Rapid | D177: ano
B178: Sehnalová Teraza | D178: ano
B179: Marečková lenka | D179: ano
B180: Rašková Kateřina | D180: ano
B181: Novák Jakub | D181: ano
B182: Polák Pavel | D182: ano
A183: LEGENDA
A184: n | B184: nově přidělené číslo
A185: x | B185: platnost přiděleného čísla plachty do r.
A186: ano | B186: člen čwa 2016
A187: ano | B187: člen čwa 2017
A188: sl. A | B188: přidělené závodní licence členů čwa závodících za čwa 7019XXX.
A189: sl. A | B189: zaplaceno na 2016
A190: sl. A | B190: zaplaceno na 2017
A191: sl. A | B191: neplacená licence
